Workbook

Sheet trig.
A1: Name | B1: Value | C1: Description
A2: dr_ | B2: =PI()/180 -> 0.01745329252 | C2: conversion factor from degrees to radians
A3: rd_ | B3: =180/PI() -> 57.29577951 | C3: conversion factor from radians to degrees
A4: pi_ | B4: 3.141592654

Sheet Eclipse_Dimming(ED)
A1: Duration | B1: Rmoon | D1: b | F1: Change only numbers in the yellow fields. Move the slider below the chart. | T1: Xmoon | U1: =(Y1-240)/100 -> -1.55 | V1: Slider position | Y1: 85 | AP1: Example using n=100 (red dot)
A2: min | T2: Ymoon | U2: 0 | AT2: sum | AU2: sum
A3: 180 | B3: 0.95 | C3: 0.75 | D3: 2 | U3: rad | V3: deg | X3: rad | Y3: deg | AA3: ang | AB3: Xmoo | AC3: Ymoo | AD3: Xsun | AE3: Ysun | AF3: Xsun | AG3: Ysun | AL3: Sun disk | AN3: Moon disk | AP3: r | AQ3: c | AR3: bSun | AT3: =SUM(AT4:AT104) -> 38.89488786 | AU3: =SUM(AU4:AU104) -> 3.401536168
T4: tot | U4: =IF(Rmoo_>=1,IF((ABS(U1)<=(Rmoo_-1)),1,""),"") ->  | W4: tot | X4: =IF(Rmoo_>=1,IF((ABS(U1)<=(Rmoo_-C3)),1,""),"") ->  | AA4: 0 | AB4: =$U$1+Rmoo_*COS(AA4*dr_) -> -0.6 | AC4: =Rmoo_*SIN(AA4*dr_) -> 0 | AD4: =COS(AA4*dr_) -> 1 | AE4: =SIN(AA4*dr_) -> 0 | AF4: =AD4*$C$3 -> 0.75 | AG4: =AE4*$C$3 -> 0 | AH4: -3.5 | AI4: -1.25 | AJ4: 0 | AK4: 0 | AL4: =COS(AK4) -> 1 | AM4: =SIN(AK4) -> 0 | AN4: =$U$1+Rmoo_*COS(AK4*dr_) -> -0.6 | AO4: =Rmoo_*SIN(AK4*dr_) -> 0 | AP4: 0.995 | AQ4: =IF(AND(Xmoon_+Rmoo_>=AP4,Xmoon_-Rmoo_<=-AP4),1,"-") -> - | AR4: =rd_*(IFERROR(ACOS((Xmoon_^2+AP4^2-Rmoo_^2)/(2*ABS(Xmoon_)*AP4)),0)) -> 36.16992426 | AS4: =(1+$D$3*SQRT(1-AP4^2))/(1+$D$3) -> 0.3999166145 | AT4: =AS4*AP4 -> 0.3979170314 | AU4: =AT4*AR4/180 *(AQ4<>1)+ AT4*(AQ4=1) -> 0.07995904939
A5: min | B5: hrs | C5: Xmoo | D5: tot ? | E5: ann ? | F5: amoo | G5: bsun | H5: q | I5: Q | J5: h | K5: sector AC'C | L5: triangle AC'C | M5: segment C'FC | N5: sector BCC' | O5: triangle BCC' | P5: segment CGC' | Q5: Sun free | R5: Sun obsc.% | S5: Sun dimm.% | T5: ann | U5: =IF(Rmoo_<1,IF(ABS(U1)+Rmoo_<=1,1,""),"") ->  | W5: ann | X5: =IF(Rmoo_<1,IF(ABS(U1)+Rmoo_<=C3,1,""),"") ->  | AA5: =AA4+2 -> 2 | AB5: -0.6005787143 | AC5: 0.03315452187 | AD5: 0.999390827 | AE5: 0.0348994967 | AF5: 0.7495431203 | AG5: 0.02617462253 | AH5: 3.5 | AI5: -1.25 | AJ5: 0 | AL5: 0 | AM5: 0 | AN5: =$U$1 -> -1.55 | AO5: 0 | AP5: =AP4-0.01 -> 0.985 | AQ5: - | AR5: 36.00346008 | AS5: 0.4483695595 | AT5: 0.4416440161 | AU5: =AT5*AR5/180 *(AQ5<>1)+ AT5*(AQ5=1) -> 0.08833729281
A6: 0 | B6: =(A6-180*($A$3/180)/2)/60 -> -1.5 | C6: =(1+Rmoo_)*B6*2*60/$A$3 -> -1.95 | D6: =IF(Rmoo_>=1,IF((ABS(C6)<=(Rmoo_-1)),1,""),"") ->  | E6: =IF(Rmoo_<1,IF(ABS(C6)+Rmoo_<1,1,""),"") ->  | F6: =IF(Rmoo_>=1,IFERROR(ACOS((Rmoo_^2+C6^2-1^2)/(2*Rmoo_*ABS(C6))),0), IFERROR(ACOS((Rmoo_^2+C6^2-1^2)/(2*Rmoo_*ABS(C6))),0)) -> 0 | G6: =IFERROR(ACOS((C6^2+1^2-Rmoo_^2)/(2*ABS(C6)*1)),0) -> 0 | H6: =Rmoo_*COS(F6) -> 0.95 | I6: =COS(G6) -> 1 | J6: =ABS(H6*TAN(F6)) -> 0 | K6: =Rmoo_^2*pi_*(2*F6)/(2*pi_) -> 0 | L6: =H6*J6 -> 0 | M6: =K6-L6 -> 0 | N6: =1^2*pi_*(2*G6)/(2*pi_) -> 0 | O6: =COS(G6)*J6 -> 0 | P6: =N6-O6 -> 0 | Q6: =IF(OR(D6=1,E6=1),IF(D6=1,0,1^2*pi_-Rmoo_^2*pi_),IF(Rmoo_>=1,1^2*pi_-M6-P6,1^2*pi_-M6-P6)) -> 3.141592654 | R6: =100-Q6/pi_*100 -> 0 | S6: =Eclipse_Dimming(C6,Rmoo_,2000,$D$3) -> 0 | T6: amoo | U6: =IF(Rmoo_>=1,IFERROR(ACOS((Rmoo_^2+U1^2-1^2)/(2*Rmoo_*ABS(U1))),0), IFERROR(ACOS((Rmoo_^2+U1^2-1^2)/(2*Rmoo_*ABS(U1))),0)) -> 0.6718323087 | V6: =U6*180/pi_ -> 38.49315583 | W6: amoo | X6: =IF(Rmoo_>=1,IFERROR(ACOS((Rmoo_^2+U1^2-C3^2)/(2*Rmoo_*ABS(U1))),0), IFERROR(ACOS((Rmoo_^2+U1^2-C3^2)/(2*Rmoo_*ABS(U1))),0)) -> 0.3729970272 | Y6: =X6*180/pi_ -> 21.37115543 | AA6: =AA5+2 -> 4 | AB6: -0.6023141523 | AC6: 0.06626865006 | AD6: 0.9975640503 | AE6: 0.06975647374 | AF6: 0.7481730377 | AG6: 0.05231735531 | AP6: =AP5-0.01 -> 0.975 | AQ6: - | AR6: 35.82641557 | AS6: 0.481469907 | AT6: 0.4694331593 | AU6: 0.09343393027
A7: =A6+$A$3/180 -> 1 | B7: -1.483333333 | C7: -1.928333333 | F7: 0.1531148267 | G7: 0.1454032038 | H7: 0.9388857678 | I7: 0.9894475655 | J7: =ABS(H7*TAN(F7)) -> 0.1448913905 | K7: 0.1381861311 | L7: =H7*J7 -> 0.1360364644 | M7: =K7-L7 -> 0.002149666722 | N7: 0.1454032038 | O7: =COS(G7)*J7 -> 0.1433624336 | P7: =N7-O7 -> 0.002040770206 | Q7: 3.137402217 | R7: 0.1333857502 | S7: 0.07110407427 | T7: bsun | U7: =IFERROR(ACOS(($U$1^2+1^2-Rmoo_^2)/(2*ABS($U$1)*1)),0) -> 0.632670001 | V7: =U7*180/pi_ -> 36.24932088 | W7: bsun | X7: =IFERROR(ACOS(($U$1^2+C3^2-Rmoo_^2)/(2*ABS($U$1)*C3)),0) -> 0.4797793902 | Y7: =X7*180/pi_ -> 27.48933416 | AA7: 6 | AB7: -0.6052041994 | AC7: 0.0993020401 | AD7: 0.9945218954 | AE7: 0.1045284633 | AF7: 0.7458914215 | AG7: 0.07839634745 | AH7: -3.5 | AI7: =AI4+0.25 -> -1 | AJ7: =AJ4+10 -> 10 | AK7: =AK4+0.5 -> 0.5 | AL7: =COS(AK7) -> 0.8775825619 | AM7: =SIN(AK7) -> 0.4794255386 | AN7: =$U$1+Rmoo_*COS(AK7*dr_) -> -0.6000361731 | AO7: =Rmoo_*SIN(AK7*dr_) -> 0.008290208723 | AP7: 0.965 | AQ7: - | AR7: 35.6383431 | AS7: 0.5081665872 | AT7: 0.4903807567 | AU7: 0.09709087587
A8: 2 | B8: -1.466666667 | C8: -1.906666667 | F8: 0.2167808923 | G8: 0.2057819046 | H8: 0.9277651515 | I8: 0.9789015152 | J8: 0.2043326299 | K8: 0.1956447553 | L8: 0.1895726933 | M8: 0.006072062005 | N8: 0.2057819046 | O8: 0.200021521 | P8: 0.005760383609 | Q8: 3.129760208 | R8: 0.3766384417 | S8: 0.2170700182 | T8: q | U8: =(Rmoo_*COS(U6)) -> 0.7435483871 | W8: q | X8: =(Rmoo_*COS(X6)) -> 0.8846774194 | AA8: 8 | AB8: -0.6092453347 | AC8: 0.1322144459 | AD8: 0.9902680687 | AE8: 0.139173101 | AF8: 0.7427010516 | AG8: 0.1043798257 | AH8: 3.5 | AI8: =AI5+0.25 -> -1 | AJ8: =AJ7 -> 10 | AL8: 0 | AM8: 0 | AN8: =$U$1 -> -1.55 | AO8: 0 | AP8: 0.955 | AQ8: - | AR8: 35.43876445 | AS8: 0.5310705327 | AT8: 0.5071723587 | AU8: 0.09985312085
A9: 3 | B9: -1.45 | C9: -1.885 | F9: 0.2658024059 | G9: 0.2522149061 | H9: 0.916637931 | I9: 0.968362069 | J9: 0.2495494007 | K9: 0.2398866713 | L9: 0.2287464463 | M9: 0.01114022499 | N9: 0.2522149061 | O9: 0.241654174 | P9: 0.01056073215 | Q9: 3.119891696 | R9: 0.6907629199 | S9: 0.4205770834 | T9: Q | U9: =COS(U7) -> 0.8064516129 | W9: Q | X9: =COS(X7) -> 0.8870967742 | AA9: 10 | AB9: -0.6144326346 | AC9: 0.1649657688 | AD9: 0.984807753 | AE9: 0.1736481777 | AF9: 0.7386058148 | AG9: 0.1302361333 | AP9: 0.945 | AQ9: - | AR9: 35.22716792 | AS9: 0.5513802192 | AT9: 0.5210543072 | AU9: 0.1019737087
A10: 4 | B10: -1.433333333 | C10: -1.863333333 | F10: 0.3072728282 | G10: 0.2914457549 | H10: 0.905503876 | I10: 0.9578294574 | J10: 0.2873373115 | K10: 0.2773137274 | L10: 0.2601850493 | M10: 0.0171286781 | N10: 0.2914457549 | O10: 0.2752201412 | P10: 0.0162256137 | Q10: 3.108238362 | R10: 1.061700083 | S10: 0.675174295 | T10: h | U10: =ABS(U8*TAN(U6)) -> 0.5913000897 | W10: h | X10: =ABS(X8*TAN(X6)) -> 0.3461876134 | AA10: 12 | AB10: -0.6207597793 | AC10: 0.1975161063 | AD10: 0.9781476007 | AE10: 0.2079116908 | AF10: 0.7336107006 | AG10: 0.1559337681 | AH10: -3.5 | AI10: =AI7+0.25 -> -0.75 | AJ10: =AJ7+10 -> 20 | AK10: =AK7+0.5 -> 1 | AL10: =COS(AK10) -> 0.5403023059 | AM10: =SIN(AK10) -> 0.8414709848 | AN10: =$U$1+Rmoo_*COS(AK10*dr_) -> -0.6001446896 | AO10: =Rmoo_*SIN(AK10*dr_) -> 0.01657978612 | AP10: 0.935 | AQ10: - | AR10: 35.00300511 | AS10: 0.5697651417 | AT10: 0.5327304075 | AU10: 0.1035953621
A11: 5 | B11: -1.416666667 | C11: -1.841666667 | F11: 0.3439368677 | G11: 0.3260843665 | H11: 0.8943627451 | I11: 0.9473039216 | J11: 0.3203361987 | K11: 0.3104030231 | L11: 0.286496762 | M11: 0.0239062611 | N11: 0.3260843665 | O11: 0.3034557372 | P11: 0.02262862932 | Q11: 3.095057763 | R11: 1.481251567 | S11: 0.9771769128 | U11: x | V11: y | X11: x | Y11: y | AA11: 14 | AB11: -0.62821906 | AC11: 0.2298258008 | AD11: 0.9702957263 | AE11: 0.2419218956 | AF11: 0.7277217947 | AG11: 0.1814414217 | AH11: 3.5 | AI11: =AI8+0.25 -> -0.75 | AJ11: =AJ10 -> 20 | AL11: 0 | AM11: 0 | AN11: =$U$1 -> -1.55 | AO11: 0 | AP11: 0.925 | AQ11: - | AR11: 34.76568722 | AS11: 0.5866447359 | AT11: 0.5426463807 | AU11: 0.1048081908
A12: 6 | B12: -1.4 | C12: -1.82 | F12: 0.3772008771 | G12: 0.3574681908 | H12: 0.8832142857 | I12: 0.9367857143 | J12: 0.3499035946 | K12: 0.3404237916 | L12: 0.3090398534 | M12: 0.03138393821 | N12: 0.3574681908 | O12: 0.3277846888 | P12: 0.02968350203 | Q12: 3.080525213 | R12: 1.943836995 | S12: 1.323503222 | T12: Sun | U12: 0 | V12: 0 | W12: Sun | X12: 0 | Y12: 0 | AA12: 16 | AB12: -0.6368013889 | AC12: 0.261855488 | AD12: 0.9612616959 | AE12: 0.2756373558 | AF12: 0.720946272 | AG12: 0.2067280169 | AP12: 0.915 | AQ12: - | AR12: 34.51458091 | AS12: 0.6023025592 | AT12: 0.5511068416 | AU12: 0.1056734538
A13: 7 | B13: -1.383333333 | C13: -1.798333333 | F13: 0.4078996089 | G13: 0.3863910877 | H13: 0.8720582329 | I13: 0.9262751004 | J13: 0.3768480309 | K13: 0.3681293971 | L13: 0.3286334279 | M13: 0.03949596918 | N13: 0.3863910877 | O13: 0.3490649476 | P13: 0.03732614009 | Q13: 3.064770544 | R13: 2.445323686 | S13: 1.711962646 | T13: AC=b | U13: =$U$1 -> -1.55 | V13: 0 | X13: =$U$1 -> -1.55 | Y13: 0 | AA13: 18 | AB13: -0.6464963095 | AC13: 0.2935661447 | AD13: 0.9510565163 | AE13: 0.3090169944 | AF13: 0.7132923872 | AG13: 0.2317627458 | AH13: -3.5 | AI13: =AI10+0.25 -> -0.5 | AJ13: =AJ10+10 -> 30 | AK13: =AK10+0.5 -> 1.5 | AL13: =COS(AK13) -> 0.07073720167 | AM13: =SIN(AK13) -> 0.9974949866 | AN13: =$U$1+Rmoo_*COS(AK13*dr_) -> -0.6003255413 | AO13: =Rmoo_*SIN(AK13*dr_) -> 0.02486810089 | AP13: 0.905 | AQ13: - | AR13: 34.24900358 | AS13: 0.6169410436 | AT13: 0.5583316445 | AU13: 0.1062350138
A14: 8 | B14: -1.366666667 | C14: -1.776666667 | F14: 0.4365765624 | G14: 0.4133698665 | H14: 0.8608943089 | I14: 0.9157723577 | J14: 0.4016976336 | K14: 0.3940103476 | L14: 0.3458192067 | M14: 0.04819114093 | N14: 0.4133698665 | O14: 0.367863589 | P14: 0.04550627752 | Q14: 3.047895235 | R14: 2.98248146 | S14: 2.141024244 | U14: =(U15+U13)/2 -> -1.178225806 | V14: =(V15+V13)/2 -> 0.2956500448 | X14: =(X15+X13)/2 -> -1.10766129 | Y14: =(Y15+Y13)/2 -> 0.1730938067 | AA14: 20 | AB14: -0.6572920103 | AC14: 0.3249191362 | AD14: 0.9396926208 | AE14: 0.3420201433 | AF14: 0.7047694656 | AG14: 0.2565151075 | AH14: 3.5 | AI14: =AI11+0.25 -> -0.5 | AJ14: =AJ13 -> 30 | AL14: 0 | AM14: 0 | AN14: =$U$1 -> -1.55 | AO14: 0 | AP14: 0.895 | AQ14: - | AR14: 33.96821794 | AS14: 0.6307107591 | AT14: 0.5644861294 | AU14: 0.1065254881
A15: 9 | B15: -1.35 | C15: -1.755 | F15: 0.4636090276 | G15: 0.4387631888 | H15: 0.8497222222 | I15: 0.9052777778 | J15: 0.4248201326 | K15: 0.4184071474 | L15: 0.3609791071 | M15: 0.05742804033 | N15: 0.4387631888 | O15: 0.3845802256 | P15: 0.05418296323 | Q15: 3.02998165 | R15: 3.552688584 | S15: 2.608840992 | T15: Point C | U15: =MIN(1,$U$1+$U$8) -> -0.8064516129 | V15: =$U$10 -> 0.5913000897 | W15: Point D | X15: =MIN(C3,$U$1+$X$8) -> -0.6653225806 | Y15: =$X$10 -> 0.3461876134 | AA15: 22 | AB15: -0.6691753382 | AC15: 0.3558762637 | AD15: 0.9271838546 | AE15: 0.3746065934 | AF15: 0.6953878909 | AG15: 0.2809549451 | AP15: 0.885 | AQ15: - | AR15: 33.67142581 | AS15: 0.6437273482 | AT15: 0.5696987031 | AU15: 0.1065698201
A16: 10 | B16: -1.333333333 | C16: -1.733333333 | F16: 0.4892715783 | G16: 0.4628319512 | H16: 0.8385416667 | I16: 0.8947916667 | J16: 0.4464839003 | K16: 0.4415675994 | L16: 0.3743953539 | M16: 0.0671722455 | N16: 0.4628319512 | O16: 0.3995100733 | P16: 0.06332187792 | Q16: 3.01109853 | R16: 4.153756957 | S16: 3.11405684 | T16: AB=c | U16: =U1 -> -1.55 | V16: 0 | X16: =U1 -> -1.55 | Y16: 0 | AA16: 24 | AB16: -0.6821318152 | AC16: 0.3863998109 | AD16: 0.9135454576 | AE16: 0.4067366431 | AF16: 0.6851590932 | AG16: 0.3050524823 | AH16: -3.5 | AI16: =AI13+0.25 -> -0.25 | AJ16: =AJ13+10 -> 40 | AK16: =AK13+0.5 -> 2 | AL16: =COS(AK16) -> -0.4161468365 | AM16: =SIN(AK16) -> 0.9092974268 | AN16: =$U$1+Rmoo_*COS(AK16*dr_) -> -0.6005787143 | AO16: =Rmoo_*SIN(AK16*dr_) -> 0.03315452187 | AP16: 0.875 | AQ16: - | AR16: 33.35776098 | AS16: 0.6560819455 | AT16: 0.5740717023 | AU16: 0.1063874813
A17: 11 | B17: -1.316666667 | C17: -1.711666667 | F17: 0.5137714284 | G17: 0.4857729139 | H17: 0.8273523207 | I17: 0.884314346 | J17: 0.4668919977 | K17: 0.4636787142 | L17: 0.3862841778 | M17: 0.07739453639 | N17: 0.4857729139 | O17: 0.4128792916 | P17: 0.0728936223 | Q17: 2.991304495 | R17: 4.783820669 | S17: 3.655740281 | U17: =(U18+U16)/2 -> -0.775 | V17: =(V18+V16)/2 -> 0 | X17: =(X18+X16)/2 -> -0.775 | Y17: =(Y18+Y16)/2 -> 0 | AA17: 26 | AB17: -0.696145656 | AC17: 0.4164525894 | AD17: 0.8987940463 | AE17: 0.4383711468 | AF17: 0.6740955347 | AG17: 0.3287783601 | AH17: 3.5 | AI17: =AI14+0.25 -> -0.25 | AJ17: =AJ16 -> 40 | AL17: 0 | AM17: 0 | AN17: =$U$1 -> -1.55 | AO17: 0 | AP17: 0.865 | AQ17: - | AR17: 33.02628091 | AS17: 0.667847907 | AT17: 0.5776884396 | AU17: 0.1059938927
A18: 12 | B18: -1.3 | C18: -1.69 | F18: 0.5372695368 | G18: 0.5077387755 | H18: 0.8161538462 | I18: 0.8738461538 | J18: 0.4862025292 | K18: 0.4848857569 | L18: 0.3968160642 | M18: 0.08806969273 | N18: 0.5077387755 | O18: 0.4248662101 | P18: 0.08287256532 | Q18: 2.970650396 | R18: 5.44126107 | S18: 4.232450986 | T18: Point B | U18: 0 | V18: 0 | X18: 0 | Y18: 0 | AA18: 28 | AB18: -0.7111997868 | AC18: 0.4459979846 | AD18: 0.8829475929 | AE18: 0.4694715628 | AF18: 0.6622106946 | AG18: 0.3521036721 | AP18: 0.855 | AQ18: - | AR18: 32.67595706 | AS18: 0.6790853318 | AT18: 0.5806179587 | AU18: 0.1054013749
A19: 13 | B19: -1.283333333 | C19: -1.668333333 | F19: 0.5598939087 | G19: 0.5288508271 | H19: 0.8049458874 | I19: 0.8633874459 | J19: 0.5045414931 | K19: 0.5053042526 | L19: 0.4061285999 | M19: 0.09917565268 | N19: 0.5288508271 | O19: 0.4356147911 | P19: 0.09323603602 | Q19: 2.949180965 | R19: 6.124654273 | S19: 4.84315965 | T19: BC=a | U19: 0 | V19: 0 | X19: 0 | Y19: 0 | AA19: 30 | AB19: -0.7272758664 | AC19: 0.475 | AD19: 0.8660254038 | AE19: 0.5 | AF19: 0.6495190528 | AG19: 0.375 | AH19: -3.5 | AI19: =AI16+0.25 -> 0 | AJ19: =AJ16+10 -> 50 | AK19: =AK16+0.5 -> 2.5 | AL19: =COS(AK19) -> -0.8011436155 | AM19: =SIN(AK19) -> 0.5984721441 | AN19: =$U$1+Rmoo_*COS(AK19*dr_) -> -0.6009041895 | AO19: =Rmoo_*SIN(AK19*dr_) -> 0.041438418 | AP19: 0.845 | AQ19: - | AR19: 32.30566358 | AS19: 0.6898442027 | AT19: 0.5829183513 | AU19: 0.1046198008
A20: 14 | B20: -1.266666667 | C20: -1.646666667 | F20: 0.5817483547 | G20: 0.5492072844 | H20: 0.7937280702 | I20: 0.8529385965 | J20: 0.5220112553 | K20: 0.5250278901 | L20: 0.4143349862 | M20: 0.1106929039 | N20: 0.5492072844 | O20: 0.4452435474 | P20: 0.103963737 | Q20: 2.926936013 | R20: 6.83273309 | S20: 5.487199366 | U20: =(U21+U19)/2 -> -0.4032258065 | V20: =(V21+V19)/2 -> 0.2956500448 | X20: =(X21+X19)/2 -> -0.3326612903 | Y20: =(Y21+Y19)/2 -> 0.1730938067 | AA20: 32 | AB20: -0.7443543087 | AC20: 0.503423301 | AD20: 0.8480480962 | AE20: 0.5299192642 | AF20: 0.6360360721 | AG20: 0.3974394482 | AH20: 3.5 | AI20: =AI17+0.25 -> 0 | AJ20: =AJ19 -> 50 | AL20: 0 | AM20: 0 | AN20: =$U$1 -> -1.55 | AO20: 0 | AP20: 0.835 | AQ20: - | AR20: 31.91416396 | AS20: 0.7001666288 | AT20: 0.5846391351 | AU20: 0.1036570512
A21: 15 | B21: -1.25 | C21: -1.625 | F21: 0.6029184695 | G21: 0.5688889752 | H21: 0.7825 | I21: 0.8425 | J21: 0.538696343 | K21: 0.5441339187 | L21: 0.4215298884 | M21: 0.1226040303 | N21: 0.5688889752 | O21: 0.453851669 | P21: 0.1150373062 | Q21: 2.903951317 | R21: 7.564358678 | S21: 6.163318671 | T21: Point C | U21: =MIN(1,$U$1+$U$8) -> -0.8064516129 | V21: =$U$10 -> 0.5913000897 | W21: Point D | X21: =MIN(C3,$U$1+$X$8) -> -0.6653225806 | Y21: =$X$10 -> 0.3461876134 | AA21: 34 | AB21: -0.7624143061 | AC21: 0.5312332583 | AD21: 0.8290375726 | AE21: 0.5591929035 | AF21: 0.6217781794 | AG21: 0.4193946776 | AP21: 0.825 | AQ21: - | AR21: 31.5000952 | AS21: 0.7100884852 | AT21: 0.5858230003 | AU21: 0.1025193349
A22: 16 | B22: -1.233333333 | C22: -1.603333333 | F22: 0.6234758397 | G22: 0.587963342 | H22: 0.7712612613 | I22: 0.8320720721 | J22: 0.5546675282 | K22: 0.5626869453 | L22: 0.4277935774 | M22: 0.1348933679 | N22: 0.587963342 | O22: 0.4615233595 | P22: 0.1264399825 | Q22: 2.880259303 | R22: 8.318498903 | S22: 6.870654183 | AA22: 36 | AB22: -0.7814338553 | AC22: 0.5583959897 | AD22: 0.8090169944 | AE22: 0.5877852523 | AF22: 0.6067627458 | AG22: 0.4408389392 | AH22: -3.5 | AI22: =AI19+0.25 -> 0.25 | AJ22: =AJ19+10 -> 60 | AK22: =AK19+0.5 -> 3 | AL22: =COS(AK22) -> -0.9899924966 | AM22: =SIN(AK22) -> 0.1411200081 | AN22: =$U$1+Rmoo_*COS(AK22*dr_) -> -0.601301942 | AO22: =Rmoo_*SIN(AK22*dr_) -> 0.04971915843 | AP22: 0.815 | AQ22: - | AR22: 31.06194886 | AS22: 0.7196406376 | AT22: 0.5865071196 | AU22: 0.101211412
A23: 17 | B23: -1.216666667 | C23: -1.581666667 | F23: 0.6434810813 | G23: 0.6064873303 | H23: 0.7600114155 | I23: 0.8216552511 | J23: 0.569984779 | K23: 0.5807416759 | L23: 0.4331949387 | M23: 0.1475467372 | N23: 0.6064873303 | O23: 0.4683309867 | P23: 0.1381563435 | Q23: 2.855889573 | R23: 9.09421151 | S23: 7.608680845 | AA23: 38 | AB23: -0.8013897841 | AC23: 0.5848784016 | AD23: 0.7880107536 | AE23: 0.6156614753 | AF23: 0.5910080652 | AG23: 0.4617461065 | AH23: 3.5 | AI23: =AI20+0.25 -> 0.25 | AJ23: =AJ22 -> 60 | AL23: 0 | AM23: 0 | AN23: =$U$1 -> -1.55 | AO23: 0 | AP23: 0.805 | AQ23: - | AR23: 30.59804824 | AS23: 0.7288498732 | AT23: 0.586724148 | AU23: 0.09973674322
A24: 18 | B24: -1.2 | C24: -1.56 | F24: 0.6629860824 | G24: 0.6245095208 | H24: 0.74875 | I24: 0.81125 | J24: 0.584699442 | K24: 0.5983449393 | L24: 0.4377937072 | M24: 0.1605512321 | N24: 0.6245095208 | O24: 0.4743374223 | P24: 0.1501720984 | Q24: 2.830869323 | R24: 9.890630799 | S24: 8.376252367 | AA24: 40 | AB24: -0.822257779 | AC24: 0.6106482292 | AD24: 0.7660444431 | AE24: 0.6427876097 | AF24: 0.5745333323 | AG24: 0.4820907073 | AP24: 0.795 | AQ24: - | AR24: 30.10652065 | AS24: 0.7377396197 | AT24: 0.5865029977 | AU24: 0.09809758117
A25: 19 | B25: -1.183333333 | C25: -1.538333333 | F25: 0.6820356916 | G25: 0.6420717337 | H25: 0.7374765258 | I25: 0.8008568075 | J25: 0.5988558874 | K25: 0.6155372117 | L25: 0.4416421593 | M25: 0.1738950524 | N25: 0.6420717337 | O25: 0.4795978141 | P25: 0.1624739196 | Q25: 2.805223682 | R25: 10.70695692 | S25: 9.172602003 | AA25: 42 | AB25: -0.8440124158 | AC25: 0.635674076 | AD25: 0.7431448255 | AE25: 0.6691306064 | AF25: 0.5573586191 | AG25: 0.5018479548 | AH25: -3.5 | AI25: =AI22+0.25 -> 0.5 | AJ25: =AJ22+10 -> 70 | AK25: =AK22+0.5 -> 3.5 | AL25: =COS(AK25) -> -0.9364566873 | AM25: =SIN(AK25) -> -0.3507832277 | AN25: =$U$1+Rmoo_*COS(AK25*dr_) -> -0.6017719415 | AO25: =Rmoo_*SIN(AK25*dr_) -> 0.05799611256 | AP25: 0.785 | AQ25: - | AR25: 29.5852634 | AS25: 0.7463305085 | AT25: 0.5858694491 | AU25: 0.09629501094
A26: 20 | B26: -1.166666667 | C26: -1.516666667 | F26: 0.7006690108 | G26: 0.6592102559 | H26: 0.7261904762 | I26: 0.7904761905 | J26: 0.6124927692 | K26: 0.6323537822 | L26: 0.4447864157 | M26: 0.1875673665 | N26: 0.6592102559 | O26: 0.4841609509 | P26: 0.1750493051 | Q26: 2.778975982 | R26: 11.54244715 | S26: 9.99728799 | AA26: 44 | AB26: -0.8666271897 | AC26: 0.6599254519 | AD26: 0.7193398003 | AE26: 0.6946583705 | AF26: 0.5395048503 | AG26: 0.5209937778 | AH26: 3.5 | AI26: =AI23+0.25 -> 0.5 | AJ26: =AJ25 -> 70 | AL26: 0 | AM26: 0 | AN26: =$U$1 -> -1.55 | AO26: 0 | AP26: 0.775 | AQ26: - | AR26: 29.03190156 | AS26: 0.754640822 | AT26: 0.584846637 | AU26: 0.0943289444
A27: 21 | B27: -1.15 | C27: -1.495 | F27: 0.7189204001 | G27: 0.6759567943 | H27: 0.7148913043 | I27: 0.7801086957 | J27: 0.6256440066 | K27: 0.6488256611 | L27: 0.4472674599 | M27: 0.2015582012 | N27: 0.6759567943 | O27: 0.4880703299 | P27: 0.1878864644 | Q27: 2.752147988 | R27: 12.39640872 | S27: 10.84923037 | AA27: 46 | AB27: -0.8900745481 | AC27: 0.6833728103 | AD27: 0.6946583705 | AE27: 0.7193398003 | AF27: 0.5209937778 | AG27: 0.5395048503 | AP27: 0.765 | AQ27: - | AR27: 28.4437351 | AS27: 0.7626868525 | AT27: 0.5834554422 | AU27: 0.09219806687
A28: 22 | B28: -1.133333333 | C28: -1.473333333 | F28: 0.7368202704 | G28: 0.6923392259 | H28: 0.7035784314 | I28: 0.769754902 | J28: 0.6383395577 | K28: 0.6649802941 | L28: 0.4491219447 | M28: 0.2158583494 | N28: 0.6923392259 | O28: 0.4913650036 | P28: 0.2009742223 | Q28: 2.724760082 | R28: 13.26819284 | S28: 11.72772337 | T28: Point C' | U28: =U21 -> -0.8064516129 | V28: =-$U$10 -> -0.5913000897 | W28: Point D' | X28: =X21 -> -0.6653225806 | Y28: =-$X$10 -> -0.3461876134 | AA28: 48 | AB28: -0.914325924 | AC28: 0.7059875842 | AD28: 0.6691306064 | AE28: 0.7431448255 | AF28: 0.5018479548 | AG28: 0.5573586191 | AH28: -3.5 | AI28: =AI25+0.25 -> 0.75 | AJ28: =AJ25+10 -> 80 | AK28: =AK25+0.5 -> 4 | AL28: =COS(AK28) -> -0.6536436209 | AM28: =SIN(AK28) -> -0.7568024953 | AN28: =$U$1+Rmoo_*COS(AK28*dr_) -> -0.6023141523 | AO28: =Rmoo_*SIN(AK28*dr_) -> 0.06626865006 | AP28: 0.755 | AQ28: - | AR28: 27.81767167 | AS28: 0.7704831932 | AT28: 0.5817148109 | AU28: 0.08989973118
A29: 23 | B29: -1.116666667 | C29: -1.451666667 | F29: 0.7543957151 | G29: 0.7083821952 | H29: 0.6922512438 | I29: 0.7594154229 | J29: 0.6506060371 | K29: 0.6808421329 | L29: 0.4503828384 | M29: 0.2304592945 | N29: 0.7083821952 | O29: 0.4940802588 | P29: 0.2143019365 | Q29: 2.696831423 | R29: 14.15718968 | S29: 12.63237536 | T29: sector A C' C | V29: =Rmoo_^2*pi_*(2*U6)/(2*pi_) -> 0.6063286586 | AA29: 50 | AB29: -0.9393517708 | AC29: 0.727742221 | AD29: 0.6427876097 | AE29: 0.7660444431 | AF29: 0.4820907073 | AG29: 0.5745333323 | AH29: 3.5 | AI29: =AI26+0.25 -> 0.75 | AJ29: =AJ28 -> 80 | AL29: 0 | AM29: 0 | AN29: =$U$1 -> -1.55 | AO29: 0 | AP29: 0.745 | AQ29: - | AR29: 27.15014003 | AS29: 0.7780429764 | AT29: 0.5796420174 | AU29: 0.08742978856
A30: 24 | B30: -1.1 | C30: -1.43 | F30: 0.7716710206 | G30: 0.7241075952 | H30: 0.6809090909 | I30: 0.7490909091 | J30: 0.6624672142 | K30: 0.6964330961 | L30: 0.4510799486 | M30: 0.2453531475 | N30: 0.7241075952 | O30: 0.4962481677 | P30: 0.2278594275 | Q30: 2.668380079 | R30: 15.06282409 | S30: 13.56215274 | T30: triangle A C' C | V30: =U8*U10 -> 0.439660228 | AA30: 52 | AB30: -0.9651215984 | AC30: 0.7486102159 | AD30: 0.6156614753 | AE30: 0.7880107536 | AF30: 0.4617461065 | AG30: 0.5910080652 | AP30: 0.735 | AQ30: - | AR30: 26.43697673 | AS30: 0.7853780705 | AT30: 0.5772528819 | AU30: 0.08478233891
A31: 25 | B31: -1.083333333 | C31: -1.408333333 | F31: 0.7886680822 | G31: 0.7395349577 | H31: 0.6695512821 | I31: 0.7387820513 | J31: 0.6739444196 | K31: 0.7117729442 | L31: 0.4512403502 | M31: 0.260532594 | N31: 0.7395349577 | O31: 0.4978980408 | P31: 0.2416369169 | Q31: 2.639423143 | R31: 15.98455199 | S31: 14.51638998 | T31: segment C' F C | V31: =V29-V30 -> 0.1666684306 | AA31: 54 | AB31: -0.9916040103 | AC31: 0.7685661447 | AD31: 0.5877852523 | AE31: 0.8090169944 | AF31: 0.4408389392 | AG31: 0.6067627458 | AH31: -3.5 | AI31: =AI28+0.25 -> 1 | AJ31: =AJ28+10 -> 90 | AK31: =AK28+0.5 -> 4.5 | AL31: =COS(AK31) -> -0.2107957994 | AM31: =SIN(AK31) -> -0.9775301177 | AN31: =$U$1+Rmoo_*COS(AK31*dr_) -> -0.602928533 | AO31: =Rmoo_*SIN(AK31*dr_) -> 0.07453614094 | AP31: 0.725 | AQ31: - | AR31: 25.67327497 | AS31: 0.7924992438 | AT31: 0.5745619518 | AU31: 0.08194937209
A32: 26 | B32: -1.066666667 | C32: -1.386666667 | F32: 0.8054067464 | G32: 0.7546817735 | H32: 0.6581770833 | I32: 0.7284895833 | J32: 0.6850568786 | K32: 0.7268795886 | L32: 0.4508887383 | M32: 0.2759908503 | N32: 0.7546817735 | O32: 0.4990568001 | P32: 0.2556249734 | Q32: 2.60997683 | R32: 16.92185723 | S32: 15.49472417 | T32: sector B C C' | V32: =1^2*pi_*(2*U7)/(2*pi_) -> 0.632670001 | AA32: 56 | AB32: -1.018766742 | AC32: 0.7875856939 | AD32: 0.5591929035 | AE32: 0.8290375726 | AF32: 0.4193946776 | AG32: 0.6217781794 | AH32: 3.5 | AI32: =AI29+0.25 -> 1 | AJ32: =AJ31 -> 90 | AL32: 0 | AM32: 0 | AN32: =$U$1 -> -1.55 | AO32: 0 | AP32: 0.715 | AQ32: - | AR32: 24.85317903 | AS32: 0.7994163016 | AT32: 0.5715826557 | AU32: 0.07892025594
A33: 27 | B33: -1.05 | C33: -1.365 | F33: 0.8219050952 | G33: 0.7695637566 | H33: 0.6467857143 | I33: 0.7182142857 | J33: 0.6958219886 | K33: 0.7417693485 | L33: 0.4500477219 | M33: 0.2917216266 | N33: 0.7695637566 | O33: 0.4997492925 | P33: 0.2698144641 | Q33: 2.580056563 | R33: 17.87424891 | S33: 16.49615731 | T33: triangle B C C' | V33: =COS(U7)*U10 -> 0.476854911 | AA33: 58 | AB33: -1.046576699 | AC33: 0.8056456913 | AD33: 0.5299192642 | AE33: 0.8480480962 | AF33: 0.3974394482 | AG33: 0.6360360721 | AP33: 0.705 | AQ33: - | AR33: 23.96959751 | AS33: 0.8061382026 | AT33: 0.5683274329 | AU33: 0.075680999
A34: 28 | B34: -1.033333333 | C34: -1.343333333 | F34: 0.838179685 | G34: 0.7841950636 | H34: 0.6353763441 | I34: 0.7079569892 | J34: 0.7062555496 | K34: 0.7564571657 | L34: 0.4487380691 | M34: 0.3077190966 | N34: 0.7841950636 | O34: 0.4999985526 | P34: 0.2841965111 | Q34: 2.549677046 | R34: 18.84125897 | S34: 17.52005101 | T34: segment C G C' | V34: =V32-V33 -> 0.15581509 | AA34: 60 | AB34: -1.075 | AC34: 0.8227241336 | AD34: 0.5 | AE34: 0.8660254038 | AF34: 0.375 | AG34: 0.6495190528 | AH34: -3.5 | AI34: =AI31+0.25 -> 1.25 | AJ34: =AJ31+10 -> 100 | AK34: =AK31+0.5 -> 5 | AL34: =COS(AK34) -> 0.2836621855 | AM34: =SIN(AK34) -> -0.9589242747 | AN34: =$U$1+Rmoo_*COS(AK34*dr_) -> -0.6036150368 | AO34: =Rmoo_*SIN(AK34*dr_) -> 0.08279795561 | AP34: 0.695 | AQ34: - | AR34: 23.01379251 | AS34: 0.8126731571 | AT34: 0.5648078442 | AU34: 0.07221316963
A35: 29 | B35: -1.016666667 | C35: -1.321666667 | F35: 0.8542457469 | G35: 0.7985884775 | H35: 0.6239480874 | I35: 0.6977185792 | J35: 0.7163719594 | K35: 0.7709567866 | L35: 0.4469789139 | M35: 0.3239778727 | N35: 0.7985884775 | O35: 0.4998260257 | P35: 0.2987624518 | Q35: 2.518852329 | R35: 19.82244018 | S35: 18.56605547 | T35: Sun free | V35: =IF(OR(U4=1,U5=1),IF(U4=1,0,1^2*pi_-Rmoo_^2*pi_),IF(Rmoo_>=1,1^2*pi_-V31-V34,1^2*pi_-V31-V34)) -> 2.819109133 | AA35: 62 | AB35: -1.104002015 | AC35: 0.8388002132 | AD35: 0.4694715628 | AE35: 0.8829475929 | AF35: 0.3521036721 | AG35: 0.6622106946 | AH35: 3.5 | AI35: =AI32+0.25 -> 1.25 | AJ35: =AJ34 -> 100 | AL35: 0 | AM35: 0 | AN35: =$U$1 -> -1.55 | AO35: 0 | AP35: 0.685 | AQ35: - | AR35: 21.97477071 | AS35: 0.8190287111 | AT35: 0.5610346671 | AU35: 0.06849226762
A36: 30 | B36: -1 | C36: -1.3 | F36: 0.8701173588 | G36: 0.8127555614 | H36: 0.6125 | I36: 0.6875 | J36: 0.7261843774 | K36: 0.7852809163 | L36: 0.4447879312 | M36: 0.3404929851 | N36: 0.8127555614 | O36: 0.4992517595 | P36: 0.3135038019 | Q36: 2.487595867 | R36: 20.81736428 | S36: 19.63320278 | T36: Sun obsc. % | V36: =100-V35/pi_*100 -> 10.26496927 | AA36: 64 | AB36: =$U$1+Rmoo_*COS(AA36*dr_) -> -1.133547411 | AC36: =Rmoo_*SIN(AA36*dr_) -> 0.853854344 | AD36: 0.4383711468 | AE36: 0.8987940463 | AF36: =AD36*$C$3 -> 0.3287783601 | AG36: =AE36*$C$3 -> 0.6740955347 | AP36: 0.675 | AQ36: =IF(AND(Xmoon_+Rmoo_>=AP36,Xmoon_-Rmoo_<=-AP36),1,"-") -> - | AR36: =rd_*(IFERROR(ACOS((Xmoon_^2+AP36^2-Rmoo_^2)/(2*ABS(Xmoon_)*AP36)),0)) -> 20.8383449 | AS36: =(1+$D$3*SQRT(1-AP36^2))/(1+$D$3) -> 0.8252118188 | AT36: =AS36*AP36 -> 0.5570179777 | AU36: 0.06448518184
A37: 31 | B37: -0.9833333333 | C37: -1.278333333 | F37: 0.8858075915 | G37: 0.8267067889 | H37: 0.6010310734 | I37: 0.6773022599 | J37: 0.7357048652 | K37: 0.7994413514 | L37: 0.4421814849 | M37: 0.3572598665 | N37: 0.8267067889 | O37: 0.4982945678 | P37: 0.328412221 | Q37: 2.455920566 | R37: 21.82562041 | S37: 20.72087262 | T37: pt on curve | U37: =U1 -> -1.55 | V37: =V36 -> 10.26496927 | AA37: 66 | AB37: -1.163600189 | AC37: 0.8678681848 | AD37: 0.4067366431 | AE37: 0.9135454576 | AF37: 0.3050524823 | AG37: 0.6851590932 | AK37: =AK34+0.5 -> 5.5 | AL37: =COS(AK37) -> 0.7086697743 | AM37: =SIN(AK37) -> -0.7055403256 | AN37: =$U$1+Rmoo_*COS(AK37*dr_) -> -0.6043736116 | AO37: =Rmoo_*SIN(AK37*dr_) -> 0.09105346489 | AP37: 0.665 | AQ37: - | AR37: 19.58561483 | AS37: 0.8312289047 | AT37: 0.5527672216 | AU37: 0.06014603275
A38: 32 | B38: -0.9666666667 | C38: =(1+Rmoo_)*B38*2*60/$A$3 -> -1.256666667 | D38: =IF(Rmoo_>=1,IF((ABS(C38)<=(Rmoo_-1)),1,""),"") ->  | E38: =IF(Rmoo_<1,IF(ABS(C38)+Rmoo_<1,1,""),"") ->  | F38: =IF(Rmoo_>=1,IFERROR(ACOS((Rmoo_^2+C38^2-1^2)/(2*Rmoo_*ABS(C38))),0), IFERROR(ACOS((Rmoo_^2+C38^2-1^2)/(2*Rmoo_*ABS(C38))),0)) -> 0.9013286367 | G38: =IFERROR(ACOS((C38^2+1^2-Rmoo_^2)/(2*ABS(C38)*1)),0) -> 0.8404516539 | H38: =Rmoo_*COS(F38) -> 0.5895402299 | I38: 0.6671264368 | J38: 0.7449445062 | K38: =Rmoo_^2*pi_*(2*F38)/(2*pi_) -> 0.8134490946 | L38: 0.4391747554 | M38: 0.3742743392 | N38: 0.8404516539 | O38: 0.496972174 | P38: 0.3434794799 | Q38: =IF(OR(D38=1,E38=1),IF(D38=1,0,1^2*pi_-Rmoo_^2*pi_),IF(Rmoo_>=1,1^2*pi_-M38-P38,1^2*pi_-M38-P38)) -> 2.423838835 | R38: =100-Q38/pi_*100 -> 22.84681365 | S38: =Eclipse_Dimming(C38,Rmoo_,2000,$D$3) -> 21.82871574 | T38: Ecl. dimming | V38: =1-AU3/AT3 -> 0.9125454178 | AA38: 68 | AB38: -1.194123736 | AC38: 0.8808246618 | AD38: 0.3746065934 | AE38: 0.9271838546 | AF38: 0.2809549451 | AG38: 0.6953878909 | AL38: 0 | AM38: 0 | AN38: =$U$1 -> -1.55 | AO38: 0 | AP38: 0.655 | AQ38: - | AR38: 18.19035337 | AS38: 0.8370859181 | AT38: 0.5482912764 | AU38: 0.05540895592
A39: 33 | B39: -0.95 | C39: -1.235 | F39: 0.9166919166 | G39: 0.8539987641 | H39: 0.5780263158 | I39: 0.6569736842 | J39: 0.7539135085 | K39: 0.8273144548 | L39: 0.4357818477 | M39: 0.391532607 | N39: 0.8539987641 | O39: 0.4953013352 | P39: 0.3586974288 | Q39: 2.391362618 | R39: 23.88056373 | S39: 22.95579202 | T39: Ecl.dimming % | V39: =100-V38*100 -> 8.745458221 | AA39: 70 | AB39: -1.225080864 | AC39: 0.8927079897 | AD39: 0.3420201433 | AE39: 0.9396926208 | AF39: 0.2565151075 | AG39: 0.7047694656 | AP39: 0.645 | AQ39: - | AR39: 16.61413546 | AS39: 0.8427883799 | AT39: 0.543598505 | AU39: 0.05017455111
A40: 34 | B40: -0.9333333333 | C40: -1.213333333 | F40: 0.9319081819 | G40: 0.8673559195 | H40: 0.5664880952 | I40: 0.6468452381 | J40: 0.7626212939 | K40: 0.8410471342 | L40: 0.4320158842 | M40: 0.40903125 | N40: 0.8673559195 | O40: 0.4932979524 | P40: 0.374057967 | Q40: 2.358503437 | R40: 24.92650395 | S40: 24.10149268 | T40: pt on curve | U40: =U1 -> -1.55 | V40: =V39 -> 8.745458221 | AA40: 72 | AB40: -1.256433855 | AC40: 0.9035036905 | AD40: 0.3090169944 | AE40: 0.9510565163 | AF40: 0.2317627458 | AG40: 0.7132923872 | AK40: =AK37+0.5 -> 6 | AL40: =COS(AK40) -> 0.9601702867 | AM40: =SIN(AK40) -> -0.2794154982 | AN40: =$U$1+Rmoo_*COS(AK40*dr_) -> -0.6052041994 | AO40: =Rmoo_*SIN(AK40*dr_) -> 0.0993020401 | AP40: 0.635 | AQ40: - | AR40: 14.79622122 | AS40: 0.8483414239 | AT40: 0.5386968042 | AU40: 0.04428153937
A41: 35 | B41: -0.9166666667 | C41: -1.191666667 | F41: 0.9469875974 | G41: 0.8805301801 | H41: 0.5549242424 | I41: 0.6367424242 | J41: 0.7710765754 | K41: 0.8546563066 | L41: 0.4278890845 | M41: 0.4267672222 | N41: 0.8805301801 | O41: 0.4909771679 | P41: 0.3895530122 | Q41: 2.325272419 | R41: 25.98428009 | S41: 25.26545755 | AA41: 74 | AB41: -1.288144512 | AC41: 0.9131986111 | AD41: 0.2756373558 | AE41: 0.9612616959 | AF41: 0.2067280169 | AG41: 0.720946272 | AL41: 0 | AM41: 0 | AN41: =$U$1 -> -1.55 | AO41: 0 | AP41: 0.625 | AQ41: - | AR41: 12.62894054 | AS41: 0.8537498332 | AT41: 0.5335936457 | AU41: 0.03743734681
A42: 36 | B42: -0.9 | C42: -1.17 | F42: 0.9619398191 | G42: 0.8935279222 | H42: 0.5433333333 | I42: 0.6266666667 | J42: 0.7792874238 | K42: 0.8681506867 | L42: 0.4234128336 | M42: 0.4447378532 | N42: 0.8935279222 | O42: 0.4883534522 | P42: 0.40517447 | Q42: 2.29168033 | R42: 27.05354948 | S42: 26.44677453 | AA42: 76 | AB42: -1.320174199 | AC42: 0.92178094 | AD42: 0.2419218956 | AE42: 0.9702957263 | AF42: 0.1814414217 | AG42: 0.7277217947 | AP42: 0.615 | AQ42: - | AR42: 9.880040929 | AS42: 0.859018072 | AT42: 0.5282961143 | AU42: 0.02899770684
A43: 37 | B43: -0.8833333333 | C43: -1.148333333 | F43: 0.9767740638 | G43: 0.906354886 | H43: 0.5317138365 | I43: 0.6166194969 | J43: 0.7872613264 | K43: 0.8815385926 | L43: 0.4185977402 | M43: 0.4629408524 | N43: 0.906354886 | O43: 0.485440683 | P43: 0.420914203 | Q43: 2.257737598 | R43: 28.13398021 | S43: 27.64484141 | AA43: 78 | AB43: -1.352483894 | AC43: 0.9292402207 | AD43: 0.2079116908 | AE43: 0.9781476007 | AF43: 0.1559337681 | AG43: 0.7336107006 | AK43: =AK40+0.5 -> 6.5 | AL43: =COS(AK43) -> 0.9765876257 | AM43: =SIN(AK43) -> 0.2151199881 | AN43: =$U$1+Rmoo_*COS(AK43*dr_) -> -0.6061067371 | AO43: =Rmoo_*SIN(AK43*dr_) -> 0.1075430531 | AP43: 0.605 | AQ43: - | AR43: 5.761714204 | AS43: 0.8641503137 | AT43: 0.5228109398 | AU43: 0.01673492899
A44: 38 | B44: -0.8666666667 | C44: -1.126666667 | F44: 0.9914991723 | G44: 0.9190162152 | H44: 0.5200641026 | I44: 0.6066025641 | J44: 0.7950052385 | K44: 0.894828003 | L44: 0.4134536859 | M44: 0.4813743171 | N44: 0.9190162152 | O44: 0.4822522161 | P44: 0.4367639991 | Q44: 2.223454337 | R44: 29.22525029 | S44: 28.85927528 | AA44: 80 | AB44: -1.385034231 | AC44: 0.9355673654 | AD44: 0.1736481777 | AE44: 0.984807753 | AF44: 0.1302361333 | AG44: 0.7386058148 | AL44: 0 | AM44: 0 | AN44: =$U$1 -> -1.55 | AO44: 0 | AP44: 0.595 | AQ44: - | AR44: 0 | AS44: 0.8691504663 | AT44: 0.5171445275 | AU44: 0
A45: 39 | B45: -0.85 | C45: -1.105 | F45: 1.006123668 | G45: 0.9315164895 | H45: 0.5083823529 | I45: 0.5966176471 | J45: 0.8025256278 | K45: 0.9080266102 | L45: 0.4079898669 | M45: 0.5000367432 | N45: 0.9315164895 | O45: 0.4788009517 | P45: 0.4527155378 | Q45: 2.188840373 | R45: 30.32704701 | S45: 30.08919488 | AA45: 82 | AB45: -1.417785554 | AC45: 0.9407546653 | AD45: 0.139173101 | AE45: 0.9902680687 | AF45: 0.1043798257 | AG45: 0.7427010516 | AP45: =AP44-0.01 -> 0.585 | AQ45: - | AR45: 0 | AS45: 0.8740221944 | AT45: 0.5113029837 | AU45: 0
A46: 40 | B46: -0.8333333333 | C46: -1.083333333 | F46: 1.02065581 | G46: 0.9438597506 | H46: 0.4966666667 | I46: 0.5866666667 | J46: 0.8098285141 | K46: 0.9211418688 | L46: 0.4022148287 | M46: 0.5189270401 | N46: 0.9438597506 | O46: 0.4750993949 | P46: 0.4687603557 | Q46: 2.153905258 | R46: 31.43906625 | S46: 31.33400068 | AA46: 84 | AB46: -1.45069796 | AC46: 0.9447958006 | AD46: 0.1045284633 | AE46: 0.9945218954 | AF46: 0.07839634745 | AG46: 0.7458914215 | AK46: =AK43+0.5 -> 7 | AL46: =COS(AK46) -> 0.7539022543 | AM46: =SIN(AK46) -> 0.6569865987 | AN46: =$U$1+Rmoo_*COS(AK46*dr_) -> -0.6070811559 | AO46: =Rmoo_*SIN(AK46*dr_) -> 0.1157758762 | AP46: 0.575 | AQ46: - | AR46: 0 | AS46: 0.8787689391 | AT46: 0.50529214 | AU46: 0
A47: 41 | B47: -0.8166666667 | C47: -1.061666667 | F47: 1.035103649 | G47: 0.956049522 | H47: 0.484914966 | I47: 0.5767517007 | J47: 0.8169195038 | K47: 0.934181043 | L47: 0.3961364934 | M47: 0.5380445495 | N47: 0.956049522 | O47: 0.4711597132 | P47: 0.4848898088 | Q47: 2.118658295 | R47: 32.56101192 | S47: 32.59327299 | AA47: 86 | AB47: -1.48373135 | AC47: 0.9476858477 | AD47: 0.06975647374 | AE47: 0.9975640503 | AF47: 0.05231735531 | AG47: 0.7481730377 | AL47: 0 | AM47: 0 | AN47: =$U$1 -> -1.55 | AO47: 0 | AP47: 0.565 | AQ47: - | AR47: 0 | AS47: 0.8833939361 | AT47: 0.4991175739 | AU47: 0
A48: 42 | B48: -0.8 | C48: -1.04 | F48: 1.04947507 | G48: 0.9680888235 | H48: 0.473125 | I48: 0.566875 | J48: 0.8238038203 | K48: 0.9471512507 | L48: 0.3897621825 | M48: 0.5573890682 | N48: 0.9680888235 | O48: 0.4669937906 | P48: 0.5010950328 | Q48: 2.083108553 | R48: 33.69259537 | S48: 33.86616776 | AA48: 88 | AB48: -1.516845478 | AC48: 0.9494212857 | AD48: 0.0348994967 | AE48: 0.999390827 | AF48: 0.02617462253 | AG48: 0.7495431203 | AP48: 0.555 | AQ48: - | AR48: 0 | AS48: 0.8879002314 | AT48: 0.4927846284 | AU48: 0
A49: 43 | B49: -0.7833333333 | C49: -1.018333333 | F49: 1.063777848 | G49: 0.97998018 | H49: 0.4612943262 | I49: 0.5570390071 | J49: 0.8304863302 | K49: 0.9600595075 | L49: 0.3830986321 | M49: 0.5769608754 | N49: 0.97998018 | O49: 0.4626132808 | P49: 0.5173668993 | Q49: 2.047264879 | R49: 34.83353494 | S49: 35.15208586 | AA49: 90 | AB49: -1.55 | AC49: 0.95 | AD49: 6.125742275e-17 | AE49: 1 | AF49: 4.594306706e-17 | AG49: 0.75 | AK49: =AK46+0.5 -> 7.5 | AL49: =COS(AK49) -> 0.3466353178 | AM49: =SIN(AK49) -> 0.9379999768 | AN49: =$U$1+Rmoo_*COS(AK49*dr_) -> -0.6081273817 | AO49: =Rmoo_*SIN(AK49*dr_) -> 0.1239998826 | AP49: 0.545 | AQ49: - | AR49: 0 | AS49: 0.892290696 | AT49: 0.4862984293 | AU49: 0
A50: 44 | B50: -0.7666666667 | C50: -0.9966666667 | F50: 1.078019689 | G50: 0.9917256253 | H50: 0.4494202899 | I50: 0.5472463768 | J50: 0.8369715665 | K50: 0.9729127696 | L50: 0.376152004 | M50: 0.5967607656 | N50: 0.9917256253 | O50: 0.4580296572 | P50: 0.533695968 | Q50: 2.01113592 | R50: 35.98355542 | S50: 36.45054955 | AA50: 92 | AB50: -1.583154522 | AC50: 0.9494212857 | AD50: -0.0348994967 | AE50: 0.999390827 | AF50: -0.02617462253 | AG50: 0.7495431203 | AL50: 0 | AM50: 0 | AN50: =$U$1 -> -1.55 | AO50: 0 | AP50: 0.535 | AQ50: - | AR50: 0 | AS50: 0.8965680387 | AT50: 0.4796639007 | AU50: 0
A51: 45 | B51: -0.75 | C51: -0.975 | F51: 1.092208285 | G51: 1.0033267 | H51: 0.4375 | I51: 0.5375 | J51: 0.8432637488 | K51: 0.9857179773 | L51: 0.3689278901 | M51: 0.6167900872 | N51: 1.0033267 | O51: 0.453254265 | P51: 0.5500724348 | Q51: 1.974730132 | R51: 37.14238766 | S51: 37.76076613 | AA51: 94 | AB51: -1.61626865 | AC51: 0.9476858477 | AD51: -0.06975647374 | AE51: 0.9975640503 | AF51: -0.05231735531 | AG51: 0.7481730377 | AP51: 0.525 | AQ51: - | AR51: 0 | AS51: 0.9007348177 | AT51: 0.4728857793 | AU51: 0
A52: 46 | B52: -0.7333333333 | C52: -0.9533333333 | F52: 1.106351357 | G52: 1.014784444 | H52: 0.425530303 | I52: 0.5278030303 | J52: 0.8493668002 | K52: 0.9984820994 | L52: 0.3614313119 | M52: 0.6370507875 | N52: 1.014784444 | O52: 0.448298371 | P52: 0.5664860726 | Q52: 1.938055794 | R52: 38.3097681 | S52: 39.08214541 | AA52: 96 | AB52: -1.64930204 | AC52: 0.9447958006 | AD52: -0.1045284633 | AE52: 0.9945218954 | AF52: -0.07839634745 | AG52: 0.7458914215 | AK52: =AK49+0.5 -> 8 | AL52: =COS(AK52) -> -0.1455000338 | AM52: =SIN(AK52) -> 0.9893582466 | AN52: =$U$1+Rmoo_*COS(AK52*dr_) -> -0.6092453347 | AO52: =Rmoo_*SIN(AK52*dr_) -> 0.1322144459 | AP52: 0.515 | AQ52: - | AR52: 0 | AS52: 0.9047934515 | AT52: 0.4659686275 | AU52: 0
A53: 47 | B53: -0.7166666667 | C53: -0.9316666667 | F53: 1.120456708 | G53: 1.026099383 | H53: 0.4135077519 | I53: 0.5181589147 | J53: 0.8552843615 | K53: 1.011212179 | L53: 0.3536667136 | M53: 0.6575454653 | N53: 1.026099383 | O53: 0.4431732166 | P53: 0.5829261668 | Q53: 1.901121021 | R53: 39.4854384 | S53: 40.41410857 | AA53: 98 | AB53: -1.682214446 | AC53: 0.9407546653 | AD53: -0.139173101 | AE53: 0.9902680687 | AF53: -0.1043798257 | AG53: 0.7427010516 | AL53: 0 | AM53: 0 | AN53: =$U$1 -> -1.55 | AO53: 0 | AP53: 0.505 | AQ53: - | AR53: 0 | AS53: 0.9087462286 | AT53: 0.4589168454 | AU53: 0
A54: 48 | B54: -0.7 | C54: -0.91 | F54: 1.13453228 | G54: 1.037271513 | H54: 0.4014285714 | I54: 0.5085714286 | J54: 0.8610198035 | K54: 1.023915382 | L54: 0.3456379497 | M54: 0.6782774326 | N54: 1.037271513 | O54: 0.4378900715 | P54: 0.5993814417 | Q54: 1.863933779 | R54: 40.66914508 | S54: 41.75590882 | AA54: 100 | AB54: -1.714965769 | AC54: 0.9355673654 | AD54: -0.1736481777 | AE54: 0.984807753 | AF54: -0.1302361333 | AG54: 0.7386058148 | AP54: 0.495 | AQ54: - | AR54: 0 | AS54: 0.9125953159 | AT54: 0.4517346814 | AU54: 0
A55: 49 | B55: -0.6833333333 | C55: -0.8883333333 | F55: 1.148586206 | G55: 1.048300268 | H55: 0.3892886179 | I55: 0.4990447154 | J55: 0.8665762355 | K55: 1.036599051 | L55: 0.337348265 | M55: 0.6992507858 | N55: 1.048300268 | O55: 0.4324602909 | P55: 0.6158399771 | Q55: 1.826501891 | R55: 41.86063911 | S55: 43.10698662 | AA55: 102 | AB55: -1.747516106 | AC55: 0.9292402207 | AD55: -0.2079116908 | AE55: 0.9781476007 | AF55: -0.1559337681 | AG55: 0.7336107006 | AK55: =AK52+0.5 -> 8.5 | AL55: =COS(AK55) -> -0.6020119027 | AM55: =SIN(AK55) -> 0.7984871126 | AN55: =$U$1+Rmoo_*COS(AK55*dr_) -> -0.6104349298 | AO55: =Rmoo_*SIN(AK55*dr_) -> 0.1404189406 | AP55: 0.485 | AQ55: - | AR55: 0 | AS55: 0.9163427672 | AT55: 0.4444262421 | AU55: 0
A56: 50 | B56: -0.6666666667 | C56: -0.8666666667 | F56: 1.162626878 | G56: 1.059184491 | H56: 0.3770833333 | I56: 0.4895833333 | J56: 0.8719565125 | K56: 1.049270757 | L56: 0.3288002683 | M56: 0.720470489 | N56: 1.059184491 | O56: 0.4268953759 | P56: 0.6322891147 | Q56: 1.78883305 | R56: 43.05967555 | S56: 44.46673386 | AA56: 104 | AB56: -1.779825801 | AC56: 0.92178094 | AD56: -0.2419218956 | AE56: 0.9702957263 | AF56: -0.1814414217 | AG56: 0.7277217947 | AL56: 0 | AM56: 0 | AN56: =$U$1 -> -1.55 | AO56: 0 | AP56: 0.475 | AQ56: - | AR56: 0 | AS56: 0.9199905302 | AT56: 0.4369955019 | AU56: 0
A57: 51 | B57: -0.65 | C57: -0.845 | F57: 1.176663012 | G57: 1.069922389 | H57: 0.3648076923 | I57: 0.4801923077 | J57: 0.8771632389 | K57: 1.061938368 | L57: 0.319995897 | M57: 0.7419424711 | N57: 1.069922389 | O57: 0.4212070399 | P57: 0.6487153494 | Q57: 1.750934833 | R57: 44.26601326 | S57: 45.83430336 | AA57: 106 | AB57: -1.811855488 | AC57: 0.9131986111 | AD57: -0.2756373558 | AE57: 0.9612616959 | AF57: -0.2067280169 | AG57: 0.720946272 | AP57: 0.465 | AQ57: - | AR57: 0 | AS57: 0.9235404533 | AT57: 0.4294463108 | AU57: 0
A58: 52 | B58: -0.6333333333 | C58: -0.8233333333 | F58: 1.190703725 | G58: 1.080511487 | H58: 0.3524561404 | I58: 0.470877193 | J58: 0.8821987696 | K58: 1.074610112 | L58: 0.3109363734 | M58: 0.7636737387 | N58: 1.080511487 | O58: 0.4154072803 | P58: 0.6651042063 | Q58: 1.712814709 | R58: 45.47941451 | S58: 47.20921647 | AA58: 108 | AB58: -1.843566145 | AC58: 0.9035036905 | AD58: -0.3090169944 | AE58: 0.9510565163 | AF58: -0.2317627458 | AG58: 0.7132923872 | AK58: =AK55+0.5 -> 9 | AL58: =COS(AK58) -> -0.9111302619 | AM58: =SIN(AK58) -> 0.4121184852 | AN58: =$U$1+Rmoo_*COS(AK58*dr_) -> -0.6116960764 | AO58: =Rmoo_*SIN(AK58*dr_) -> 0.1486127418 | AP58: 0.455 | AQ58: - | AR58: 0 | AS58: 0.9269942916 | AT58: 0.4217824027 | AU58: 0
A59: 53 | B59: -0.6166666667 | C59: -0.8016666667 | F59: 1.204758624 | G59: 1.090948555 | H59: 0.3400225225 | I59: 0.4616441441 | J59: 0.8870652085 | K59: 1.087294658 | L59: 0.3016221498 | M59: 0.7856725085 | N59: 1.090948555 | O59: 0.409508459 | P59: 0.6814400965 | Q59: 1.674480049 | R59: 46.69964463 | S59: 48.59084291 | AA59: 110 | AB59: -1.874919136 | AC59: 0.8927079897 | AD59: -0.3420201433 | AE59: 0.9396926208 | AF59: -0.2565151075 | AG59: 0.7047694656 | AL59: 0 | AM59: 0 | AN59: =$U$1 -> -1.55 | AO59: 0 | AP59: 0.445 | AQ59: - | AR59: 0 | AS59: 0.9303537127 | AT59: 0.4140074021 | AU59: 0
A60: 54 | B60: -0.6 | C60: -0.78 | F60: 1.218837899 | G60: 1.101229544 | H60: 0.3275 | I60: 0.4525 | J60: 0.8917644027 | K60: 1.100001204 | L60: 0.2920528419 | M60: 0.8079483622 | N60: 1.101229544 | O60: 0.4035233922 | P60: 0.697706152 | Q60: 1.635938139 | R60: 47.9264717 | S60: 49.97824291 | AA60: 112 | AB60: -1.905876264 | AC60: 0.8808246618 | AD60: -0.3746065934 | AE60: 0.9271838546 | AF60: -0.2809549451 | AG60: 0.6953878909 | AP60: 0.435 | AQ60: - | AR60: 0 | AS60: 0.9336203017 | AT60: 0.4061248313 | AU60: 0
A61: 55 | B61: -0.5833333333 | C61: -0.7583333333 | F61: 1.232952439 | G61: 1.111349484 | H61: 0.3148809524 | I61: 0.443452381 | J61: 0.8962979336 | K61: 1.112739576 | L61: 0.282227147 | M61: 0.8305124289 | N61: 1.111349484 | O61: 0.3974654527 | P61: 0.7138840315 | Q61: 1.597196193 | R61: 49.15966615 | S61: 51.37098716 | AA61: 114 | AB61: -1.936399811 | AC61: 0.8678681848 | AD61: -0.4067366431 | AE61: 0.9135454576 | AF61: -0.3050524823 | AG61: 0.6851590932 | AK61: =AK58+0.5 -> 9.5 | AL61: =COS(AK61) -> -0.9971721562 | AM61: =SIN(AK61) -> -0.07515112046 | AN61: =$U$1+Rmoo_*COS(AK61*dr_) -> -0.6130286785 | AO61: =Rmoo_*SIN(AK61*dr_) -> 0.1567952256 | AP61: 0.425 | AQ61: - | AR61: 0 | AS61: 0.9367955663 | AT61: 0.3981381157 | AU61: 0
A62: 56 | B62: -0.5666666667 | C62: -0.7366666667 | F62: 1.247113957 | G62: 1.12130238 | H62: 0.3021568627 | I62: 0.4345098039 | J62: 0.9006671029 | K62: 1.125520346 | L62: 0.2721427462 | M62: 0.8533776003 | N62: 1.12130238 | O62: 0.3913486863 | P62: 0.7299536941 | Q62: 1.558261359 | R62: 50.39900041 | S62: 52.76842352 | AA62: 116 | AB62: -1.966452589 | AC62: 0.853854344 | AD62: -0.4383711468 | AE62: 0.8987940463 | AF62: -0.3287783601 | AG62: 0.6740955347 | AL62: 0 | AM62: 0 | AN62: =$U$1 -> -1.55 | AO62: 0 | AP62: 0.415 | AQ62: - | AR62: 0 | AS62: 0.9398809407 | AT62: 0.3900505904 | AU62: 0
A63: 57 | B63: -0.55 | C63: -0.715 | F63: 1.261335148 | G63: 1.131081079 | H63: 0.2893181818 | I63: 0.4256818182 | J63: 0.9048729135 | K63: 1.138354971 | L63: 0.2617961861 | M63: 0.8765587851 | N63: 1.131081079 | O63: 0.3851879471 | P63: 0.7458931315 | Q63: 1.519140737 | R63: 51.64424849 | S63: 54.16952265 | AA63: 118 | AB63: -1.995997985 | AC63: 0.8388002132 | AD63: -0.4694715628 | AE63: 0.8829475929 | AF63: -0.3521036721 | AG63: 0.6622106946 | AP63: 0.405 | AQ63: - | AR63: 0 | AS63: 0.9428777898 | AT63: 0.3818655049 | AU63: 0
A64: 58 | B64: -0.5333333333 | C64: -0.6933333333 | F64: 1.275629859 | G64: 1.140677106 | H64: 0.2763541667 | I64: 0.4169791667 | J64: 0.9089160437 | K64: 1.151255948 | L64: 0.2511827358 | M64: 0.9000732119 | N64: 1.140677106 | O64: 0.3789990545 | P64: 0.761678052 | Q64: 1.47984139 | R64: 52.89518557 | S64: 55.57388894 | AA64: 120 | AB64: -2.025 | AC64: 0.8227241336 | AD64: -0.5 | AE64: 0.8660254038 | AF64: -0.375 | AG64: 0.6495190528 | AK64: =AK61+0.5 -> 10 | AL64: =COS(AK64) -> -0.8390715291 | AM64: =SIN(AK64) -> -0.5440211109 | AN64: =$U$1+Rmoo_*COS(AK64*dr_) -> -0.6144326346 | AO64: =Rmoo_*SIN(AK64*dr_) -> 0.1649657688 | AP64: 0.395 | AQ64: - | AR64: 0 | AS64: 0.9457874132 | AT64: 0.3735860282 | AU64: 0
A65: 59 | B65: -0.5166666667 | C65: -0.6716666667 | F65: 1.290013303 | G65: 1.150080482 | H65: 0.2632526882 | I65: 0.4084139785 | J65: 0.9127968132 | K65: 1.164237006 | L65: 0.2402962148 | M65: 0.9239407913 | N65: 1.150080482 | O65: 0.372798978 | P65: 0.777281504 | Q65: 1.440370358 | R65: 54.15158752 | S65: 56.98084244 | AA65: 122 | AB65: -2.053423301 | AC65: 0.8056456913 | AD65: -0.5299192642 | AE65: 0.8480480962 | AF65: -0.3974394482 | AG65: 0.6360360721 | AL65: 0 | AM65: 0 | AN65: =$U$1 -> -1.55 | AO65: 0 | AP65: 0.385 | AQ65: - | AR65: 0 | AS65: 0.9486110484 | AT65: 0.3652152536 | AU65: 0
A66: 60 | B66: -0.5 | C66: -0.65 | F66: 1.30450231 | G66: 1.159279481 | H66: 0.25 | I66: 0.4 | J66: 0.916515139 | K66: 1.177313334 | L66: 0.2291287847 | M66: 0.9481845497 | N66: 1.159279481 | O66: 0.3666060556 | P66: 0.7926734251 | Q66: 1.400734679 | R66: 55.41323038 | S66: 58.38926002 | AA66: 124 | AB66: -2.081233258 | AC66: 0.7875856939 | AD66: -0.5591929035 | AE66: 0.8290375726 | AF66: -0.4193946776 | AG66: 0.6217781794 | AP66: 0.375 | AQ66: - | AR66: 0 | AS66: 0.9513498739 | AT66: 0.3567562027 | AU66: 0
A67: 61 | B67: -0.4833333333 | C67: -0.6283333333 | F67: 1.319115624 | G67: 1.168260354 | H67: 0.2365804598 | I67: 0.3917528736 | J67: 0.9200704789 | K67: 1.190501851 | L67: 0.2176706969 | M67: 0.9728311537 | N67: 1.168260354 | O67: 0.360440254 | P67: 0.8078200997 | Q67: 1.3609414 | R67: 56.67988978 | S67: 59.79876729 | AA67: 126 | AB67: -2.10839599 | AC67: 0.7685661447 | AD67: -0.5877852523 | AE67: 0.8090169944 | AF67: -0.4408389392 | AG67: 0.6067627458 | AK67: =AK64+0.5 -> 10.5 | AL67: =COS(AK67) -> -0.475536928 | AM67: =SIN(AK67) -> -0.87969576 | AN67: =$U$1+Rmoo_*COS(AK67*dr_) -> -0.6159078378 | AO67: =Rmoo_*SIN(AK67*dr_) -> 0.1731237492 | AP67: 0.365 | AQ67: - | AR67: 0 | AS67: 0.9540050125 | AT67: 0.3482118296 | AU67: 0
A68: 62 | B68: -0.4666666667 | C68: -0.6066666667 | F68: 1.333874273 | G68: 1.177006982 | H68: 0.2229761905 | I68: 0.3836904762 | J68: 0.923461758 | K68: 1.203821531 | L68: 0.2059099848 | M68: 0.9979115463 | N68: 1.177006982 | O68: 0.3543234817 | P68: 0.8226835006 | Q68: 1.320997607 | R68: 57.95134022 | S68: 61.20864729 | AA68: 128 | AB68: =$U$1+Rmoo_*COS(AA68*dr_) -> -2.134878402 | AC68: =Rmoo_*SIN(AA68*dr_) -> 0.7486102159 | AD68: =COS(AA68*dr_) -> -0.6156614753 | AE68: =SIN(AA68*dr_) -> 0.7880107536 | AF68: =AD68*$C$3 -> -0.4617461065 | AG68: =AE68*$C$3 -> 0.5910080652 | AL68: 0 | AM68: 0 | AN68: =$U$1 -> -1.55 | AO68: 0 | AP68: 0.355 | AQ68: =IF(AND(Xmoon_+Rmoo_>=AP68,Xmoon_-Rmoo_<=-AP68),1,"-") -> - | AR68: =rd_*(IFERROR(ACOS((Xmoon_^2+AP68^2-Rmoo_^2)/(2*ABS(Xmoon_)*AP68)),0)) -> 0 | AS68: =(1+$D$3*SQRT(1-AP68^2))/(1+$D$3) -> 0.9565775337 | AT68: =AS68*AP68 -> 0.3395850245 | AU68: 0
A69: 63 | B69: -0.45 | C69: -0.585 | F69: 1.348802008 | G69: 1.185500456 | H69: 0.2091666667 | I69: 0.3758333333 | J69: 0.926687275 | K69: 1.217293812 | L69: 0.1938320883 | M69: 1.023461724 | N69: 1.185500456 | O69: 0.3482799675 | P69: 0.837220488 | Q69: 1.280910442 | R69: 59.2273543 | S69: 62.61767335 | AA69: 130 | AB69: -2.160648229 | AC69: 0.727742221 | AD69: -0.6427876097 | AE69: 0.7660444431 | AF69: -0.4820907073 | AG69: 0.5745333323 | AP69: 0.345 | AQ69: - | AR69: 0 | AS69: 0.9590684566 | AT69: 0.3308786175 | AU69: =AT69*AR69/180 *(AQ69<>1)+ AT69*(AQ69=1) -> 0
A70: 64 | B70: =(A70-180*($A$3/180)/2)/60 -> -0.4333333333 | C70: =(1+Rmoo_)*B70*2*60/$A$3 -> -0.5633333333 | D70: =IF(Rmoo_>=1,IF((ABS(C70)<=(Rmoo_-1)),1,""),"") ->  | E70: =IF(Rmoo_<1,IF(ABS(C70)+Rmoo_<1,1,""),"") ->  | F70: =IF(Rmoo_>=1,IFERROR(ACOS((Rmoo_^2+C70^2-1^2)/(2*Rmoo_*ABS(C70))),0), IFERROR(ACOS((Rmoo_^2+C70^2-1^2)/(2*Rmoo_*ABS(C70))),0)) -> 1.363925853 | G70: =IFERROR(ACOS((C70^2+1^2-Rmoo_^2)/(2*ABS(C70)*1)),0) -> 1.193718546 | H70: =Rmoo_*COS(F70) -> 0.1951282051 | I70: =COS(G70) -> 0.3682051282 | J70: 0.9297445797 | K70: =Rmoo_^2*pi_*(2*F70)/(2*pi_) -> 1.230943082 | L70: 0.1814193911 | M70: 1.049523691 | N70: =1^2*pi_*(2*G70)/(2*pi_) -> 1.193718546 | O70: 0.3423367222 | P70: 0.8513818235 | Q70: =IF(OR(D70=1,E70=1),IF(D70=1,0,1^2*pi_-Rmoo_^2*pi_),IF(Rmoo_>=1,1^2*pi_-M70-P70,1^2*pi_-M70-P70)) -> 1.240687139 | R70: =100-Q70/pi_*100 -> 60.50770181 | S70: =Eclipse_Dimming(C70,Rmoo_,2000,$D$3) -> 64.02547877 | AA70: =AA69+2 -> 132 | AB70: -2.185674076 | AC70: 0.7059875842 | AD70: -0.6691306064 | AE70: 0.7431448255 | AF70: -0.5018479548 | AG70: 0.5573586191 | AK70: =AK67+0.5 -> 11 | AL70: =COS(AK70) -> 0.004425697988 | AM70: =SIN(AK70) -> -0.9999902066 | AN70: =$U$1+Rmoo_*COS(AK70*dr_) -> -0.6174541757 | AO70: =Rmoo_*SIN(AK70*dr_) -> 0.1812685456 | AP70: 0.335 | AQ70: - | AR70: 0 | AS70: 0.9614787517 | AT70: 0.3220953818 | AU70: 0
A71: =A70+$A$3/180 -> 65 | B71: -0.4166666667 | C71: -0.5416666667 | F71: 1.379276781 | G71: 1.201635057 | H71: 0.1808333333 | I71: 0.3608333333 | J71: =ABS(H71*TAN(F71)) -> 0.9326303156 | K71: 1.244797294 | L71: =H71*J71 -> 0.1686506487 | M71: =K71-L71 -> 1.076146646 | N71: 1.201635057 | O71: =COS(G71)*J71 -> 0.3365241055 | P71: =N71-O71 -> 0.8651109519 | Q71: 1.200335056 | R71: 61.7921485 | S71: 65.43129617 | AA71: 134 | AB71: -2.209925452 | AC71: 0.6833728103 | AD71: -0.6946583705 | AE71: 0.7193398003 | AF71: -0.5209937778 | AG71: 0.5395048503 | AL71: 0 | AM71: 0 | AN71: =$U$1 -> -1.55 | AO71: 0 | AP71: 0.325 | AQ71: - | AR71: 0 | AS71: 0.963809344 | AT71: 0.3132380368 | AU71: 0
A72: 66 | B72: -0.4 | C72: -0.52 | F72: 1.394890559 | G72: 1.20921901 | H72: 0.16625 | I72: 0.35375 | J72: 0.9353400117 | K72: 1.258888729 | L72: 0.1555002769 | M72: 1.103388452 | N72: 1.20921901 | O72: 0.3308765291 | P72: 0.8783424811 | Q72: 1.15986172 | R72: 63.08045478 | S72: 66.83377878 | AA72: 136 | AB72: -2.23337281 | AC72: 0.6599254519 | AD72: -0.7193398003 | AE72: 0.6946583705 | AF72: -0.5395048503 | AG72: 0.5209937778 | AP72: 0.315 | AQ72: - | AR72: 0 | AS72: 0.966061114 | AT72: 0.3043092509 | AU72: 0
A73: 67 | B73: -0.3833333333 | C73: -0.4983333333 | F73: 1.41080882 | G73: 1.216433604 | H73: 0.1513405797 | I73: 0.3469927536 | J73: 0.9378678099 | K73: 1.27325496 | L73: 0.141937458 | M73: 1.131317502 | N73: 1.216433604 | O73: 0.3254333339 | P73: 0.8910002705 | Q73: 1.119274882 | R73: 64.37237399 | S73: 68.23254982 | AA73: 138 | AB73: -2.255987584 | AC73: 0.635674076 | AD73: -0.7431448255 | AE73: 0.6691306064 | AF73: -0.5573586191 | AG73: 0.5018479548 | AK73: =AK70+0.5 -> 11.5 | AL73: =COS(AK73) -> 0.4833047588 | AM73: =SIN(AK73) -> -0.8754521747 | AN73: =$U$1+Rmoo_*COS(AK73*dr_) -> -0.6190715306 | AO73: =Rmoo_*SIN(AK73*dr_) -> 0.1893995377 | AP73: 0.305 | AQ73: - | AR73: 0 | AS73: 0.9682349005 | AT73: 0.2953116447 | AU73: 0
A74: 68 | B74: -0.3666666667 | C74: -0.4766666667 | F74: 1.427080423 | G74: 1.2232349 | H74: 0.1360606061 | I74: 0.3406060606 | J74: 0.9402061005 | K74: 1.287940081 | L74: 0.1279250119 | M74: 1.160015069 | N74: 1.2232349 | O74: 0.3202398961 | P74: 0.9029950044 | Q74: 1.07858258 | R74: 65.66765018 | S74: 69.62677086 | AA74: 140 | AB74: -2.277742221 | AC74: 0.6106482292 | AD74: -0.7660444431 | AE74: 0.6427876097 | AF74: -0.5745333323 | AG74: 0.4820907073 | AL74: 0 | AM74: 0 | AN74: =$U$1 -> -1.55 | AO74: 0 | AP74: 0.295 | AQ74: - | AR74: 0 | AS74: 0.9703315018 | AT74: 0.286247793 | AU74: 0
A75: 69 | B75: -0.35 | C75: -0.455 | F75: 1.443763209 | G75: 1.229570116 | H75: 0.1203571429 | I75: 0.3346428571 | J75: 0.9423450314 | K75: 1.302996296 | L75: 0.1134179556 | M75: 1.18957834 | N75: 1.229570116 | O75: 0.3153490337 | P75: 0.9142210822 | Q75: 1.037793231 | R75: 66.96601547 | S75: 71.01494801 | AA75: 142 | AB75: -2.298610216 | AC75: 0.5848784016 | AD75: -0.7880107536 | AE75: 0.6156614753 | AF75: -0.5910080652 | AG75: 0.4617461065 | AP75: 0.285 | AQ75: - | AR75: 0 | AS75: 0.9723516777 | AT75: 0.2771202281 | AU75: 0
A76: 70 | B76: -0.3333333333 | C76: -0.4333333333 | F76: 1.460926289 | G76: 1.235375402 | H76: 0.1041666667 | I76: 0.3291666667 | J76: 0.9442718388 | K76: 1.318485976 | L76: 0.09836164988 | M76: 1.220124326 | N76: 1.235375402 | O76: 0.3108228136 | P76: 0.9245525882 | Q76: 0.9969157391 | R76: 68.26718645 | S76: 72.39666714 | AA76: 144 | AB76: -2.318566145 | AC76: 0.5583959897 | AD76: -0.8090169944 | AE76: 0.5877852523 | AF76: -0.6067627458 | AG76: 0.4408389392 | AK76: =AK73+0.5 -> 12 | AL76: =COS(AK76) -> 0.8438539587 | AM76: =SIN(AK76) -> -0.536572918 | AN76: =$U$1+Rmoo_*COS(AK76*dr_) -> -0.6207597793 | AO76: =Rmoo_*SIN(AK76*dr_) -> 0.1975161063 | AP76: 0.275 | AQ76: - | AR76: 0 | AS76: 0.9742961508 | AT76: 0.2679314415 | AU76: 0
A77: 71 | B77: -0.3166666667 | C77: -0.4116666667 | F77: 1.478653067 | G77: 1.240572906 | H77: 0.0874122807 | I77: 0.324254386 | J77: 0.9459699219 | K77: 1.334484393 | L77: 0.08268938835 | M77: 1.251795004 | N77: 1.240572906 | O77: 0.3067348962 | P77: 0.9338380097 | Q77: 0.9559596397 | R77: 69.57085959 | S77: 73.77098456 | AA77: 146 | AB77: -2.337585694 | AC77: 0.5312332583 | AD77: -0.8290375726 | AE77: 0.5591929035 | AF77: -0.6217781794 | AG77: 0.4193946776 | AL77: 0 | AM77: 0 | AN77: =$U$1 -> -1.55 | AO77: 0 | AP77: 0.265 | AQ77: - | AR77: 0 | AS77: 0.976165608 | AT77: 0.2586838861 | AU77: 0
A78: 72 | B78: -0.3 | C78: -0.39 | F78: 1.497045276 | G78: 1.24506684 | H78: 0.07 | I78: 0.32 | J78: 0.9474175426 | K78: 1.351083362 | L78: 0.06631922798 | M78: 1.284764134 | N78: 1.24506684 | O78: 0.3031736136 | P78: 0.9418932259 | Q78: 0.9149352937 | R78: 70.87670508 | S78: 75.13621269 | AA78: 148 | AB78: -2.355645691 | AC78: 0.503423301 | AD78: -0.8480480962 | AE78: 0.5299192642 | AF78: -0.6360360721 | AG78: 0.3974394482 | AP78: 0.255 | AQ78: - | AR78: 0 | AS78: 0.977960702 | AT78: 0.249379979 | AU78: 0
A79: 73 | B79: -0.2833333333 | C79: -0.3683333333 | F79: 1.516228487 | G79: 1.248738128 | H79: 0.05181372549 | I79: 0.3165196078 | J79: 0.9485859676 | K79: 1.368396209 | L79: 0.04914977293 | M79: 1.319246436 | N79: 1.248738128 | O79: 0.3002460585 | P79: 0.9484920699 | Q79: 0.8738541476 | R79: 72.18435857 | S79: 76.491852 | AA79: 150 | AB79: -2.372724134 | AC79: 0.475 | AD79: -0.8660254038 | AE79: 0.5 | AF79: -0.6495190528 | AG79: 0.375 | AK79: =AK76+0.5 -> 12.5 | AL79: =COS(AK79) -> 0.9977982792 | AM79: =SIN(AK79) -> -0.06632189735 | AN79: =$U$1+Rmoo_*COS(AK79*dr_) -> -0.6225187932 | AO79: =Rmoo_*SIN(AK79*dr_) -> 0.2056176332 | AP79: 0.245 | AQ79: - | AR79: 0 | AS79: 0.9796820524 | AT79: 0.2400221028 | AU79: 0
A80: 74 | B80: -0.2666666667 | C80: -0.3466666667 | F80: 1.536359696 | G80: 1.251437014 | H80: 0.03270833333 | I80: 0.3139583333 | J80: 0.9494367619 | K80: 1.386564626 | L80: 0.03105449409 | M80: 1.355510132 | N80: 1.251437014 | O80: 0.2980835834 | P80: 0.9533534304 | Q80: 0.8327290914 | R80: 73.49340977 | S80: 77.83678999 | AA80: 152 | AB80: -2.388800213 | AC80: 0.4459979846 | AD80: -0.8829475929 | AE80: 0.4694715628 | AF80: -0.6622106946 | AG80: 0.3521036721 | AL80: 0 | AM80: 0 | AN80: =$U$1 -> -1.55 | AO80: 0 | AP80: 0.235 | AQ80: - | AR80: 0 | AS80: 0.9813302469 | AT80: 0.230612608 | AU80: 0
A81: 75 | B81: -0.25 | C81: -0.325 | F81: 1.557638052 | G81: 1.252972623 | H81: 0.0125 | I81: 0.3125 | J81: 0.9499177596 | K81: 1.405768342 | L81: 0.01187397199 | M81: 1.39389437 | N81: 1.252972623 | O81: 0.2968492999 | P81: 0.956123323 | Q81: 0.7915749603 | R81: 74.80338645 | S81: 79.16905627 | AA81: 154 | AB81: -2.403854344 | AC81: 0.4164525894 | AD81: -0.8987940463 | AE81: 0.4383711468 | AF81: -0.6740955347 | AG81: 0.3287783601 | AP81: 0.225 | AQ81: - | AR81: 0 | AS81: 0.9829058423 | AT81: 0.2211538145 | AU81: 0
A82: 76 | B82: -0.2333333333 | C82: -0.3033333333 | F82: 1.58032028 | G82: 1.253097944 | H82: -0.009047619048 | I82: 0.3123809524 | J82: 0.9499569151 | K82: 1.426239053 | L82: -0.00859484828 | M82: 1.434833901 | N82: 1.253097944 | O82: 0.2967484459 | P82: 0.9563494985 | Q82: 0.7504092538 | R82: 76.11373158 | S82: 80.48796621 | AA82: 156 | AB82: -2.417868185 | AC82: 0.3863998109 | AD82: -0.9135454576 | AE82: 0.4067366431 | AF82: -0.6851590932 | AG82: 0.3050524823 | AK82: =AK79+0.5 -> 13 | AL82: =COS(AK82) -> 0.9074467815 | AM82: =SIN(AK82) -> 0.4201670368 | AN82: =$U$1+Rmoo_*COS(AK82*dr_) -> -0.6243484385 | AO82: =Rmoo_*SIN(AK82*dr_) -> 0.2137035016 | AP82: 0.215 | AQ82: - | AR82: 0 | AS82: 0.9844093658 | AT82: 0.2116480136 | AU82: 0
A83: 77 | B83: -0.2166666667 | C83: -0.2816666667 | F83: 1.604743467 | G83: 1.251487651 | H83: -0.03224358974 | I83: 0.3139102564 | J83: 0.9494526586 | K83: 1.448280979 | L83: -0.030613762 | M83: 1.478894741 | N83: 1.251487651 | O83: 0.2980429275 | P83: 0.9534447231 | Q83: 0.7092531892 | R83: 77.42376981 | S83: 81.79209979 | AA83: 158 | AB83: -2.430824662 | AC83: 0.3558762637 | AD83: -0.9271838546 | AE83: 0.3746065934 | AF83: -0.6953878909 | AG83: 0.2809549451 | AL83: 0 | AM83: 0 | AN83: =$U$1 -> -1.55 | AO83: 0 | AP83: 0.205 | AQ83: - | AR83: 0 | AS83: 0.9858413154 | AT83: 0.2020974697 | AU83: 0
A84: 78 | B84: -0.2 | C84: -0.26 | F84: 1.631359659 | G84: 1.24770442 | H84: -0.0575 | I84: 0.3175 | J84: 0.9482582718 | K84: 1.472302093 | L84: -0.05452485063 | M84: 1.526826943 | N84: 1.24770442 | O84: 0.3010720013 | P84: 0.9466324185 | Q84: 0.6681332919 | R84: 78.73265679 | S84: 83.07900094 | AA84: 160 | AB84: -2.44270799 | AC84: 0.3249191362 | AD84: -0.9396926208 | AE84: 0.3420201433 | AF84: -0.7047694656 | AG84: 0.2565151075 | AP84: 0.195 | AQ84: - | AR84: 0 | AS84: 0.9872021615 | AT84: 0.1925044215 | AU84: 0
A85: 79 | B85: -0.1833333333 | C85: -0.2383333333 | F85: 1.660790161 | G85: 1.241146086 | H85: -0.08537878788 | I85: 0.3237121212 | J85: 0.9461556228 | K85: 1.49886312 | L85: -0.08078162022 | M85: 1.57964474 | N85: 1.241146086 | O85: 0.3062820437 | P85: 0.9348640427 | Q85: 0.6270838704 | R85: 80.03930046 | S85: 84.34754288 | AA85: 162 | AB85: -2.45350369 | AC85: 0.2935661447 | AD85: -0.9510565163 | AE85: 0.3090169944 | AF85: -0.7132923872 | AG85: 0.2317627458 | AK85: =AK82+0.5 -> 13.5 | AL85: =COS(AK85) -> 0.5949206633 | AM85: =SIN(AK85) -> 0.8037844266 | AN85: =$U$1+Rmoo_*COS(AK85*dr_) -> -0.6262485756 | AO85: =Rmoo_*SIN(AK85*dr_) -> 0.2217730957 | AP85: 0.185 | AQ85: - | AR85: 0 | AS85: 0.9884923471 | AT85: 0.1828710842 | AU85: 0
A86: 80 | B86: -0.1666666667 | C86: -0.2166666667 | F86: 1.693914145 | G86: 1.230959417 | H86: -0.1166666667 | I86: 0.3333333333 | J86: 0.9428090416 | K86: 1.528757516 | L86: -0.1099943882 | M86: 1.638751904 | N86: 1.230959417 | O86: 0.3142696805 | P86: 0.9166897368 | Q86: 0.5861510125 | R86: 81.34223379 | S86: 85.59561296 | AA86: 164 | AB86: -2.463198611 | AC86: 0.261855488 | AD86: -0.9612616959 | AE86: 0.2756373558 | AF86: -0.720946272 | AG86: 0.2067280169 | AL86: 0 | AM86: 0 | AN86: =$U$1 -> -1.55 | AO86: 0 | AP86: 0.175 | AQ86: - | AR86: 0 | AS86: 0.9897122889 | AT86: 0.1731996506 | AU86: 0
A87: 81 | B87: -0.15 | C87: -0.195 | F87: 1.732020188 | G87: 1.2158927 | H87: -0.1525 | I87: 0.3475 | J87: 0.9376799827 | K87: 1.563148219 | L87: -0.1429961974 | M87: 1.706144417 | N87: 1.2158927 | O87: 0.325843794 | P87: 0.8900489056 | Q87: 0.5453993313 | R87: 82.63940009 | S87: 86.81966006 | AA87: 166 | AB87: -2.47178094 | AC87: 0.2298258008 | AD87: -0.9702957263 | AE87: 0.2419218956 | AF87: -0.7277217947 | AG87: 0.1814414217 | AP87: 0.165 | AQ87: - | AR87: 0 | AS87: 0.9908623779 | AT87: 0.1634922924 | AU87: 0
A88: 82 | B88: -0.1333333333 | C88: -0.1733333333 | F88: 1.777080792 | G88: 1.194028786 | H88: -0.1945833333 | I88: 0.3679166667 | J88: 0.9298587669 | K88: 1.603815415 | L88: -0.1809350184 | M88: 1.784750433 | N88: 1.194028786 | O88: 0.342110538 | P88: 0.8519182476 | Q88: 0.5049239728 | R88: 83.92777077 | S88: 88.01719921 | AA88: 168 | AB88: -2.479240221 | AC88: 0.1975161063 | AD88: -0.9781476007 | AE88: 0.2079116908 | AF88: -0.7336107006 | AG88: 0.1559337681 | AK88: =AK85+0.5 -> 14 | AL88: =COS(AK88) -> 0.1367372182 | AM88: =SIN(AK88) -> 0.9906073557 | AN88: =$U$1+Rmoo_*COS(AK88*dr_) -> -0.62821906 | AO88: =Rmoo_*SIN(AK88*dr_) -> 0.2298258008 | AP88: 0.155 | AQ88: - | AR88: 0 | AS88: 0.99194298 | AT88: 0.1537511619 | AU88: 0
A89: 83 | B89: -0.1166666667 | C89: -0.1516666667 | F89: 1.832287482 | G89: 1.162265047 | H89: -0.2455952381 | I89: 0.3972619048 | J89: 0.917705279 | K89: 1.653639453 | L89: -0.2253840465 | M89: 1.879023499 | N89: 1.162265047 | O89: 0.3645693471 | P89: 0.7976956998 | Q89: 0.4648734546 | R89: 85.20261836 | S89: 89.1838541 | AA89: 170 | AB89: -2.485567365 | AC89: 0.1649657688 | AD89: -0.984807753 | AE89: 0.1736481777 | AF89: -0.7386058148 | AG89: 0.1302361333 | AL89: 0 | AM89: 0 | AN89: =$U$1 -> -1.55 | AO89: 0 | AP89: 0.145 | AQ89: - | AR89: 0 | AS89: 0.9929544367 | AT89: 0.1439783933 | AU89: 0
A90: 84 | B90: -0.1 | C90: -0.13 | F90: 1.903199707 | G90: 1.115197653 | H90: -0.31 | I90: 0.44 | J90: 0.8979977728 | K90: 1.717637735 | L90: -0.2783793096 | M90: 1.996017045 | N90: 1.115197653 | O90: 0.39511902 | P90: 0.7200786334 | Q90: 0.4254969754 | R90: 86.45601062 | S90: 90.31205916 | AA90: 172 | AB90: -2.490754665 | AC90: 0.1322144459 | AD90: -0.9902680687 | AE90: 0.139173101 | AF90: -0.7427010516 | AG90: 0.1043798257 | AP90: 0.135 | AQ90: - | AR90: 0 | AS90: 0.9938970656 | AT90: 0.1341761039 | AU90: 0
A91: 85 | B91: -0.08333333333 | C91: -0.1083333333 | F91: 2.000571758 | G91: 1.042379579 | H91: -0.3958333333 | I91: 0.5041666667 | J91: 0.8636063757 | K91: 1.805516012 | L91: -0.3418441904 | M91: 2.147360202 | N91: 1.042379579 | O91: 0.4354015478 | P91: 0.6069780316 | Q91: 0.3872544199 | R91: 87.67330897 | S91: 91.39222688 | AA91: 174 | AB91: -2.494795801 | AC91: 0.0993020401 | AD91: -0.9945218954 | AE91: 0.1045284633 | AF91: -0.7458914215 | AG91: 0.07839634745 | AK91: =AK88+0.5 -> 14.5 | AL91: =COS(AK91) -> -0.3549242668 | AM91: =SIN(AK91) -> 0.9348950555 | AN91: =$U$1+Rmoo_*COS(AK91*dr_) -> -0.6302597416 | AO91: =Rmoo_*SIN(AK91*dr_) -> 0.2378610039 | AP91: 0.125 | AQ91: - | AR91: 0 | AS91: 0.9947711611 | AT91: 0.1243463951 | AU91: 0
A92: 86 | B92: -0.06666666667 | C92: -0.08666666667 | F92: 2.148965055 | G92: 0.919983438 | H92: -0.5191666667 | I92: 0.6058333333 | J92: 0.7955915863 | K92: 1.939440962 | L92: -0.4130446319 | M92: 2.352485594 | N92: 0.919983438 | O92: 0.4819959027 | P92: 0.4379875353 | Q92: 0.3511195245 | R92: 88.82351841 | S92: 92.40435189 | AA92: 176 | AB92: -2.497685848 | AC92: 0.06626865006 | AD92: -0.9975640503 | AE92: 0.06975647374 | AF92: -0.7481730377 | AG92: 0.05231735531 | AL92: 0 | AM92: 0 | AN92: =$U$1 -> -1.55 | AO92: 0 | AP92: 0.115 | AQ92: - | AR92: 0 | AS92: 0.9955769944 | AT92: 0.1144913544 | AU92: 0
A93: 87 | B93: -0.05 | C93: -0.065 | F93: 2.426851863 | G93: 0.6721254849 | H93: -0.7175 | I93: 0.7825 | J93: 0.6226505842 | K93: 2.190233806 | L93: -0.4467517942 | M93: 2.6369856 | N93: 0.6721254849 | O93: 0.4872240821 | P93: 0.1849014028 | Q93: 0.3197056505 | R93: 89.82345308 | S93: 93.29740462 | AA93: 178 | AB93: -2.499421286 | AC93: 0.03315452187 | AD93: -0.999390827 | AE93: 0.0348994967 | AF93: -0.7495431203 | AG93: 0.02617462253 | AP93: 0.105 | AQ93: - | AR93: 0 | AS93: 0.9963148146 | AT93: 0.1046130555 | AU93: 0
A94: 88 | B94: -0.03333333333 | C94: -0.04333333333 | E94: 1 | F94: 0 | G94: 0 | H94: 0.95 | I94: 1 | J94: 0 | K94: 0 | L94: 0 | M94: 0 | N94: 0 | O94: 0 | P94: 0 | Q94: 0.3063052837 | R94: 90.25 | S94: 93.83764078 | AA94: 180 | AB94: -2.5 | AC94: 1.163891032e-16 | AD94: -1 | AE94: 1.225148455e-16 | AF94: -0.75 | AG94: 9.188613412e-17 | AK94: =AK91+0.5 -> 15 | AL94: =COS(AK94) -> -0.7596879129 | AM94: =SIN(AK94) -> 0.6502878402 | AN94: =$U$1+Rmoo_*COS(AK94*dr_) -> -0.632370465 | AO94: =Rmoo_*SIN(AK94*dr_) -> 0.2458780928 | AP94: 0.095 | AQ94: - | AR94: 0 | AS94: 0.9969848483 | AT94: 0.09471356059 | AU94: 0
A95: 89 | B95: -0.01666666667 | C95: -0.02166666667 | E95: 1 | F95: 0 | G95: 0 | H95: 0.95 | I95: 1 | J95: 0 | K95: 0 | L95: 0 | M95: 0 | N95: 0 | O95: 0 | P95: 0 | Q95: 0.3063052837 | R95: 90.25 | S95: 94.02292553 | AA95: 182 | AB95: -2.499421286 | AC95: -0.03315452187 | AD95: -0.999390827 | AE95: -0.0348994967 | AF95: -0.7495431203 | AG95: -0.02617462253 | AL95: 0 | AM95: 0 | AN95: =$U$1 -> -1.55 | AO95: 0 | AP95: 0.085 | AQ95: - | AR95: 0 | AS95: 0.9975873008 | AT95: 0.08479492057 | AU95: 0
A96: 90 | B96: 0 | C96: 0 | E96: 1 | F96: 0 | G96: 0 | H96: 0.95 | I96: 1 | J96: 0 | K96: 0 | L96: 0 | M96: 0 | N96: 0 | O96: 0 | P96: 0 | Q96: 0.3063052837 | R96: 90.25 | S96: 94.08160002 | AA96: 184 | AB96: -2.497685848 | AC96: -0.06626865006 | AD96: -0.9975640503 | AE96: -0.06975647374 | AF96: -0.7481730377 | AG96: -0.05231735531 | AP96: 0.075 | AQ96: - | AR96: 0 | AS96: 0.9981223558 | AT96: 0.07485917669 | AU96: 0
A97: 91 | B97: 0.01666666667 | C97: 0.02166666667 | E97: 1 | F97: 0 | G97: 0 | H97: 0.95 | I97: 1 | J97: 0 | K97: 0 | L97: 0 | M97: 0 | N97: 0 | O97: 0 | P97: 0 | Q97: 0.3063052837 | R97: 90.25 | S97: 94.02292553 | AA97: 186 | AB97: -2.494795801 | AC97: -0.0993020401 | AD97: -0.9945218954 | AE97: -0.1045284633 | AF97: -0.7458914215 | AG97: -0.07839634745 | AK97: =AK94+0.5 -> 15.5 | AL97: =COS(AK97) -> -0.9784534628 | AM97: =SIN(AK97) -> 0.2064674819 | AN97: =$U$1+Rmoo_*COS(AK97*dr_) -> -0.6345510695 | AO97: =Rmoo_*SIN(AK97*dr_) -> 0.2538764573 | AP97: 0.065 | AQ97: - | AR97: 0 | AS97: 0.998590176 | AT97: 0.06490836144 | AU97: 0
A98: 92 | B98: 0.03333333333 | C98: 0.04333333333 | E98: 1 | F98: 0 | G98: 0 | H98: 0.95 | I98: 1 | J98: 0 | K98: 0 | L98: 0 | M98: 0 | N98: 0 | O98: 0 | P98: 0 | Q98: 0.3063052837 | R98: 90.25 | S98: 93.83764078 | AA98: 188 | AB98: -2.490754665 | AC98: -0.1322144459 | AD98: -0.9902680687 | AE98: -0.139173101 | AF98: -0.7427010516 | AG98: -0.1043798257 | AL98: 0 | AM98: 0 | AN98: =$U$1 -> -1.55 | AO98: 0 | AP98: 0.055 | AQ98: - | AR98: 0 | AS98: 0.998990903 | AT98: 0.05494449966 | AU98: 0
A99: 93 | B99: 0.05 | C99: 0.065 | F99: 2.426851863 | G99: 0.6721254849 | H99: -0.7175 | I99: 0.7825 | J99: 0.6226505842 | K99: 2.190233806 | L99: -0.4467517942 | M99: 2.6369856 | N99: 0.6721254849 | O99: 0.4872240821 | P99: 0.1849014028 | Q99: 0.3197056505 | R99: 89.82345308 | S99: 93.29740462 | AA99: 190 | AB99: -2.485567365 | AC99: -0.1649657688 | AD99: -0.984807753 | AE99: -0.1736481777 | AF99: -0.7386058148 | AG99: -0.1302361333 | AP99: 0.045 | AQ99: - | AR99: 0 | AS99: 0.9993246579 | AT99: 0.04496960961 | AU99: 0
A100: 94 | B100: 0.06666666667 | C100: 0.08666666667 | F100: 2.148965055 | G100: 0.919983438 | H100: -0.5191666667 | I100: 0.6058333333 | J100: 0.7955915863 | K100: 1.939440962 | L100: -0.4130446319 | M100: 2.352485594 | N100: 0.919983438 | O100: 0.4819959027 | P100: 0.4379875353 | Q100: 0.3511195245 | R100: 88.82351841 | S100: 92.40435189 | AA100: 192 | AB100: =$U$1+Rmoo_*COS(AA100*dr_) -> -2.479240221 | AC100: =Rmoo_*SIN(AA100*dr_) -> -0.1975161063 | AD100: -0.9781476007 | AE100: -0.2079116908 | AF100: =AD100*$C$3 -> -0.7336107006 | AG100: =AE100*$C$3 -> -0.1559337681 | AK100: =AK97+0.5 -> 16 | AL100: =COS(AK100) -> -0.9576594803 | AM100: =SIN(AK100) -> -0.2879033167 | AN100: =$U$1+Rmoo_*COS(AK100*dr_) -> -0.6368013889 | AO100: =Rmoo_*SIN(AK100*dr_) -> 0.261855488 | AP100: 0.035 | AQ100: =IF(AND(Xmoon_+Rmoo_>=AP100,Xmoon_-Rmoo_<=-AP100),1,"-") -> - | AR100: 0 | AS100: 0.9995915415 | AT100: =AS100*AP100 -> 0.03498570395 | AU100: 0
A101: 95 | B101: 0.08333333333 | C101: 0.1083333333 | F101: 2.000571758 | G101: 1.042379579 | H101: -0.3958333333 | I101: 0.5041666667 | J101: 0.8636063757 | K101: 1.805516012 | L101: -0.3418441904 | M101: 2.147360202 | N101: 1.042379579 | O101: 0.4354015478 | P101: 0.6069780316 | Q101: 0.3872544199 | R101: 87.67330897 | S101: 91.39222688 | AA101: 194 | AB101: -2.47178094 | AC101: -0.2298258008 | AD101: -0.9702957263 | AE101: -0.2419218956 | AF101: -0.7277217947 | AG101: -0.1814414217 | AL101: 0 | AM101: 0 | AN101: =$U$1 -> -1.55 | AO101: 0 | AP101: 0.025 | AQ101: - | AR101: 0 | AS101: 0.9997916341 | AT101: 0.02499479085 | AU101: 0
A102: 96 | B102: 0.1 | C102: =(1+Rmoo_)*B102*2*60/$A$3 -> 0.13 | D102: =IF(Rmoo_>=1,IF((ABS(C102)<=(Rmoo_-1)),1,""),"") ->  | E102: =IF(Rmoo_<1,IF(ABS(C102)+Rmoo_<1,1,""),"") ->  | F102: =IF(Rmoo_>=1,IFERROR(ACOS((Rmoo_^2+C102^2-1^2)/(2*Rmoo_*ABS(C102))),0), IFERROR(ACOS((Rmoo_^2+C102^2-1^2)/(2*Rmoo_*ABS(C102))),0)) -> 1.903199707 | G102: =IFERROR(ACOS((C102^2+1^2-Rmoo_^2)/(2*ABS(C102)*1)),0) -> 1.115197653 | H102: =Rmoo_*COS(F102) -> -0.31 | I102: 0.44 | J102: 0.8979977728 | K102: =Rmoo_^2*pi_*(2*F102)/(2*pi_) -> 1.717637735 | L102: -0.2783793096 | M102: 1.996017045 | N102: 1.115197653 | O102: 0.39511902 | P102: 0.7200786334 | Q102: =IF(OR(D102=1,E102=1),IF(D102=1,0,1^2*pi_-Rmoo_^2*pi_),IF(Rmoo_>=1,1^2*pi_-M102-P102,1^2*pi_-M102-P102)) -> 0.4254969754 | R102: =100-Q102/pi_*100 -> 86.45601062 | S102: =Eclipse_Dimming(C102,Rmoo_,2000,$D$3) -> 90.31205916 | AA102: 196 | AB102: -2.463198611 | AC102: -0.261855488 | AD102: -0.9612616959 | AE102: -0.2756373558 | AF102: -0.720946272 | AG102: -0.2067280169 | AP102: 0.015 | AQ102: - | AR102: 0 | AS102: 0.9999249958 | AT102: 0.01499887494 | AU102: 0
A103: 97 | B103: 0.1166666667 | C103: 0.1516666667 | F103: 1.832287482 | G103: 1.162265047 | H103: -0.2455952381 | I103: 0.3972619048 | J103: 0.917705279 | K103: 1.653639453 | L103: -0.2253840465 | M103: 1.879023499 | N103: 1.162265047 | O103: 0.3645693471 | P103: 0.7976956998 | Q103: 0.4648734546 | R103: 85.20261836 | S103: 89.1838541 | AA103: 198 | AB103: -2.45350369 | AC103: -0.2935661447 | AD103: -0.9510565163 | AE103: -0.3090169944 | AF103: -0.7132923872 | AG103: -0.2317627458 | AK103: =AK100+0.5 -> 16.5 | AL103: =COS(AK103) -> -0.7023970575 | AM103: =SIN(AK103) -> -0.7117853424 | AN103: =$U$1+Rmoo_*COS(AK103*dr_) -> -0.6391212519 | AO103: =Rmoo_*SIN(AK103*dr_) -> 0.2698145775 | AP103: 0.005 | AQ103: - | AR103: 0 | AS103: 0.9999916666 | AT103: 0.004999958333 | AU103: 0
A104: 98 | B104: 0.1333333333 | C104: 0.1733333333 | F104: 1.777080792 | G104: 1.194028786 | H104: -0.1945833333 | I104: 0.3679166667 | J104: 0.9298587669 | K104: 1.603815415 | L104: -0.1809350184 | M104: 1.784750433 | N104: 1.194028786 | O104: 0.342110538 | P104: 0.8519182476 | Q104: 0.5049239728 | R104: 83.92777077 | S104: 88.01719921 | AA104: 200 | AB104: -2.44270799 | AC104: -0.3249191362 | AD104: -0.9396926208 | AE104: -0.3420201433 | AF104: -0.7047694656 | AG104: -0.2565151075 | AL104: 0 | AM104: 0 | AN104: =$U$1 -> -1.55 | AO104: 0
A105: 99 | B105: 0.15 | C105: 0.195 | F105: 1.732020188 | G105: 1.2158927 | H105: -0.1525 | I105: 0.3475 | J105: 0.9376799827 | K105: 1.563148219 | L105: -0.1429961974 | M105: 1.706144417 | N105: 1.2158927 | O105: 0.325843794 | P105: 0.8900489056 | Q105: 0.5453993313 | R105: 82.63940009 | S105: 86.81966006 | AA105: 202 | AB105: -2.430824662 | AC105: -0.3558762637 | AD105: -0.9271838546 | AE105: -0.3746065934 | AF105: -0.6953878909 | AG105: -0.2809549451
A106: 100 | B106: 0.1666666667 | C106: 0.2166666667 | F106: 1.693914145 | G106: 1.230959417 | H106: -0.1166666667 | I106: 0.3333333333 | J106: 0.9428090416 | K106: 1.528757516 | L106: -0.1099943882 | M106: 1.638751904 | N106: 1.230959417 | O106: 0.3142696805 | P106: 0.9166897368 | Q106: 0.5861510125 | R106: 81.34223379 | S106: 85.59561296 | AA106: 204 | AB106: -2.417868185 | AC106: -0.3863998109 | AD106: -0.9135454576 | AE106: -0.4067366431 | AF106: -0.6851590932 | AG106: -0.3050524823 | AK106: =AK103+0.5 -> 17 | AL106: =COS(AK106) -> -0.2751633381 | AM106: =SIN(AK106) -> -0.9613974919 | AN106: =$U$1+Rmoo_*COS(AK106*dr_) -> -0.6415104818 | AO106: =Rmoo_*SIN(AK106*dr_) -> 0.2777531195
A107: 101 | B107: 0.1833333333 | C107: 0.2383333333 | F107: 1.660790161 | G107: 1.241146086 | H107: -0.08537878788 | I107: 0.3237121212 | J107: 0.9461556228 | K107: 1.49886312 | L107: -0.08078162022 | M107: 1.57964474 | N107: 1.241146086 | O107: 0.3062820437 | P107: 0.9348640427 | Q107: 0.6270838704 | R107: 80.03930046 | S107: 84.34754288 | AA107: 206 | AB107: -2.403854344 | AC107: -0.4164525894 | AD107: -0.8987940463 | AE107: -0.4383711468 | AF107: -0.6740955347 | AG107: -0.3287783601 | AL107: 0 | AM107: 0 | AN107: =$U$1 -> -1.55 | AO107: 0
A108: 102 | B108: 0.2 | C108: 0.26 | F108: 1.631359659 | G108: 1.24770442 | H108: -0.0575 | I108: 0.3175 | J108: 0.9482582718 | K108: 1.472302093 | L108: -0.05452485063 | M108: 1.526826943 | N108: 1.24770442 | O108: 0.3010720013 | P108: 0.9466324185 | Q108: 0.6681332919 | R108: 78.73265679 | S108: 83.07900094 | AA108: 208 | AB108: -2.388800213 | AC108: -0.4459979846 | AD108: -0.8829475929 | AE108: -0.4694715628 | AF108: -0.6622106946 | AG108: -0.3521036721
A109: 103 | B109: 0.2166666667 | C109: 0.2816666667 | F109: 1.604743467 | G109: 1.251487651 | H109: -0.03224358974 | I109: 0.3139102564 | J109: 0.9494526586 | K109: 1.448280979 | L109: -0.030613762 | M109: 1.478894741 | N109: 1.251487651 | O109: 0.2980429275 | P109: 0.9534447231 | Q109: 0.7092531892 | R109: 77.42376981 | S109: 81.79209979 | AA109: 210 | AB109: -2.372724134 | AC109: -0.475 | AD109: -0.8660254038 | AE109: -0.5 | AF109: -0.6495190528 | AG109: -0.375 | AK109: =AK106+0.5 -> 17.5 | AL109: =COS(AK109) -> 0.2194399632 | AM109: =SIN(AK109) -> -0.9756260055 | AN109: =$U$1+Rmoo_*COS(AK109*dr_) -> -0.6439688968 | AO109: =Rmoo_*SIN(AK109*dr_) -> 0.2856705095
A110: 104 | B110: 0.2333333333 | C110: 0.3033333333 | F110: 1.58032028 | G110: 1.253097944 | H110: -0.009047619048 | I110: 0.3123809524 | J110: 0.9499569151 | K110: 1.426239053 | L110: -0.00859484828 | M110: 1.434833901 | N110: 1.253097944 | O110: 0.2967484459 | P110: 0.9563494985 | Q110: 0.7504092538 | R110: 76.11373158 | S110: 80.48796621 | AA110: 212 | AB110: -2.355645691 | AC110: -0.503423301 | AD110: -0.8480480962 | AE110: -0.5299192642 | AF110: -0.6360360721 | AG110: -0.3974394482 | AL110: 0 | AM110: 0 | AN110: =$U$1 -> -1.55 | AO110: 0
A111: 105 | B111: 0.25 | C111: 0.325 | F111: 1.557638052 | G111: 1.252972623 | H111: 0.0125 | I111: 0.3125 | J111: 0.9499177596 | K111: 1.405768342 | L111: 0.01187397199 | M111: 1.39389437 | N111: 1.252972623 | O111: 0.2968492999 | P111: 0.956123323 | Q111: 0.7915749603 | R111: 74.80338645 | S111: 79.16905627 | AA111: 214 | AB111: -2.337585694 | AC111: -0.5312332583 | AD111: -0.8290375726 | AE111: -0.5591929035 | AF111: -0.6217781794 | AG111: -0.4193946776
A112: 106 | B112: 0.2666666667 | C112: 0.3466666667 | F112: 1.536359696 | G112: 1.251437014 | H112: 0.03270833333 | I112: 0.3139583333 | J112: 0.9494367619 | K112: 1.386564626 | L112: 0.03105449409 | M112: 1.355510132 | N112: 1.251437014 | O112: 0.2980835834 | P112: 0.9533534304 | Q112: 0.8327290914 | R112: 73.49340977 | S112: 77.83678999 | AA112: 216 | AB112: -2.318566145 | AC112: -0.5583959897 | AD112: -0.8090169944 | AE112: -0.5877852523 | AF112: -0.6067627458 | AG112: -0.4408389392 | AK112: =AK109+0.5 -> 18 | AL112: =COS(AK112) -> 0.6603167082 | AM112: =SIN(AK112) -> -0.7509872468 | AN112: =$U$1+Rmoo_*COS(AK112*dr_) -> -0.6464963095 | AO112: =Rmoo_*SIN(AK112*dr_) -> 0.2935661447
A113: 107 | B113: 0.2833333333 | C113: 0.3683333333 | F113: 1.516228487 | G113: 1.248738128 | H113: 0.05181372549 | I113: 0.3165196078 | J113: 0.9485859676 | K113: 1.368396209 | L113: 0.04914977293 | M113: 1.319246436 | N113: 1.248738128 | O113: 0.3002460585 | P113: 0.9484920699 | Q113: 0.8738541476 | R113: 72.18435857 | S113: 76.491852 | AA113: 218 | AB113: -2.298610216 | AC113: -0.5848784016 | AD113: -0.7880107536 | AE113: -0.6156614753 | AF113: -0.5910080652 | AG113: -0.4617461065 | AL113: 0 | AM113: 0 | AN113: =$U$1 -> -1.55 | AO113: 0
A114: 108 | B114: 0.3 | C114: 0.39 | F114: 1.497045276 | G114: 1.24506684 | H114: 0.07 | I114: 0.32 | J114: 0.9474175426 | K114: 1.351083362 | L114: 0.06631922798 | M114: 1.284764134 | N114: 1.24506684 | O114: 0.3031736136 | P114: 0.9418932259 | Q114: 0.9149352937 | R114: 70.87670508 | S114: 75.13621269 | AA114: 220 | AB114: -2.277742221 | AC114: -0.6106482292 | AD114: -0.7660444431 | AE114: -0.6427876097 | AF114: -0.5745333323 | AG114: -0.4820907073
A115: 109 | B115: 0.3166666667 | C115: 0.4116666667 | F115: 1.478653067 | G115: 1.240572906 | H115: 0.0874122807 | I115: 0.324254386 | J115: 0.9459699219 | K115: 1.334484393 | L115: 0.08268938835 | M115: 1.251795004 | N115: 1.240572906 | O115: 0.3067348962 | P115: 0.9338380097 | Q115: 0.9559596397 | R115: 69.57085959 | S115: 73.77098456 | AA115: 222 | AB115: -2.255987584 | AC115: -0.635674076 | AD115: -0.7431448255 | AE115: -0.6691306064 | AF115: -0.5573586191 | AG115: -0.5018479548 | AK115: =AK112+0.5 -> 18.5 | AL115: =COS(AK115) -> 0.9395248937 | AM115: =SIN(AK115) -> -0.3424806185 | AN115: =$U$1+Rmoo_*COS(AK115*dr_) -> -0.6490925276 | AO115: =Rmoo_*SIN(AK115*dr_) -> 0.3014394236
A116: 110 | B116: 0.3333333333 | C116: 0.4333333333 | F116: 1.460926289 | G116: 1.235375402 | H116: 0.1041666667 | I116: 0.3291666667 | J116: 0.9442718388 | K116: 1.318485976 | L116: 0.09836164988 | M116: 1.220124326 | N116: 1.235375402 | O116: 0.3108228136 | P116: 0.9245525882 | Q116: 0.9969157391 | R116: 68.26718645 | S116: 72.39666714 | AA116: 224 | AB116: -2.23337281 | AC116: -0.6599254519 | AD116: -0.7193398003 | AE116: -0.6946583705 | AF116: -0.5395048503 | AG116: -0.5209937778 | AL116: 0 | AM116: 0 | AN116: =$U$1 -> -1.55 | AO116: 0
A117: 111 | B117: 0.35 | C117: 0.455 | F117: 1.443763209 | G117: 1.229570116 | H117: 0.1203571429 | I117: 0.3346428571 | J117: 0.9423450314 | K117: 1.302996296 | L117: 0.1134179556 | M117: 1.18957834 | N117: 1.229570116 | O117: 0.3153490337 | P117: 0.9142210822 | Q117: 1.037793231 | R117: 66.96601547 | S117: 71.01494801 | AA117: 226 | AB117: -2.209925452 | AC117: -0.6833728103 | AD117: -0.6946583705 | AE117: -0.7193398003 | AF117: -0.5209937778 | AG117: -0.5395048503
A118: 112 | B118: 0.3666666667 | C118: 0.4766666667 | F118: 1.427080423 | G118: 1.2232349 | H118: 0.1360606061 | I118: 0.3406060606 | J118: 0.9402061005 | K118: 1.287940081 | L118: 0.1279250119 | M118: 1.160015069 | N118: 1.2232349 | O118: 0.3202398961 | P118: 0.9029950044 | Q118: 1.07858258 | R118: 65.66765018 | S118: 69.62677086 | AA118: 228 | AB118: -2.185674076 | AC118: -0.7059875842 | AD118: -0.6691306064 | AE118: -0.7431448255 | AF118: -0.5018479548 | AG118: -0.5573586191 | AK118: =AK115+0.5 -> 19 | AL118: =COS(AK118) -> 0.9887046182 | AM118: =SIN(AK118) -> 0.1498772097 | AN118: =$U$1+Rmoo_*COS(AK118*dr_) -> -0.6517573532 | AO118: =Rmoo_*SIN(AK118*dr_) -> 0.3092897467
A119: 113 | B119: 0.3833333333 | C119: 0.4983333333 | F119: 1.41080882 | G119: 1.216433604 | H119: 0.1513405797 | I119: 0.3469927536 | J119: 0.9378678099 | K119: 1.27325496 | L119: 0.141937458 | M119: 1.131317502 | N119: 1.216433604 | O119: 0.3254333339 | P119: 0.8910002705 | Q119: 1.119274882 | R119: 64.37237399 | S119: 68.23254982 | AA119: 230 | AB119: -2.160648229 | AC119: -0.727742221 | AD119: -0.6427876097 | AE119: -0.7660444431 | AF119: -0.4820907073 | AG119: -0.5745333323 | AL119: 0 | AM119: 0 | AN119: =$U$1 -> -1.55 | AO119: 0
A120: 114 | B120: 0.4 | C120: 0.52 | F120: 1.394890559 | G120: 1.20921901 | H120: 0.16625 | I120: 0.35375 | J120: 0.9353400117 | K120: 1.258888729 | L120: 0.1555002769 | M120: 1.103388452 | N120: 1.20921901 | O120: 0.3308765291 | P120: 0.8783424811 | Q120: 1.15986172 | R120: 63.08045478 | S120: 66.83377878 | AA120: 232 | AB120: -2.134878402 | AC120: -0.7486102159 | AD120: -0.6156614753 | AE120: -0.7880107536 | AF120: -0.4617461065 | AG120: -0.5910080652
A121: 115 | B121: 0.4166666667 | C121: 0.5416666667 | F121: 1.379276781 | G121: 1.201635057 | H121: 0.1808333333 | I121: 0.3608333333 | J121: 0.9326303156 | K121: 1.244797294 | L121: 0.1686506487 | M121: 1.076146646 | N121: 1.201635057 | O121: 0.3365241055 | P121: 0.8651109519 | Q121: 1.200335056 | R121: 61.7921485 | S121: 65.43129617 | AA121: 234 | AB121: -2.10839599 | AC121: -0.7685661447 | AD121: -0.5877852523 | AE121: -0.8090169944 | AF121: -0.4408389392 | AG121: -0.6067627458 | AK121: =AK118+0.5 -> 19.5 | AL121: =COS(AK121) -> 0.7958149698 | AM121: =SIN(AK121) -> 0.6055398697 | AN121: =$U$1+Rmoo_*COS(AK121*dr_) -> -0.6544905835 | AO121: =Rmoo_*SIN(AK121*dr_) -> 0.3171165163
A122: 116 | B122: 0.4333333333 | C122: 0.5633333333 | F122: 1.363925853 | G122: 1.193718546 | H122: 0.1951282051 | I122: 0.3682051282 | J122: 0.9297445797 | K122: 1.230943082 | L122: 0.1814193911 | M122: 1.049523691 | N122: 1.193718546 | O122: 0.3423367222 | P122: 0.8513818235 | Q122: 1.240687139 | R122: 60.50770181 | S122: 64.02547877 | AA122: 236 | AB122: -2.081233258 | AC122: -0.7875856939 | AD122: -0.5591929035 | AE122: -0.8290375726 | AF122: -0.4193946776 | AG122: -0.6217781794 | AL122: 0 | AM122: 0 | AN122: =$U$1 -> -1.55 | AO122: 0
A123: 117 | B123: 0.45 | C123: 0.585 | F123: 1.348802008 | G123: 1.185500456 | H123: 0.2091666667 | I123: 0.3758333333 | J123: 0.926687275 | K123: 1.217293812 | L123: 0.1938320883 | M123: 1.023461724 | N123: 1.185500456 | O123: 0.3482799675 | P123: 0.837220488 | Q123: 1.280910442 | R123: 59.2273543 | S123: 62.61767335 | AA123: 238 | AB123: -2.053423301 | AC123: -0.8056456913 | AD123: -0.5299192642 | AE123: -0.8480480962 | AF123: -0.3974394482 | AG123: -0.6360360721
A124: 118 | B124: 0.4666666667 | C124: 0.6066666667 | F124: 1.333874273 | G124: 1.177006982 | H124: 0.2229761905 | I124: 0.3836904762 | J124: 0.923461758 | K124: 1.203821531 | L124: 0.2059099848 | M124: 0.9979115463 | N124: 1.177006982 | O124: 0.3543234817 | P124: 0.8226835006 | Q124: 1.320997607 | R124: 57.95134022 | S124: 61.20864729 | AA124: 240 | AB124: -2.025 | AC124: -0.8227241336 | AD124: -0.5 | AE124: -0.8660254038 | AF124: -0.375 | AG124: -0.6495190528 | AK124: =AK121+0.5 -> 20 | AL124: =COS(AK124) -> 0.4080820618 | AM124: =SIN(AK124) -> 0.9129452507 | AN124: =$U$1+Rmoo_*COS(AK124*dr_) -> -0.6572920103 | AO124: =Rmoo_*SIN(AK124*dr_) -> 0.3249191362
A125: 119 | B125: 0.4833333333 | C125: 0.6283333333 | F125: 1.319115624 | G125: 1.168260354 | H125: 0.2365804598 | I125: 0.3917528736 | J125: 0.9200704789 | K125: 1.190501851 | L125: 0.2176706969 | M125: 0.9728311537 | N125: 1.168260354 | O125: 0.360440254 | P125: 0.8078200997 | Q125: 1.3609414 | R125: 56.67988978 | S125: 59.79876729 | AA125: 242 | AB125: -1.995997985 | AC125: -0.8388002132 | AD125: -0.4694715628 | AE125: -0.8829475929 | AF125: -0.3521036721 | AG125: -0.6622106946 | AL125: 0 | AM125: 0 | AN125: =$U$1 -> -1.55 | AO125: 0
A126: 120 | B126: 0.5 | C126: 0.65 | F126: 1.30450231 | G126: 1.159279481 | H126: 0.25 | I126: 0.4 | J126: 0.916515139 | K126: 1.177313334 | L126: 0.2291287847 | M126: 0.9481845497 | N126: 1.159279481 | O126: 0.3666060556 | P126: 0.7926734251 | Q126: 1.400734679 | R126: 55.41323038 | S126: 58.38926002 | AA126: 244 | AB126: -1.966452589 | AC126: -0.853854344 | AD126: -0.4383711468 | AE126: -0.8987940463 | AF126: -0.3287783601 | AG126: -0.6740955347
A127: 121 | B127: 0.5166666667 | C127: 0.6716666667 | F127: 1.290013303 | G127: 1.150080482 | H127: 0.2632526882 | I127: 0.4084139785 | J127: 0.9127968132 | K127: 1.164237006 | L127: 0.2402962148 | M127: 0.9239407913 | N127: 1.150080482 | O127: 0.372798978 | P127: 0.777281504 | Q127: 1.440370358 | R127: 54.15158752 | S127: 56.98084244 | AA127: 246 | AB127: -1.936399811 | AC127: -0.8678681848 | AD127: -0.4067366431 | AE127: -0.9135454576 | AF127: -0.3050524823 | AG127: -0.6851590932 | AK127: =AK124+0.5 -> 20.5 | AL127: =COS(AK127) -> -0.07956356728 | AM127: =SIN(AK127) -> 0.9968297943 | AN127: =$U$1+Rmoo_*COS(AK127*dr_) -> -0.6601614202 | AO127: =Rmoo_*SIN(AK127*dr_) -> 0.3326970122
A128: 122 | B128: 0.5333333333 | C128: 0.6933333333 | F128: 1.275629859 | G128: 1.140677106 | H128: 0.2763541667 | I128: 0.4169791667 | J128: 0.9089160437 | K128: 1.151255948 | L128: 0.2511827358 | M128: 0.9000732119 | N128: 1.140677106 | O128: 0.3789990545 | P128: 0.761678052 | Q128: 1.47984139 | R128: 52.89518557 | S128: 55.57388894 | AA128: 248 | AB128: -1.905876264 | AC128: -0.8808246618 | AD128: -0.3746065934 | AE128: -0.9271838546 | AF128: -0.2809549451 | AG128: -0.6953878909 | AL128: 0 | AM128: 0 | AN128: =$U$1 -> -1.55 | AO128: 0
A129: 123 | B129: 0.55 | C129: 0.715 | F129: 1.261335148 | G129: 1.131081079 | H129: 0.2893181818 | I129: 0.4256818182 | J129: 0.9048729135 | K129: 1.138354971 | L129: 0.2617961861 | M129: 0.8765587851 | N129: 1.131081079 | O129: 0.3851879471 | P129: 0.7458931315 | Q129: 1.519140737 | R129: 51.64424849 | S129: 54.16952265 | AA129: 250 | AB129: -1.874919136 | AC129: -0.8927079897 | AD129: -0.3420201433 | AE129: -0.9396926208 | AF129: -0.2565151075 | AG129: -0.7047694656
A130: 124 | B130: 0.5666666667 | C130: 0.7366666667 | F130: 1.247113957 | G130: 1.12130238 | H130: 0.3021568627 | I130: 0.4345098039 | J130: 0.9006671029 | K130: 1.125520346 | L130: 0.2721427462 | M130: 0.8533776003 | N130: 1.12130238 | O130: 0.3913486863 | P130: 0.7299536941 | Q130: 1.558261359 | R130: 50.39900041 | S130: 52.76842352 | AA130: 252 | AB130: -1.843566145 | AC130: -0.9035036905 | AD130: -0.3090169944 | AE130: -0.9510565163 | AF130: -0.2317627458 | AG130: -0.7132923872 | AK130: =AK127+0.5 -> 21 | AL130: =COS(AK130) -> -0.5477292602 | AM130: =SIN(AK130) -> 0.8366556385 | AN130: =$U$1+Rmoo_*COS(AK130*dr_) -> -0.6630985948 | AO130: =Rmoo_*SIN(AK130*dr_) -> 0.3404495521
A131: 125 | B131: 0.5833333333 | C131: 0.7583333333 | F131: 1.232952439 | G131: 1.111349484 | H131: 0.3148809524 | I131: 0.443452381 | J131: 0.8962979336 | K131: 1.112739576 | L131: 0.282227147 | M131: 0.8305124289 | N131: 1.111349484 | O131: 0.3974654527 | P131: 0.7138840315 | Q131: 1.597196193 | R131: 49.15966615 | S131: 51.37098716 | AA131: 254 | AB131: -1.811855488 | AC131: -0.9131986111 | AD131: -0.2756373558 | AE131: -0.9612616959 | AF131: -0.2067280169 | AG131: -0.720946272 | AL131: 0 | AM131: 0 | AN131: =$U$1 -> -1.55 | AO131: 0
A132: 126 | B132: 0.6 | C132: 0.78 | F132: 1.218837899 | G132: 1.101229544 | H132: 0.3275 | I132: 0.4525 | J132: 0.8917644027 | K132: 1.100001204 | L132: 0.2920528419 | M132: 0.8079483622 | N132: 1.101229544 | O132: 0.4035233922 | P132: 0.697706152 | Q132: 1.635938139 | R132: 47.9264717 | S132: 49.97824291 | AA132: 256 | AB132: =$U$1+Rmoo_*COS(AA132*dr_) -> -1.779825801 | AC132: =Rmoo_*SIN(AA132*dr_) -> -0.92178094 | AD132: =COS(AA132*dr_) -> -0.2419218956 | AE132: =SIN(AA132*dr_) -> -0.9702957263 | AF132: =AD132*$C$3 -> -0.1814414217 | AG132: =AE132*$C$3 -> -0.7277217947
A133: 127 | B133: 0.6166666667 | C133: 0.8016666667 | F133: 1.204758624 | G133: 1.090948555 | H133: 0.3400225225 | I133: 0.4616441441 | J133: 0.8870652085 | K133: 1.087294658 | L133: 0.3016221498 | M133: 0.7856725085 | N133: 1.090948555 | O133: 0.409508459 | P133: 0.6814400965 | Q133: 1.674480049 | R133: 46.69964463 | S133: 48.59084291 | AA133: 258 | AB133: -1.747516106 | AC133: -0.9292402207 | AD133: -0.2079116908 | AE133: -0.9781476007 | AF133: -0.1559337681 | AG133: -0.7336107006 | AK133: =AK130+0.5 -> 21.5 | AL133: =COS(AK133) -> -0.8817917275 | AM133: =SIN(AK133) -> 0.4716390031 | AN133: =$U$1+Rmoo_*COS(AK133*dr_) -> -0.6661033104 | AO133: =Rmoo_*SIN(AK133*dr_) -> 0.3481761654
A134: 128 | B134: =(A134-180*($A$3/180)/2)/60 -> 0.6333333333 | C134: =(1+Rmoo_)*B134*2*60/$A$3 -> 0.8233333333 | D134: =IF(Rmoo_>=1,IF((ABS(C134)<=(Rmoo_-1)),1,""),"") ->  | E134: =IF(Rmoo_<1,IF(ABS(C134)+Rmoo_<1,1,""),"") ->  | F134: =IF(Rmoo_>=1,IFERROR(ACOS((Rmoo_^2+C134^2-1^2)/(2*Rmoo_*ABS(C134))),0), IFERROR(ACOS((Rmoo_^2+C134^2-1^2)/(2*Rmoo_*ABS(C134))),0)) -> 1.190703725 | G134: =IFERROR(ACOS((C134^2+1^2-Rmoo_^2)/(2*ABS(C134)*1)),0) -> 1.080511487 | H134: =Rmoo_*COS(F134) -> 0.3524561404 | I134: =COS(G134) -> 0.470877193 | J134: 0.8821987696 | K134: =Rmoo_^2*pi_*(2*F134)/(2*pi_) -> 1.074610112 | L134: 0.3109363734 | M134: 0.7636737387 | N134: =1^2*pi_*(2*G134)/(2*pi_) -> 1.080511487 | O134: 0.4154072803 | P134: 0.6651042063 | Q134: =IF(OR(D134=1,E134=1),IF(D134=1,0,1^2*pi_-Rmoo_^2*pi_),IF(Rmoo_>=1,1^2*pi_-M134-P134,1^2*pi_-M134-P134)) -> 1.712814709 | R134: =100-Q134/pi_*100 -> 45.47941451 | S134: =Eclipse_Dimming(C134,Rmoo_,2000,$D$3) -> 47.20921647 | AA134: =AA133+2 -> 260 | AB134: -1.714965769 | AC134: -0.9355673654 | AD134: -0.1736481777 | AE134: -0.984807753 | AF134: -0.1302361333 | AG134: -0.7386058148 | AL134: 0 | AM134: 0 | AN134: =$U$1 -> -1.55 | AO134: 0
A135: =A134+$A$3/180 -> 129 | B135: 0.65 | C135: 0.845 | F135: 1.176663012 | G135: 1.069922389 | H135: 0.3648076923 | I135: 0.4801923077 | J135: =ABS(H135*TAN(F135)) -> 0.8771632389 | K135: 1.061938368 | L135: =H135*J135 -> 0.319995897 | M135: =K135-L135 -> 0.7419424711 | N135: 1.069922389 | O135: =COS(G135)*J135 -> 0.4212070399 | P135: =N135-O135 -> 0.6487153494 | Q135: 1.750934833 | R135: 44.26601326 | S135: 45.83430336 | AA135: 262 | AB135: -1.682214446 | AC135: -0.9407546653 | AD135: -0.139173101 | AE135: -0.9902680687 | AF135: -0.1043798257 | AG135: -0.7427010516
A136: 130 | B136: 0.6666666667 | C136: 0.8666666667 | F136: 1.162626878 | G136: 1.059184491 | H136: 0.3770833333 | I136: 0.4895833333 | J136: 0.8719565125 | K136: 1.049270757 | L136: 0.3288002683 | M136: 0.720470489 | N136: 1.059184491 | O136: 0.4268953759 | P136: 0.6322891147 | Q136: 1.78883305 | R136: 43.05967555 | S136: 44.46673386 | AA136: 264 | AB136: -1.64930204 | AC136: -0.9447958006 | AD136: -0.1045284633 | AE136: -0.9945218954 | AF136: -0.07839634745 | AG136: -0.7458914215 | AK136: =AK133+0.5 -> 22 | AL136: =COS(AK136) -> -0.9999608264 | AM136: =SIN(AK136) -> -0.00885130929 | AN136: =$U$1+Rmoo_*COS(AK136*dr_) -> -0.6691753382 | AO136: =Rmoo_*SIN(AK136*dr_) -> 0.3558762637
A137: 131 | B137: 0.6833333333 | C137: 0.8883333333 | F137: 1.148586206 | G137: 1.048300268 | H137: 0.3892886179 | I137: 0.4990447154 | J137: 0.8665762355 | K137: 1.036599051 | L137: 0.337348265 | M137: 0.6992507858 | N137: 1.048300268 | O137: 0.4324602909 | P137: 0.6158399771 | Q137: 1.826501891 | R137: 41.86063911 | S137: 43.10698662 | AA137: 266 | AB137: -1.61626865 | AC137: -0.9476858477 | AD137: -0.06975647374 | AE137: -0.9975640503 | AF137: -0.05231735531 | AG137: -0.7481730377 | AL137: 0 | AM137: 0 | AN137: =$U$1 -> -1.55 | AO137: 0
A138: 132 | B138: 0.7 | C138: 0.91 | F138: 1.13453228 | G138: 1.037271513 | H138: 0.4014285714 | I138: 0.5085714286 | J138: 0.8610198035 | K138: 1.023915382 | L138: 0.3456379497 | M138: 0.6782774326 | N138: 1.037271513 | O138: 0.4378900715 | P138: 0.5993814417 | Q138: 1.863933779 | R138: 40.66914508 | S138: 41.75590882 | AA138: 268 | AB138: -1.583154522 | AC138: -0.9494212857 | AD138: -0.0348994967 | AE138: -0.999390827 | AF138: -0.02617462253 | AG138: -0.7495431203
A139: 133 | B139: 0.7166666667 | C139: 0.9316666667 | F139: 1.120456708 | G139: 1.026099383 | H139: 0.4135077519 | I139: 0.5181589147 | J139: 0.8552843615 | K139: 1.011212179 | L139: 0.3536667136 | M139: 0.6575454653 | N139: 1.026099383 | O139: 0.4431732166 | P139: 0.5829261668 | Q139: 1.901121021 | R139: 39.4854384 | S139: 40.41410857 | AA139: 270 | AB139: -1.55 | AC139: -0.95 | AD139: -1.837722682e-16 | AE139: -1 | AF139: -1.378292012e-16 | AG139: -0.75 | AK139: =AK136+0.5 -> 22.5 | AL139: =COS(AK139) -> -0.8733046401 | AM139: =SIN(AK139) -> -0.4871745125 | AN139: =$U$1+Rmoo_*COS(AK139*dr_) -> -0.6723144441 | AO139: =Rmoo_*SIN(AK139*dr_) -> 0.3635492607
A140: 134 | B140: 0.7333333333 | C140: 0.9533333333 | F140: 1.106351357 | G140: 1.014784444 | H140: 0.425530303 | I140: 0.5278030303 | J140: 0.8493668002 | K140: 0.9984820994 | L140: 0.3614313119 | M140: 0.6370507875 | N140: 1.014784444 | O140: 0.448298371 | P140: 0.5664860726 | Q140: 1.938055794 | R140: 38.3097681 | S140: 39.08214541 | AA140: 272 | AB140: -1.516845478 | AC140: -0.9494212857 | AD140: 0.0348994967 | AE140: -0.999390827 | AF140: 0.02617462253 | AG140: -0.7495431203 | AL140: 0 | AM140: 0 | AN140: =$U$1 -> -1.55 | AO140: 0
A141: 135 | B141: 0.75 | C141: 0.975 | F141: 1.092208285 | G141: 1.0033267 | H141: 0.4375 | I141: 0.5375 | J141: 0.8432637488 | K141: 0.9857179773 | L141: 0.3689278901 | M141: 0.6167900872 | N141: 1.0033267 | O141: 0.453254265 | P141: 0.5500724348 | Q141: 1.974730132 | R141: 37.14238766 | S141: 37.76076613 | AA141: 274 | AB141: -1.48373135 | AC141: -0.9476858477 | AD141: 0.06975647374 | AE141: -0.9975640503 | AF141: 0.05231735531 | AG141: -0.7481730377
A142: 136 | B142: 0.7666666667 | C142: 0.9966666667 | F142: 1.078019689 | G142: 0.9917256253 | H142: 0.4494202899 | I142: 0.5472463768 | J142: 0.8369715665 | K142: 0.9729127696 | L142: 0.376152004 | M142: 0.5967607656 | N142: 0.9917256253 | O142: 0.4580296572 | P142: 0.533695968 | Q142: 2.01113592 | R142: 35.98355542 | S142: 36.45054955 | AA142: 276 | AB142: -1.45069796 | AC142: -0.9447958006 | AD142: 0.1045284633 | AE142: -0.9945218954 | AF142: 0.07839634745 | AG142: -0.7458914215 | AK142: =AK139+0.5 -> 23 | AL142: =COS(AK142) -> -0.5328330203 | AM142: =SIN(AK142) -> -0.8462204042 | AN142: =$U$1+Rmoo_*COS(AK142*dr_) -> -0.6755203892 | AO142: =Rmoo_*SIN(AK142*dr_) -> 0.3711945721
A143: 137 | B143: 0.7833333333 | C143: 1.018333333 | F143: 1.063777848 | G143: 0.97998018 | H143: 0.4612943262 | I143: 0.5570390071 | J143: 0.8304863302 | K143: 0.9600595075 | L143: 0.3830986321 | M143: 0.5769608754 | N143: 0.97998018 | O143: 0.4626132808 | P143: 0.5173668993 | Q143: 2.047264879 | R143: 34.83353494 | S143: 35.15208586 | AA143: 278 | AB143: -1.417785554 | AC143: -0.9407546653 | AD143: 0.139173101 | AE143: -0.9902680687 | AF143: 0.1043798257 | AG143: -0.7427010516 | AL143: 0 | AM143: 0 | AN143: =$U$1 -> -1.55 | AO143: 0
A144: 138 | B144: 0.8 | C144: 1.04 | F144: 1.04947507 | G144: 0.9680888235 | H144: 0.473125 | I144: 0.566875 | J144: 0.8238038203 | K144: 0.9471512507 | L144: 0.3897621825 | M144: 0.5573890682 | N144: 0.9680888235 | O144: 0.4669937906 | P144: 0.5010950328 | Q144: 2.083108553 | R144: 33.69259537 | S144: 33.86616776 | AA144: 280 | AB144: -1.385034231 | AC144: -0.9355673654 | AD144: 0.1736481777 | AE144: -0.984807753 | AF144: 0.1302361333 | AG144: -0.7386058148
A145: 139 | B145: 0.8166666667 | C145: 1.061666667 | F145: 1.035103649 | G145: 0.956049522 | H145: 0.484914966 | I145: 0.5767517007 | J145: 0.8169195038 | K145: 0.934181043 | L145: 0.3961364934 | M145: 0.5380445495 | N145: 0.956049522 | O145: 0.4711597132 | P145: 0.4848898088 | Q145: 2.118658295 | R145: 32.56101192 | S145: 32.59327299 | AA145: 282 | AB145: -1.352483894 | AC145: -0.9292402207 | AD145: 0.2079116908 | AE145: -0.9781476007 | AF145: 0.1559337681 | AG145: -0.7336107006 | AK145: =AK142+0.5 -> 23.5 | AL145: =COS(AK145) -> -0.06190529399 | AM145: =SIN(AK145) -> -0.998082028 | AN145: =$U$1+Rmoo_*COS(AK145*dr_) -> -0.6787929293 | AO145: =Rmoo_*SIN(AK145*dr_) -> 0.3788116155
A146: 140 | B146: 0.8333333333 | C146: 1.083333333 | F146: 1.02065581 | G146: 0.9438597506 | H146: 0.4966666667 | I146: 0.5866666667 | J146: 0.8098285141 | K146: 0.9211418688 | L146: 0.4022148287 | M146: 0.5189270401 | N146: 0.9438597506 | O146: 0.4750993949 | P146: 0.4687603557 | Q146: 2.153905258 | R146: 31.43906625 | S146: 31.33400068 | AA146: 284 | AB146: -1.320174199 | AC146: -0.92178094 | AD146: 0.2419218956 | AE146: -0.9702957263 | AF146: 0.1814414217 | AG146: -0.7277217947 | AL146: 0 | AM146: 0 | AN146: =$U$1 -> -1.55 | AO146: 0
A147: 141 | B147: 0.85 | C147: 1.105 | F147: 1.006123668 | G147: 0.9315164895 | H147: 0.5083823529 | I147: 0.5966176471 | J147: 0.8025256278 | K147: 0.9080266102 | L147: 0.4079898669 | M147: 0.5000367432 | N147: 0.9315164895 | O147: 0.4788009517 | P147: 0.4527155378 | Q147: 2.188840373 | R147: 30.32704701 | S147: 30.08919488 | AA147: 286 | AB147: -1.288144512 | AC147: -0.9131986111 | AD147: 0.2756373558 | AE147: -0.9612616959 | AF147: 0.2067280169 | AG147: -0.720946272
A148: 142 | B148: 0.8666666667 | C148: 1.126666667 | F148: 0.9914991723 | G148: 0.9190162152 | H148: 0.5200641026 | I148: 0.6066025641 | J148: 0.7950052385 | K148: 0.894828003 | L148: 0.4134536859 | M148: 0.4813743171 | N148: 0.9190162152 | O148: 0.4822522161 | P148: 0.4367639991 | Q148: 2.223454337 | R148: 29.22525029 | S148: 28.85927528 | AA148: 288 | AB148: -1.256433855 | AC148: -0.9035036905 | AD148: 0.3090169944 | AE148: -0.9510565163 | AF148: 0.2317627458 | AG148: -0.7132923872 | AK148: =AK145+0.5 -> 24 | AL148: =COS(AK148) -> 0.4241790073 | AM148: =SIN(AK148) -> -0.905578362 | AN148: =$U$1+Rmoo_*COS(AK148*dr_) -> -0.6821318152 | AO148: =Rmoo_*SIN(AK148*dr_) -> 0.3863998109
A149: 143 | B149: 0.8833333333 | C149: 1.148333333 | F149: 0.9767740638 | G149: 0.906354886 | H149: 0.5317138365 | I149: 0.6166194969 | J149: 0.7872613264 | K149: 0.8815385926 | L149: 0.4185977402 | M149: 0.4629408524 | N149: 0.906354886 | O149: 0.485440683 | P149: 0.420914203 | Q149: 2.257737598 | R149: 28.13398021 | S149: 27.64484141 | AA149: 290 | AB149: -1.225080864 | AC149: -0.8927079897 | AD149: 0.3420201433 | AE149: -0.9396926208 | AF149: 0.2565151075 | AG149: -0.7047694656 | AL149: 0 | AM149: 0 | AN149: =$U$1 -> -1.55 | AO149: 0
A150: 144 | B150: 0.9 | C150: 1.17 | F150: 0.9619398191 | G150: 0.8935279222 | H150: 0.5433333333 | I150: 0.6266666667 | J150: 0.7792874238 | K150: 0.8681506867 | L150: 0.4234128336 | M150: 0.4447378532 | N150: 0.8935279222 | O150: 0.4883534522 | P150: 0.40517447 | Q150: 2.29168033 | R150: 27.05354948 | S150: 26.44677453 | AA150: 292 | AB150: -1.194123736 | AC150: -0.8808246618 | AD150: 0.3746065934 | AE150: -0.9271838546 | AF150: 0.2809549451 | AG150: -0.6953878909
A151: 145 | B151: 0.9166666667 | C151: 1.191666667 | F151: 0.9469875974 | G151: 0.8805301801 | H151: 0.5549242424 | I151: 0.6367424242 | J151: 0.7710765754 | K151: 0.8546563066 | L151: 0.4278890845 | M151: 0.4267672222 | N151: 0.8805301801 | O151: 0.4909771679 | P151: 0.3895530122 | Q151: 2.325272419 | R151: 25.98428009 | S151: 25.26545755 | AA151: 294 | AB151: -1.163600189 | AC151: -0.8678681848 | AD151: 0.4067366431 | AE151: -0.9135454576 | AF151: 0.3050524823 | AG151: -0.6851590932 | AK151: =AK148+0.5 -> 24.5 | AL151: =COS(AK151) -> 0.8064094939 | AM151: =SIN(AK151) -> -0.5913575299 | AN151: =$U$1+Rmoo_*COS(AK151*dr_) -> -0.6855367927 | AO151: =Rmoo_*SIN(AK151*dr_) -> 0.3939585805
A152: 146 | B152: 0.9333333333 | C152: 1.213333333 | F152: 0.9319081819 | G152: 0.8673559195 | H152: 0.5664880952 | I152: 0.6468452381 | J152: 0.7626212939 | K152: 0.8410471342 | L152: 0.4320158842 | M152: 0.40903125 | N152: 0.8673559195 | O152: 0.4932979524 | P152: 0.374057967 | Q152: 2.358503437 | R152: 24.92650395 | S152: 24.10149268 | AA152: 296 | AB152: -1.133547411 | AC152: -0.853854344 | AD152: 0.4383711468 | AE152: -0.8987940463 | AF152: 0.3287783601 | AG152: -0.6740955347 | AL152: 0 | AM152: 0 | AN152: =$U$1 -> -1.55 | AO152: 0
A153: 147 | B153: 0.95 | C153: 1.235 | F153: 0.9166919166 | G153: 0.8539987641 | H153: 0.5780263158 | I153: 0.6569736842 | J153: 0.7539135085 | K153: 0.8273144548 | L153: 0.4357818477 | M153: 0.391532607 | N153: 0.8539987641 | O153: 0.4953013352 | P153: 0.3586974288 | Q153: 2.391362618 | R153: 23.88056373 | S153: 22.95579202 | AA153: 298 | AB153: -1.104002015 | AC153: -0.8388002132 | AD153: 0.4694715628 | AE153: -0.8829475929 | AF153: 0.3521036721 | AG153: -0.6622106946
A154: 148 | B154: 0.9666666667 | C154: 1.256666667 | F154: 0.9013286367 | G154: 0.8404516539 | H154: 0.5895402299 | I154: 0.6671264368 | J154: 0.7449445062 | K154: 0.8134490946 | L154: 0.4391747554 | M154: 0.3742743392 | N154: 0.8404516539 | O154: 0.496972174 | P154: 0.3434794799 | Q154: 2.423838835 | R154: 22.84681365 | S154: 21.82871574 | AA154: 300 | AB154: -1.075 | AC154: -0.8227241336 | AD154: 0.5 | AE154: -0.8660254038 | AF154: 0.375 | AG154: -0.6495190528 | AK154: =AK151+0.5 -> 25 | AL154: =COS(AK154) -> 0.9912028119 | AM154: =SIN(AK154) -> -0.1323517501 | AN154: =$U$1+Rmoo_*COS(AK154*dr_) -> -0.6890076023 | AO154: =Rmoo_*SIN(AK154*dr_) -> 0.4014873487
A155: 149 | B155: 0.9833333333 | C155: 1.278333333 | F155: 0.8858075915 | G155: 0.8267067889 | H155: 0.6010310734 | I155: 0.6773022599 | J155: 0.7357048652 | K155: 0.7994413514 | L155: 0.4421814849 | M155: 0.3572598665 | N155: 0.8267067889 | O155: 0.4982945678 | P155: 0.328412221 | Q155: 2.455920566 | R155: 21.82562041 | S155: 20.72087262 | AA155: 302 | AB155: -1.046576699 | AC155: -0.8056456913 | AD155: 0.5299192642 | AE155: -0.8480480962 | AF155: 0.3974394482 | AG155: -0.6360360721 | AL155: 0 | AM155: 0 | AN155: =$U$1 -> -1.55 | AO155: 0
A156: 150 | B156: 1 | C156: 1.3 | F156: 0.8701173588 | G156: 0.8127555614 | H156: 0.6125 | I156: 0.6875 | J156: 0.7261843774 | K156: 0.7852809163 | L156: 0.4447879312 | M156: 0.3404929851 | N156: 0.8127555614 | O156: 0.4992517595 | P156: 0.3135038019 | Q156: 2.487595867 | R156: 20.81736428 | S156: 19.63320278 | AA156: 304 | AB156: -1.018766742 | AC156: -0.7875856939 | AD156: 0.5591929035 | AE156: -0.8290375726 | AF156: 0.4193946776 | AG156: -0.6217781794
A157: 151 | B157: 1.016666667 | C157: 1.321666667 | F157: 0.8542457469 | G157: 0.7985884775 | H157: 0.6239480874 | I157: 0.6977185792 | J157: 0.7163719594 | K157: 0.7709567866 | L157: 0.4469789139 | M157: 0.3239778727 | N157: 0.7985884775 | O157: 0.4998260257 | P157: 0.2987624518 | Q157: 2.518852329 | R157: 19.82244018 | S157: 18.56605547 | AA157: 306 | AB157: -0.9916040103 | AC157: -0.7685661447 | AD157: 0.5877852523 | AE157: -0.8090169944 | AF157: 0.4408389392 | AG157: -0.6067627458 | AK157: =AK154+0.5 -> 25.5 | AL157: =COS(AK157) -> 0.9333151121 | AM157: =SIN(AK157) -> 0.359058354 | AN157: =$U$1+Rmoo_*COS(AK157*dr_) -> -0.6925439799 | AO157: =Rmoo_*SIN(AK157*dr_) -> 0.408985542
A158: 152 | B158: 1.033333333 | C158: 1.343333333 | F158: 0.838179685 | G158: 0.7841950636 | H158: 0.6353763441 | I158: 0.7079569892 | J158: 0.7062555496 | K158: 0.7564571657 | L158: 0.4487380691 | M158: 0.3077190966 | N158: 0.7841950636 | O158: 0.4999985526 | P158: 0.2841965111 | Q158: 2.549677046 | R158: 18.84125897 | S158: 17.52005101 | AA158: 308 | AB158: -0.9651215984 | AC158: -0.7486102159 | AD158: 0.6156614753 | AE158: -0.7880107536 | AF158: 0.4617461065 | AG158: -0.5910080652 | AL158: 0 | AM158: 0 | AN158: =$U$1 -> -1.55 | AO158: 0
A159: 153 | B159: 1.05 | C159: 1.365 | F159: 0.8219050952 | G159: 0.7695637566 | H159: 0.6467857143 | I159: 0.7182142857 | J159: 0.6958219886 | K159: 0.7417693485 | L159: 0.4500477219 | M159: 0.2917216266 | N159: 0.7695637566 | O159: 0.4997492925 | P159: 0.2698144641 | Q159: 2.580056563 | R159: 17.87424891 | S159: 16.49615731 | AA159: 310 | AB159: -0.9393517708 | AC159: -0.727742221 | AD159: 0.6427876097 | AE159: -0.7660444431 | AF159: 0.4820907073 | AG159: -0.5745333323
A160: 154 | B160: 1.066666667 | C160: 1.386666667 | F160: 0.8054067464 | G160: 0.7546817735 | H160: 0.6581770833 | I160: 0.7284895833 | J160: 0.6850568786 | K160: 0.7268795886 | L160: 0.4508887383 | M160: 0.2759908503 | N160: 0.7546817735 | O160: 0.4990568001 | P160: 0.2556249734 | Q160: 2.60997683 | R160: 16.92185723 | S160: 15.49472417 | AA160: 312 | AB160: -0.914325924 | AC160: -0.7059875842 | AD160: 0.6691306064 | AE160: -0.7431448255 | AF160: 0.5018479548 | AG160: -0.5573586191 | AK160: =AK157+0.5 -> 26 | AL160: =COS(AK160) -> 0.6469193223 | AM160: =SIN(AK160) -> 0.7625584505 | AN160: =$U$1+Rmoo_*COS(AK160*dr_) -> -0.696145656 | AO160: =Rmoo_*SIN(AK160*dr_) -> 0.4164525894
A161: 155 | B161: 1.083333333 | C161: 1.408333333 | F161: 0.7886680822 | G161: 0.7395349577 | H161: 0.6695512821 | I161: 0.7387820513 | J161: 0.6739444196 | K161: 0.7117729442 | L161: 0.4512403502 | M161: 0.260532594 | N161: 0.7395349577 | O161: 0.4978980408 | P161: 0.2416369169 | Q161: 2.639423143 | R161: 15.98455199 | S161: 14.51638998 | AA161: 314 | AB161: -0.8900745481 | AC161: -0.6833728103 | AD161: 0.6946583705 | AE161: -0.7193398003 | AF161: 0.5209937778 | AG161: -0.5395048503 | AL161: 0 | AM161: 0 | AN161: =$U$1 -> -1.55 | AO161: 0
A162: 156 | B162: 1.1 | C162: 1.43 | F162: 0.7716710206 | G162: 0.7241075952 | H162: 0.6809090909 | I162: 0.7490909091 | J162: 0.6624672142 | K162: 0.6964330961 | L162: 0.4510799486 | M162: 0.2453531475 | N162: 0.7241075952 | O162: 0.4962481677 | P162: 0.2278594275 | Q162: 2.668380079 | R162: 15.06282409 | S162: 13.56215274 | AA162: 316 | AB162: -0.8666271897 | AC162: -0.6599254519 | AD162: 0.7193398003 | AE162: -0.6946583705 | AF162: 0.5395048503 | AG162: -0.5209937778
A163: 157 | B163: 1.116666667 | C163: 1.451666667 | F163: 0.7543957151 | G163: 0.7083821952 | H163: 0.6922512438 | I163: 0.7594154229 | J163: 0.6506060371 | K163: 0.6808421329 | L163: 0.4503828384 | M163: 0.2304592945 | N163: 0.7083821952 | O163: 0.4940802588 | P163: 0.2143019365 | Q163: 2.696831423 | R163: 14.15718968 | S163: 12.63237536 | AA163: 318 | AB163: -0.8440124158 | AC163: -0.635674076 | AD163: 0.7431448255 | AE163: -0.6691306064 | AF163: 0.5573586191 | AG163: -0.5018479548 | AK163: =AK160+0.5 -> 26.5 | AL163: =COS(AK163) -> 0.2021351204 | AM163: =SIN(AK163) -> 0.9793576431 | AN163: =$U$1+Rmoo_*COS(AK163*dr_) -> -0.6998123565 | AO163: =Rmoo_*SIN(AK163*dr_) -> 0.4238879225
A164: 158 | B164: 1.133333333 | C164: 1.473333333 | F164: 0.7368202704 | G164: 0.6923392259 | H164: 0.7035784314 | I164: 0.769754902 | J164: 0.6383395577 | K164: 0.6649802941 | L164: 0.4491219447 | M164: 0.2158583494 | N164: 0.6923392259 | O164: 0.4913650036 | P164: 0.2009742223 | Q164: 2.724760082 | R164: 13.26819284 | S164: 11.72772337 | AA164: 320 | AB164: =$U$1+Rmoo_*COS(AA164*dr_) -> -0.822257779 | AC164: =Rmoo_*SIN(AA164*dr_) -> -0.6106482292 | AD164: 0.7660444431 | AE164: -0.6427876097 | AF164: =AD164*$C$3 -> 0.5745333323 | AG164: =AE164*$C$3 -> -0.4820907073 | AL164: 0 | AM164: 0 | AN164: =$U$1 -> -1.55 | AO164: 0
A165: 159 | B165: 1.15 | C165: 1.495 | F165: 0.7189204001 | G165: 0.6759567943 | H165: 0.7148913043 | I165: 0.7801086957 | J165: 0.6256440066 | K165: 0.6488256611 | L165: 0.4472674599 | M165: 0.2015582012 | N165: 0.6759567943 | O165: 0.4880703299 | P165: 0.1878864644 | Q165: 2.752147988 | R165: 12.39640872 | S165: 10.84923037 | AA165: 322 | AB165: -0.8013897841 | AC165: -0.5848784016 | AD165: 0.7880107536 | AE165: -0.6156614753 | AF165: 0.5910080652 | AG165: -0.4617461065
A166: 160 | B166: 1.166666667 | C166: =(1+Rmoo_)*B166*2*60/$A$3 -> 1.516666667 | D166: =IF(Rmoo_>=1,IF((ABS(C166)<=(Rmoo_-1)),1,""),"") ->  | E166: =IF(Rmoo_<1,IF(ABS(C166)+Rmoo_<1,1,""),"") ->  | F166: =IF(Rmoo_>=1,IFERROR(ACOS((Rmoo_^2+C166^2-1^2)/(2*Rmoo_*ABS(C166))),0), IFERROR(ACOS((Rmoo_^2+C166^2-1^2)/(2*Rmoo_*ABS(C166))),0)) -> 0.7006690108 | G166: =IFERROR(ACOS((C166^2+1^2-Rmoo_^2)/(2*ABS(C166)*1)),0) -> 0.6592102559 | H166: =Rmoo_*COS(F166) -> 0.7261904762 | I166: 0.7904761905 | J166: 0.6124927692 | K166: =Rmoo_^2*pi_*(2*F166)/(2*pi_) -> 0.6323537822 | L166: 0.4447864157 | M166: 0.1875673665 | N166: 0.6592102559 | O166: 0.4841609509 | P166: 0.1750493051 | Q166: =IF(OR(D166=1,E166=1),IF(D166=1,0,1^2*pi_-Rmoo_^2*pi_),IF(Rmoo_>=1,1^2*pi_-M166-P166,1^2*pi_-M166-P166)) -> 2.778975982 | R166: =100-Q166/pi_*100 -> 11.54244715 | S166: =Eclipse_Dimming(C166,Rmoo_,2000,$D$3) -> 9.99728799 | AA166: 324 | AB166: -0.7814338553 | AC166: -0.5583959897 | AD166: 0.8090169944 | AE166: -0.5877852523 | AF166: 0.6067627458 | AG166: -0.4408389392 | AK166: =AK163+0.5 -> 27 | AL166: =COS(AK166) -> -0.2921388087 | AM166: =SIN(AK166) -> 0.9563759284 | AN166: =$U$1+Rmoo_*COS(AK166*dr_) -> -0.703543802 | AO166: =Rmoo_*SIN(AK166*dr_) -> 0.4312909748
A167: 161 | B167: 1.183333333 | C167: 1.538333333 | F167: 0.6820356916 | G167: 0.6420717337 | H167: 0.7374765258 | I167: 0.8008568075 | J167: 0.5988558874 | K167: 0.6155372117 | L167: 0.4416421593 | M167: 0.1738950524 | N167: 0.6420717337 | O167: 0.4795978141 | P167: 0.1624739196 | Q167: 2.805223682 | R167: 10.70695692 | S167: 9.172602003 | AA167: 326 | AB167: -0.7624143061 | AC167: -0.5312332583 | AD167: 0.8290375726 | AE167: -0.5591929035 | AF167: 0.6217781794 | AG167: -0.4193946776 | AL167: 0 | AM167: 0 | AN167: =$U$1 -> -1.55 | AO167: 0
A168: 162 | B168: 1.2 | C168: 1.56 | F168: 0.6629860824 | G168: 0.6245095208 | H168: 0.74875 | I168: 0.81125 | J168: 0.584699442 | K168: 0.5983449393 | L168: 0.4377937072 | M168: 0.1605512321 | N168: 0.6245095208 | O168: 0.4743374223 | P168: 0.1501720984 | Q168: 2.830869323 | R168: 9.890630799 | S168: 8.376252367 | AA168: 328 | AB168: -0.7443543087 | AC168: -0.503423301 | AD168: 0.8480480962 | AE168: -0.5299192642 | AF168: 0.6360360721 | AG168: -0.3974394482
A169: 163 | B169: 1.216666667 | C169: 1.581666667 | F169: 0.6434810813 | G169: 0.6064873303 | H169: 0.7600114155 | I169: 0.8216552511 | J169: 0.569984779 | K169: 0.5807416759 | L169: 0.4331949387 | M169: 0.1475467372 | N169: 0.6064873303 | O169: 0.4683309867 | P169: 0.1381563435 | Q169: 2.855889573 | R169: 9.09421151 | S169: 7.608680845 | AA169: 330 | AB169: -0.7272758664 | AC169: -0.475 | AD169: 0.8660254038 | AE169: -0.5 | AF169: 0.6495190528 | AG169: -0.375 | AK169: =AK166+0.5 -> 27.5 | AL169: =COS(AK169) -> -0.7148869688 | AM169: =SIN(AK169) -> 0.6992400317 | AN169: =$U$1+Rmoo_*COS(AK169*dr_) -> -0.7073397085 | AO169: =Rmoo_*SIN(AK169*dr_) -> 0.4386611826
A170: 164 | B170: 1.233333333 | C170: 1.603333333 | F170: 0.6234758397 | G170: 0.587963342 | H170: 0.7712612613 | I170: 0.8320720721 | J170: 0.5546675282 | K170: 0.5626869453 | L170: 0.4277935774 | M170: 0.1348933679 | N170: 0.587963342 | O170: 0.4615233595 | P170: 0.1264399825 | Q170: 2.880259303 | R170: 8.318498903 | S170: 6.870654183 | AA170: 332 | AB170: -0.7111997868 | AC170: -0.4459979846 | AD170: 0.8829475929 | AE170: -0.4694715628 | AF170: 0.6622106946 | AG170: -0.3521036721 | AL170: 0 | AM170: 0 | AN170: =$U$1 -> -1.55 | AO170: 0
A171: 165 | B171: 1.25 | C171: 1.625 | F171: 0.6029184695 | G171: 0.5688889752 | H171: 0.7825 | I171: 0.8425 | J171: 0.538696343 | K171: 0.5441339187 | L171: 0.4215298884 | M171: 0.1226040303 | N171: 0.5688889752 | O171: 0.453851669 | P171: 0.1150373062 | Q171: 2.903951317 | R171: 7.564358678 | S171: 6.163318671 | AA171: 334 | AB171: -0.696145656 | AC171: -0.4164525894 | AD171: 0.8987940463 | AE171: -0.4383711468 | AF171: 0.6740955347 | AG171: -0.3287783601
A172: 166 | B172: 1.266666667 | C172: 1.646666667 | F172: 0.5817483547 | G172: 0.5492072844 | H172: 0.7937280702 | I172: 0.8529385965 | J172: 0.5220112553 | K172: 0.5250278901 | L172: 0.4143349862 | M172: 0.1106929039 | N172: 0.5492072844 | O172: 0.4452435474 | P172: 0.103963737 | Q172: 2.926936013 | R172: 6.83273309 | S172: 5.487199366 | AA172: 336 | AB172: -0.6821318152 | AC172: -0.3863998109 | AD172: 0.9135454576 | AE172: -0.4067366431 | AF172: 0.6851590932 | AG172: -0.3050524823 | AK172: =AK169+0.5 -> 28 | AL172: =COS(AK172) -> -0.9626058663 | AM172: =SIN(AK172) -> 0.2709057883 | AN172: =$U$1+Rmoo_*COS(AK172*dr_) -> -0.7111997868 | AO172: =Rmoo_*SIN(AK172*dr_) -> 0.4459979846
A173: 167 | B173: 1.283333333 | C173: 1.668333333 | F173: 0.5598939087 | G173: 0.5288508271 | H173: 0.8049458874 | I173: 0.8633874459 | J173: 0.5045414931 | K173: 0.5053042526 | L173: 0.4061285999 | M173: 0.09917565268 | N173: 0.5288508271 | O173: 0.4356147911 | P173: 0.09323603602 | Q173: 2.949180965 | R173: 6.124654273 | S173: 4.84315965 | AA173: 338 | AB173: -0.6691753382 | AC173: -0.3558762637 | AD173: 0.9271838546 | AE173: -0.3746065934 | AF173: 0.6953878909 | AG173: -0.2809549451 | AL173: 0 | AM173: 0 | AN173: =$U$1 -> -1.55 | AO173: 0
A174: 168 | B174: 1.3 | C174: 1.69 | F174: 0.5372695368 | G174: 0.5077387755 | H174: 0.8161538462 | I174: 0.8738461538 | J174: 0.4862025292 | K174: 0.4848857569 | L174: 0.3968160642 | M174: 0.08806969273 | N174: 0.5077387755 | O174: 0.4248662101 | P174: 0.08287256532 | Q174: 2.970650396 | R174: 5.44126107 | S174: 4.232450986 | AA174: 340 | AB174: -0.6572920103 | AC174: -0.3249191362 | AD174: 0.9396926208 | AE174: -0.3420201433 | AF174: 0.7047694656 | AG174: -0.2565151075
A175: 169 | B175: 1.316666667 | C175: 1.711666667 | F175: 0.5137714284 | G175: 0.4857729139 | H175: 0.8273523207 | I175: 0.884314346 | J175: 0.4668919977 | K175: 0.4636787142 | L175: 0.3862841778 | M175: 0.07739453639 | N175: 0.4857729139 | O175: 0.4128792916 | P175: 0.0728936223 | Q175: 2.991304495 | R175: 4.783820669 | S175: 3.655740281 | AA175: 342 | AB175: -0.6464963095 | AC175: -0.2935661447 | AD175: 0.9510565163 | AE175: -0.3090169944 | AF175: 0.7132923872 | AG175: -0.2317627458 | AK175: =AK172+0.5 -> 28.5 | AL175: =COS(AK175) -> -0.9746452757 | AM175: =SIN(AK175) -> -0.2237556402 | AN175: =$U$1+Rmoo_*COS(AK175*dr_) -> -0.715123743 | AO175: =Rmoo_*SIN(AK175*dr_) -> 0.4533008222
A176: 170 | B176: 1.333333333 | C176: 1.733333333 | F176: 0.4892715783 | G176: 0.4628319512 | H176: 0.8385416667 | I176: 0.8947916667 | J176: 0.4464839003 | K176: 0.4415675994 | L176: 0.3743953539 | M176: 0.0671722455 | N176: 0.4628319512 | O176: 0.3995100733 | P176: 0.06332187792 | Q176: 3.01109853 | R176: 4.153756957 | S176: 3.11405684 | AA176: 344 | AB176: -0.6368013889 | AC176: -0.261855488 | AD176: 0.9612616959 | AE176: -0.2756373558 | AF176: 0.720946272 | AG176: -0.2067280169 | AL176: 0 | AM176: 0 | AN176: =$U$1 -> -1.55 | AO176: 0
A177: 171 | B177: 1.35 | C177: 1.755 | F177: 0.4636090276 | G177: 0.4387631888 | H177: 0.8497222222 | I177: 0.9052777778 | J177: 0.4248201326 | K177: 0.4184071474 | L177: 0.3609791071 | M177: 0.05742804033 | N177: 0.4387631888 | O177: 0.3845802256 | P177: 0.05418296323 | Q177: 3.02998165 | R177: 3.552688584 | S177: 2.608840992 | AA177: 346 | AB177: -0.62821906 | AC177: -0.2298258008 | AD177: 0.9702957263 | AE177: -0.2419218956 | AF177: 0.7277217947 | AG177: -0.1814414217
A178: 172 | B178: 1.366666667 | C178: 1.776666667 | F178: 0.4365765624 | G178: 0.4133698665 | H178: 0.8608943089 | I178: 0.9157723577 | J178: 0.4016976336 | K178: 0.3940103476 | L178: 0.3458192067 | M178: 0.04819114093 | N178: 0.4133698665 | O178: 0.367863589 | P178: 0.04550627752 | Q178: 3.047895235 | R178: 2.98248146 | S178: 2.141024244 | AA178: 348 | AB178: -0.6207597793 | AC178: -0.1975161063 | AD178: 0.9781476007 | AE178: -0.2079116908 | AF178: 0.7336107006 | AG178: -0.1559337681 | AK178: =AK175+0.5 -> 29 | AL178: =COS(AK178) -> -0.7480575297 | AM178: =SIN(AK178) -> -0.6636338842 | AN178: =$U$1+Rmoo_*COS(AK178*dr_) -> -0.7191112782 | AO178: =Rmoo_*SIN(AK178*dr_) -> 0.4605691392
A179: 173 | B179: 1.383333333 | C179: 1.798333333 | F179: 0.4078996089 | G179: 0.3863910877 | H179: 0.8720582329 | I179: 0.9262751004 | J179: 0.3768480309 | K179: 0.3681293971 | L179: 0.3286334279 | M179: 0.03949596918 | N179: 0.3863910877 | O179: 0.3490649476 | P179: 0.03732614009 | Q179: 3.064770544 | R179: 2.445323686 | S179: 1.711962646 | AA179: 350 | AB179: -0.6144326346 | AC179: -0.1649657688 | AD179: 0.984807753 | AE179: -0.1736481777 | AF179: 0.7386058148 | AG179: -0.1302361333 | AL179: 0 | AM179: 0 | AN179: =$U$1 -> -1.55 | AO179: 0
A180: 174 | B180: 1.4 | C180: 1.82 | F180: 0.3772008771 | G180: 0.3574681908 | H180: 0.8832142857 | I180: 0.9367857143 | J180: 0.3499035946 | K180: 0.3404237916 | L180: 0.3090398534 | M180: 0.03138393821 | N180: 0.3574681908 | O180: 0.3277846888 | P180: 0.02968350203 | Q180: 3.080525213 | R180: 1.943836995 | S180: 1.323503222 | AA180: 352 | AB180: -0.6092453347 | AC180: -0.1322144459 | AD180: 0.9902680687 | AE180: -0.139173101 | AF180: 0.7427010516 | AG180: -0.1043798257
A181: 175 | B181: 1.416666667 | C181: 1.841666667 | F181: 0.3439368677 | G181: 0.3260843665 | H181: 0.8943627451 | I181: 0.9473039216 | J181: 0.3203361987 | K181: 0.3104030231 | L181: 0.286496762 | M181: 0.0239062611 | N181: 0.3260843665 | O181: 0.3034557372 | P181: 0.02262862932 | Q181: 3.095057763 | R181: 1.481251567 | S181: 0.9771769128 | AA181: 354 | AB181: -0.6052041994 | AC181: -0.0993020401 | AD181: 0.9945218954 | AE181: -0.1045284633 | AF181: 0.7458914215 | AG181: -0.07839634745 | AK181: =AK178+0.5 -> 29.5 | AL181: =COS(AK181) -> -0.338319211 | AM181: =SIN(AK181) -> -0.9410314083 | AN181: =$U$1+Rmoo_*COS(AK181*dr_) -> -0.7231620889 | AO181: =Rmoo_*SIN(AK181*dr_) -> 0.4678023821
A182: 176 | B182: 1.433333333 | C182: 1.863333333 | F182: 0.3072728282 | G182: 0.2914457549 | H182: 0.905503876 | I182: 0.9578294574 | J182: 0.2873373115 | K182: 0.2773137274 | L182: 0.2601850493 | M182: 0.0171286781 | N182: 0.2914457549 | O182: 0.2752201412 | P182: 0.0162256137 | Q182: 3.108238362 | R182: 1.061700083 | S182: 0.675174295 | AA182: 356 | AB182: -0.6023141523 | AC182: -0.06626865006 | AD182: 0.9975640503 | AE182: -0.06975647374 | AF182: 0.7481730377 | AG182: -0.05231735531 | AL182: 0 | AM182: 0 | AN182: =$U$1 -> -1.55 | AO182: 0
A183: 177 | B183: 1.45 | C183: 1.885 | F183: 0.2658024059 | G183: 0.2522149061 | H183: 0.916637931 | I183: 0.968362069 | J183: 0.2495494007 | K183: 0.2398866713 | L183: 0.2287464463 | M183: 0.01114022499 | N183: 0.2522149061 | O183: 0.241654174 | P183: 0.01056073215 | Q183: 3.119891696 | R183: 0.6907629199 | S183: 0.4205770834 | AA183: 358 | AB183: -0.6005787143 | AC183: -0.03315452187 | AD183: 0.999390827 | AE183: -0.0348994967 | AF183: 0.7495431203 | AG183: -0.02617462253
A184: 178 | B184: 1.466666667 | C184: 1.906666667 | F184: 0.2167808923 | G184: 0.2057819046 | H184: 0.9277651515 | I184: 0.9789015152 | J184: 0.2043326299 | K184: 0.1956447553 | L184: 0.1895726933 | M184: 0.006072062005 | N184: 0.2057819046 | O184: 0.200021521 | P184: 0.005760383609 | Q184: 3.129760208 | R184: 0.3766384417 | S184: 0.2170700182 | AA184: 360 | AB184: -0.6 | AC184: -2.327782064e-16 | AD184: 1 | AE184: -2.45029691e-16 | AF184: 0.75 | AG184: -1.837722682e-16 | AK184: =AK181+0.5 -> 30 | AL184: =COS(AK184) -> 0.1542514499 | AM184: =SIN(AK184) -> -0.9880316241 | AN184: =$U$1+Rmoo_*COS(AK184*dr_) -> -0.7272758664 | AO184: =Rmoo_*SIN(AK184*dr_) -> 0.475
A185: 179 | B185: 1.483333333 | C185: 1.928333333 | F185: 0.1531148267 | G185: 0.1454032038 | H185: 0.9388857678 | I185: 0.9894475655 | J185: 0.1448913905 | K185: 0.1381861311 | L185: 0.1360364644 | M185: 0.002149666722 | N185: 0.1454032038 | O185: 0.1433624336 | P185: 0.002040770206 | Q185: 3.137402217 | R185: 0.1333857502 | S185: 0.07110407427 | AL185: 0 | AM185: 0 | AN185: =$U$1 -> -1.55 | AO185: 0
A186: 180 | B186: 1.5 | C186: 1.95 | F186: 0 | G186: 0 | H186: 0.95 | I186: 1 | J186: 0 | K186: 0 | L186: 0 | M186: 0 | N186: 0 | O186: 0 | P186: 0 | Q186: 3.141592654 | R186: 0 | S186: 0
AK187: =AK184+0.5 -> 30.5 | AL187: =COS(AK187) -> 0.6090559761 | AM187: =SIN(AK187) -> -0.7931272395 | AN187: =$U$1+Rmoo_*COS(AK187*dr_) -> -0.7314522976 | AO187: =Rmoo_*SIN(AK187*dr_) -> 0.4821614448
AL188: 0 | AM188: 0 | AN188: =$U$1 -> -1.55 | AO188: 0
AK190: =AK187+0.5 -> 31 | AL190: =COS(AK190) -> 0.9147423578 | AM190: =SIN(AK190) -> -0.4040376453 | AN190: =$U$1+Rmoo_*COS(AK190*dr_) -> -0.7356910643 | AO190: =Rmoo_*SIN(AK190*dr_) -> 0.4892861712
AL191: 0 | AM191: 0 | AN191: =$U$1 -> -1.55 | AO191: 0
AK193: =AK190+0.5 -> 31.5 | AL193: =COS(AK193) -> 0.9964679076 | AM193: =SIN(AK193) -> 0.08397445569 | AN193: =$U$1+Rmoo_*COS(AK193*dr_) -> -0.7399918439 | AO193: =Rmoo_*SIN(AK193*dr_) -> 0.4963736365
AL194: 0 | AM194: 0 | AN194: =$U$1 -> -1.55 | AO194: 0
AK196: =AK193+0.5 -> 32 | AL196: =COS(AK196) -> 0.8342233605 | AM196: =SIN(AK196) -> 0.5514266812 | AN196: =$U$1+Rmoo_*COS(AK196*dr_) -> -0.7443543087 | AO196: =Rmoo_*SIN(AK196*dr_) -> 0.503423301
AL197: 0 | AM197: 0 | AN197: =$U$1 -> -1.55 | AO197: 0
AK199: =AK196+0.5 -> 32.5 | AL199: =COS(AK199) -> 0.4677318402 | AM199: =SIN(AK199) -> 0.8838704235 | AN199: =$U$1+Rmoo_*COS(AK199*dr_) -> -0.7487781265 | AO199: =Rmoo_*SIN(AK199*dr_) -> 0.5104346279
AL200: 0 | AM200: 0 | AN200: =$U$1 -> -1.55 | AO200: 0
AK202: =AK199+0.5 -> 33 | AL202: =COS(AK202) -> -0.01327674722 | AM202: =SIN(AK202) -> 0.9999118601 | AN202: =$U$1+Rmoo_*COS(AK202*dr_) -> -0.7532629605 | AO202: =Rmoo_*SIN(AK202*dr_) -> 0.5174070833
AL203: 0 | AM203: 0 | AN203: =$U$1 -> -1.55 | AO203: 0
AK205: =AK202+0.5 -> 33.5 | AL205: =COS(AK205) -> -0.4910347239 | AM205: =SIN(AK205) -> 0.8711400002 | AN205: =$U$1+Rmoo_*COS(AK205*dr_) -> -0.757808469 | AO205: =Rmoo_*SIN(AK205*dr_) -> 0.524340136
AL206: 0 | AM206: 0 | AN206: =$U$1 -> -1.55 | AO206: 0
... 1304 more rows

Sheet Eclipse_Dimming(ED2)
A1: Duration | B1: Rmoon | D1: a | E1: b | F1: Change only numbers in the yellow fields. Move the slider below the chart. | T1: Xmoon | U1: =(Y1-240)/100 -> -1.08 | V1: Slider position | Y1: 132 | AP1: Example using n=100 (red dot)
A2: min | T2: Ymoon | U2: 0 | AT2: sum | AU2: sum
A3: 180 | B3: 0.95 | C3: 0.75 | D3: 0.85 | E3: 0.8 | U3: rad | V3: deg | X3: rad | Y3: deg | AA3: ang | AB3: Xmoo | AC3: Ymoo | AD3: Xsun | AE3: Ysun | AF3: Xsun | AG3: Ysun | AL3: Sun disk | AN3: Moon disk | AP3: r | AQ3: c | AR3: bSun | AT3: =SUM(AT4:AT104) -> 37.86809097 | AU3: =SUM(AU4:AU104) -> 11.94077903
T4: tot | U4: =IF(Rmoo_>=1,IF((ABS(U1)<=(Rmoo_-1)),1,""),"") ->  | W4: tot | X4: =IF(Rmoo_>=1,IF((ABS(U1)<=(Rmoo_-C3)),1,""),"") ->  | AA4: 0 | AB4: =$U$1+Rmoo_*COS(AA4*dr_) -> -0.13 | AC4: =Rmoo_*SIN(AA4*dr_) -> 0 | AD4: =COS(AA4*dr_) -> 1 | AE4: =SIN(AA4*dr_) -> 0 | AF4: =AD4*$C$3 -> 0.75 | AG4: 0 | AH4: -3.5 | AI4: -1.25 | AJ4: 0 | AK4: 0 | AL4: =COS(AK4) -> 1 | AM4: =SIN(AK4) -> 0 | AN4: =$U$1+Rmoo_*COS(AK4*dr_) -> -0.13 | AO4: =Rmoo_*SIN(AK4*dr_) -> 0 | AP4: 0.995 | AQ4: =IF(AND(Xmoon_+Rmoo_>=AP4,Xmoon_-Rmoo_<=-AP4),1,"-") -> - | AR4: =rd_*(IFERROR(ACOS((Xmoon_^2+AP4^2-Rmoo_^2)/(2*ABS(Xmoon_)*AP4)),0)) -> 54.30727999 | AS4: =1-$D$3*(1-(SQRT(1-AP4^2))^$E$3) -> 0.2845811043 | AT4: =AS4*AP4 -> 0.2831581987 | AU4: =AT4*AR4/180 *(AQ4<>1)+ AT4*(AQ4=1) -> 0.08543084212
A5: min | B5: hrs | C5: Xmoo | D5: tot ? | E5: ann ? | F5: amoo | G5: bsun | H5: q | I5: Q | J5: h | K5: sector AC'C | L5: triangle AC'C | M5: segment C'FC | N5: sector BCC' | O5: triangle BCC' | P5: segment CGC' | Q5: Sun free | R5: Sun obsc.% | S5: Sun dimm.% | T5: ann | U5: =IF(Rmoo_<1,IF(ABS(U1)+Rmoo_<=1,1,""),"") ->  | W5: ann | X5: =IF(Rmoo_<1,IF(ABS(U1)+Rmoo_<=C3,1,""),"") ->  | AA5: =AA4+2 -> 2 | AB5: -0.1305787143 | AC5: 0.03315452187 | AD5: 0.999390827 | AE5: 0.0348994967 | AF5: 0.7495431203 | AG5: 0.02617462253 | AH5: 3.5 | AI5: -1.25 | AJ5: 0 | AL5: 0 | AM5: 0 | AN5: =$U$1 -> -1.08 | AO5: 0 | AP5: =AP4-0.01 -> 0.985 | AQ5: - | AR5: 54.54558946 | AS5: =1-$D$3*(1-(SQRT(1-AP5^2))^$E$3) -> 0.3584297146 | AT5: 0.3530532688 | AU5: =AT5*AR5/180 *(AQ5<>1)+ AT5*(AQ5=1) -> 0.1069861037
A6: 0 | B6: =(A6-180*($A$3/180)/2)/60 -> -1.5 | C6: =(1+Rmoo_)*B6*2*60/$A$3 -> -1.95 | D6: =IF(Rmoo_>=1,IF((ABS(C6)<=(Rmoo_-1)),1,""),"") ->  | E6: =IF(Rmoo_<1,IF(ABS(C6)+Rmoo_<1,1,""),"") ->  | F6: =IF(Rmoo_>=1,IFERROR(ACOS((Rmoo_^2+C6^2-1^2)/(2*Rmoo_*ABS(C6))),0), IFERROR(ACOS((Rmoo_^2+C6^2-1^2)/(2*Rmoo_*ABS(C6))),0)) -> 0 | G6: =IFERROR(ACOS((C6^2+1^2-Rmoo_^2)/(2*ABS(C6)*1)),0) -> 0 | H6: =Rmoo_*COS(F6) -> 0.95 | I6: =COS(G6) -> 1 | J6: =ABS(H6*TAN(F6)) -> 0 | K6: =Rmoo_^2*pi_*(2*F6)/(2*pi_) -> 0 | L6: =H6*J6 -> 0 | M6: =K6-L6 -> 0 | N6: =1^2*pi_*(2*G6)/(2*pi_) -> 0 | O6: =COS(G6)*J6 -> 0 | P6: =N6-O6 -> 0 | Q6: =IF(OR(D6=1,E6=1),IF(D6=1,0,1^2*pi_-Rmoo_^2*pi_),IF(Rmoo_>=1,1^2*pi_-M6-P6,1^2*pi_-M6-P6)) -> 3.141592654 | R6: =100-Q6/pi_*100 -> 0 | S6: =Eclipse_Dimming_2(C6,Rmoo_,2000,$D$3,$E$3) -> 0 | T6: amoo | U6: =IF(Rmoo_>=1,IFERROR(ACOS((Rmoo_^2+U1^2-1^2)/(2*Rmoo_*ABS(U1))),0), IFERROR(ACOS((Rmoo_^2+U1^2-1^2)/(2*Rmoo_*ABS(U1))),0)) -> 1.022883843 | V6: =U6*180/pi_ -> 58.60692713 | W6: amoo | X6: =IF(Rmoo_>=1,IFERROR(ACOS((Rmoo_^2+U1^2-C3^2)/(2*Rmoo_*ABS(U1))),0), IFERROR(ACOS((Rmoo_^2+U1^2-C3^2)/(2*Rmoo_*ABS(U1))),0)) -> 0.7464367612 | Y6: =X6*180/pi_ -> 42.76767609 | AA6: =AA5+2 -> 4 | AB6: -0.1323141523 | AC6: 0.06626865006 | AD6: 0.9975640503 | AE6: 0.06975647374 | AF6: 0.7481730377 | AG6: 0.05231735531 | AP6: =AP5-0.01 -> 0.975 | AQ6: - | AR6: 54.7814018 | AS6: 0.405165391 | AT6: 0.3950362563 | AU6: 0.1202257771
A7: =A6+$A$3/180 -> 1 | B7: -1.483333333 | C7: -1.928333333 | F7: 0.1531148267 | G7: 0.1454032038 | H7: 0.9388857678 | I7: 0.9894475655 | J7: =ABS(H7*TAN(F7)) -> 0.1448913905 | K7: 0.1381861311 | L7: =H7*J7 -> 0.1360364644 | M7: =K7-L7 -> 0.002149666722 | N7: 0.1454032038 | O7: =COS(G7)*J7 -> 0.1433624336 | P7: =N7-O7 -> 0.002040770206 | Q7: 3.137402217 | R7: 0.1333857502 | S7: 0.05387712316 | T7: bsun | U7: =IFERROR(ACOS(($U$1^2+1^2-Rmoo_^2)/(2*ABS($U$1)*1)),0) -> 0.9457450091 | V7: =U7*180/pi_ -> 54.18719752 | W7: bsun | X7: =IFERROR(ACOS(($U$1^2+C3^2-Rmoo_^2)/(2*ABS($U$1)*C3)),0) -> 1.035468005 | Y7: =X7*180/pi_ -> 59.32794651 | AA7: 6 | AB7: -0.1352041994 | AC7: 0.0993020401 | AD7: 0.9945218954 | AE7: 0.1045284633 | AF7: 0.7458914215 | AG7: 0.07839634745 | AH7: -3.5 | AI7: =AI4+0.25 -> -1 | AJ7: =AJ4+10 -> 10 | AK7: =AK4+0.5 -> 0.5 | AL7: =COS(AK7) -> 0.8775825619 | AM7: =SIN(AK7) -> 0.4794255386 | AN7: =$U$1+Rmoo_*COS(AK7*dr_) -> -0.1300361731 | AO7: =Rmoo_*SIN(AK7*dr_) -> 0.008290208723 | AP7: 0.965 | AQ7: - | AR7: 55.01468718 | AS7: 0.4413339957 | AT7: 0.4258873059 | AU7: 0.1301669828
A8: 2 | B8: -1.466666667 | C8: -1.906666667 | F8: 0.2167808923 | G8: 0.2057819046 | H8: 0.9277651515 | I8: 0.9789015152 | J8: 0.2043326299 | K8: 0.1956447553 | L8: 0.1895726933 | M8: 0.006072062005 | N8: 0.2057819046 | O8: 0.200021521 | P8: 0.005760383609 | Q8: 3.129760208 | R8: 0.3766384417 | S8: 0.1767457647 | T8: q | U8: =(Rmoo_*COS(U6)) -> 0.4948611111 | W8: q | X8: =(Rmoo_*COS(X6)) -> 0.6974074074 | AA8: 8 | AB8: -0.1392453347 | AC8: 0.1322144459 | AD8: 0.9902680687 | AE8: 0.139173101 | AF8: 0.7427010516 | AG8: 0.1043798257 | AH8: 3.5 | AI8: =AI5+0.25 -> -1 | AJ8: =AJ7 -> 10 | AL8: 0 | AM8: 0 | AN8: =$U$1 -> -1.08 | AO8: 0 | AP8: 0.955 | AQ8: - | AR8: 55.24541328 | AS8: 0.4714864225 | AT8: 0.4502695335 | AU8: 0.1381962582
A9: 3 | B9: -1.45 | C9: -1.885 | F9: 0.2658024059 | G9: 0.2522149061 | H9: 0.916637931 | I9: 0.968362069 | J9: 0.2495494007 | K9: 0.2398866713 | L9: 0.2287464463 | M9: 0.01114022499 | N9: 0.2522149061 | O9: 0.241654174 | P9: 0.01056073215 | Q9: 3.119891696 | R9: 0.6907629199 | S9: 0.3564952604 | T9: Q | U9: =COS(U7) -> 0.5851388889 | W9: Q | X9: =COS(X7) -> 0.5101234568 | AA9: 10 | AB9: -0.1444326346 | AC9: 0.1649657688 | AD9: 0.984807753 | AE9: 0.1736481777 | AF9: 0.7386058148 | AG9: 0.1302361333 | AP9: 0.945 | AQ9: - | AR9: 55.47354525 | AS9: 0.497641683 | AT9: 0.4702713904 | AU9: 0.1449312292
A10: 4 | B10: -1.433333333 | C10: -1.863333333 | F10: 0.3072728282 | G10: 0.2914457549 | H10: 0.905503876 | I10: 0.9578294574 | J10: 0.2873373115 | K10: 0.2773137274 | L10: 0.2601850493 | M10: 0.0171286781 | N10: 0.2914457549 | O10: 0.2752201412 | P10: 0.0162256137 | Q10: 3.108238362 | R10: 1.061700083 | S10: 0.5879806974 | T10: h | U10: =ABS(U8*TAN(U6)) -> 0.8109330926 | W10: h | X10: =ABS(X8*TAN(X6)) -> 0.6450758933 | AA10: 12 | AB10: -0.1507597793 | AC10: 0.1975161063 | AD10: 0.9781476007 | AE10: 0.2079116908 | AF10: 0.7336107006 | AG10: 0.1559337681 | AH10: -3.5 | AI10: =AI7+0.25 -> -0.75 | AJ10: =AJ7+10 -> 20 | AK10: =AK7+0.5 -> 1 | AL10: =COS(AK10) -> 0.5403023059 | AM10: =SIN(AK10) -> 0.8414709848 | AN10: =$U$1+Rmoo_*COS(AK10*dr_) -> -0.1301446896 | AO10: =Rmoo_*SIN(AK10*dr_) -> 0.01657978612 | AP10: 0.935 | AQ10: - | AR10: 55.69904558 | AS10: 0.5208998487 | AT10: 0.4870413585 | AU10: 0.1507096601
A11: 5 | B11: -1.416666667 | C11: -1.841666667 | F11: 0.3439368677 | G11: 0.3260843665 | H11: 0.8943627451 | I11: 0.9473039216 | J11: 0.3203361987 | K11: 0.3104030231 | L11: 0.286496762 | M11: 0.0239062611 | N11: 0.3260843665 | O11: 0.3034557372 | P11: 0.02262862932 | Q11: 3.095057763 | R11: 1.481251567 | S11: 0.8680798177 | U11: x | V11: y | X11: x | Y11: y | AA11: 14 | AB11: -0.15821906 | AC11: 0.2298258008 | AD11: 0.9702957263 | AE11: 0.2419218956 | AF11: 0.7277217947 | AG11: 0.1814414217 | AH11: 3.5 | AI11: =AI8+0.25 -> -0.75 | AJ11: =AJ10 -> 20 | AL11: 0 | AM11: 0 | AN11: =$U$1 -> -1.08 | AO11: 0 | AP11: 0.925 | AQ11: - | AR11: 55.92187397 | AS11: 0.5419365131 | AT11: 0.5012912747 | AU11: 0.1557397082
A12: 6 | B12: -1.4 | C12: -1.82 | F12: 0.3772008771 | G12: 0.3574681908 | H12: 0.8832142857 | I12: 0.9367857143 | J12: 0.3499035946 | K12: 0.3404237916 | L12: 0.3090398534 | M12: 0.03138393821 | N12: 0.3574681908 | O12: 0.3277846888 | P12: 0.02968350203 | Q12: 3.080525213 | R12: 1.943836995 | S12: 1.194006861 | T12: Sun | U12: 0 | V12: 0 | W12: Sun | X12: 0 | Y12: 0 | AA12: 16 | AB12: -0.1668013889 | AC12: 0.261855488 | AD12: 0.9612616959 | AE12: 0.2756373558 | AF12: 0.720946272 | AG12: 0.2067280169 | AP12: 0.915 | AQ12: - | AR12: 56.14198725 | AS12: 0.5612008534 | AT12: 0.5134987809 | AU12: 0.1601602334
A13: 7 | B13: -1.383333333 | C13: -1.798333333 | F13: 0.4078996089 | G13: 0.3863910877 | H13: 0.8720582329 | I13: 0.9262751004 | J13: 0.3768480309 | K13: 0.3681293971 | L13: 0.3286334279 | M13: 0.03949596918 | N13: 0.3863910877 | O13: 0.3490649476 | P13: 0.03732614009 | Q13: 3.064770544 | R13: 2.445323686 | S13: 1.563714018 | T13: AC=b | U13: =$U$1 -> -1.08 | V13: 0 | X13: =$U$1 -> -1.08 | Y13: 0 | AA13: 18 | AB13: -0.1764963095 | AC13: 0.2935661447 | AD13: 0.9510565163 | AE13: 0.3090169944 | AF13: 0.7132923872 | AG13: 0.2317627458 | AH13: -3.5 | AI13: =AI10+0.25 -> -0.5 | AJ13: =AJ10+10 -> 30 | AK13: =AK10+0.5 -> 1.5 | AL13: =COS(AK13) -> 0.07073720167 | AM13: =SIN(AK13) -> 0.9974949866 | AN13: =$U$1+Rmoo_*COS(AK13*dr_) -> -0.1303255413 | AO13: =Rmoo_*SIN(AK13*dr_) -> 0.02486810089 | AP13: 0.905 | AQ13: - | AR13: 56.35933921 | AS13: 0.5790089572 | AT13: 0.5240031063 | AU13: 0.1640692712
A14: 8 | B14: -1.366666667 | C14: -1.776666667 | F14: 0.4365765624 | G14: 0.4133698665 | H14: 0.8608943089 | I14: 0.9157723577 | J14: 0.4016976336 | K14: 0.3940103476 | L14: 0.3458192067 | M14: 0.04819114093 | N14: 0.4133698665 | O14: 0.367863589 | P14: 0.04550627752 | Q14: 3.047895235 | R14: 2.98248146 | S14: 1.975736996 | U14: =(U15+U13)/2 -> -0.8325694444 | V14: =(V15+V13)/2 -> 0.4054665463 | X14: =(X15+X13)/2 -> -0.7312962963 | Y14: =(Y15+Y13)/2 -> 0.3225379466 | AA14: 20 | AB14: -0.1872920103 | AC14: 0.3249191362 | AD14: 0.9396926208 | AE14: 0.3420201433 | AF14: 0.7047694656 | AG14: 0.2565151075 | AH14: 3.5 | AI14: =AI11+0.25 -> -0.5 | AJ14: =AJ13 -> 30 | AL14: 0 | AM14: 0 | AN14: =$U$1 -> -1.08 | AO14: 0 | AP14: 0.895 | AQ14: - | AR14: 56.57388048 | AS14: 0.5955929706 | AT14: 0.5330557087 | AU14: 0.1675390553
A15: 9 | B15: -1.35 | C15: -1.755 | F15: 0.4636090276 | G15: 0.4387631888 | H15: 0.8497222222 | I15: 0.9052777778 | J15: 0.4248201326 | K15: 0.4184071474 | L15: 0.3609791071 | M15: 0.05742804033 | N15: 0.4387631888 | O15: 0.3845802256 | P15: 0.05418296323 | Q15: 3.02998165 | R15: 3.552688584 | S15: 2.428256405 | T15: Point C | U15: =MIN(1,$U$1+$U$8) -> -0.5851388889 | V15: =$U$10 -> 0.8109330926 | W15: Point D | X15: =MIN(C3,$U$1+$X$8) -> -0.3825925926 | Y15: =$X$10 -> 0.6450758933 | AA15: 22 | AB15: -0.1991753382 | AC15: 0.3558762637 | AD15: 0.9271838546 | AE15: 0.3746065934 | AF15: 0.6953878909 | AG15: 0.2809549451 | AP15: 0.885 | AQ15: - | AR15: 56.78555837 | AS15: 0.6111291786 | AT15: 0.540849323 | AU15: 0.1706246156
A16: 10 | B16: -1.333333333 | C16: -1.733333333 | F16: 0.4892715783 | G16: 0.4628319512 | H16: 0.8385416667 | I16: 0.8947916667 | J16: 0.4464839003 | K16: 0.4415675994 | L16: 0.3743953539 | M16: 0.0671722455 | N16: 0.4628319512 | O16: 0.3995100733 | P16: 0.06332187792 | Q16: 3.01109853 | R16: 4.153756957 | S16: 2.919911688 | T16: AB=c | U16: =U1 -> -1.08 | V16: 0 | X16: =U1 -> -1.08 | Y16: 0 | AA16: 24 | AB16: -0.2121318152 | AC16: 0.3863998109 | AD16: 0.9135454576 | AE16: 0.4067366431 | AF16: 0.6851590932 | AG16: 0.3050524823 | AH16: -3.5 | AI16: =AI13+0.25 -> -0.25 | AJ16: =AJ13+10 -> 40 | AK16: =AK13+0.5 -> 2 | AL16: =COS(AK16) -> -0.4161468365 | AM16: =SIN(AK16) -> 0.9092974268 | AN16: =$U$1+Rmoo_*COS(AK16*dr_) -> -0.1305787143 | AO16: =Rmoo_*SIN(AK16*dr_) -> 0.03315452187 | AP16: 0.875 | AQ16: - | AR16: 56.99431668 | AS16: 0.625755086 | AT16: 0.5475357002 | AU16: 0.1733690172
A17: 11 | B17: -1.316666667 | C17: -1.711666667 | F17: 0.5137714284 | G17: 0.4857729139 | H17: 0.8273523207 | I17: 0.884314346 | J17: 0.4668919977 | K17: 0.4636787142 | L17: 0.3862841778 | M17: 0.07739453639 | N17: 0.4857729139 | O17: 0.4128792916 | P17: 0.0728936223 | Q17: 2.991304495 | R17: 4.783820669 | S17: 3.449752102 | U17: =(U18+U16)/2 -> -0.54 | V17: =(V18+V16)/2 -> 0 | X17: =(X18+X16)/2 -> -0.54 | Y17: =(Y18+Y16)/2 -> 0 | AA17: 26 | AB17: -0.226145656 | AC17: 0.4164525894 | AD17: 0.8987940463 | AE17: 0.4383711468 | AF17: 0.6740955347 | AG17: 0.3287783601 | AH17: 3.5 | AI17: =AI14+0.25 -> -0.25 | AJ17: =AJ16 -> 40 | AL17: 0 | AM17: 0 | AN17: =$U$1 -> -1.08 | AO17: 0 | AP17: 0.865 | AQ17: - | AR17: 57.20009559 | AS17: 0.6395803377 | AT17: 0.5532369921 | AU17: 0.1758067157
A18: 12 | B18: -1.3 | C18: -1.69 | F18: 0.5372695368 | G18: 0.5077387755 | H18: 0.8161538462 | I18: 0.8738461538 | J18: 0.4862025292 | K18: 0.4848857569 | L18: 0.3968160642 | M18: 0.08806969273 | N18: 0.5077387755 | O18: 0.4248662101 | P18: 0.08287256532 | Q18: 2.970650396 | R18: 5.44126107 | S18: 4.016303946 | T18: Point B | U18: 0 | V18: 0 | X18: 0 | Y18: 0 | AA18: 28 | AB18: -0.2411997868 | AC18: 0.4459979846 | AD18: 0.8829475929 | AE18: 0.4694715628 | AF18: 0.6622106946 | AG18: 0.3521036721 | AP18: 0.855 | AQ18: - | AR18: 57.40283137 | AS18: 0.652693989 | AT18: 0.5580533606 | AU18: 0.1779657942
A19: 13 | B19: -1.283333333 | C19: -1.668333333 | F19: 0.5598939087 | G19: 0.5288508271 | H19: 0.8049458874 | I19: 0.8633874459 | J19: 0.5045414931 | K19: 0.5053042526 | L19: 0.4061285999 | M19: 0.09917565268 | N19: 0.5288508271 | O19: 0.4356147911 | P19: 0.09323603602 | Q19: 2.949180965 | R19: 6.124654273 | S19: 4.618497912 | T19: BC=a | U19: 0 | V19: 0 | X19: 0 | Y19: 0 | AA19: 30 | AB19: -0.2572758664 | AC19: 0.475 | AD19: 0.8660254038 | AE19: 0.5 | AF19: 0.6495190528 | AG19: 0.375 | AH19: -3.5 | AI19: =AI16+0.25 -> 0 | AJ19: =AJ16+10 -> 50 | AK19: =AK16+0.5 -> 2.5 | AL19: =COS(AK19) -> -0.8011436155 | AM19: =SIN(AK19) -> 0.5984721441 | AN19: =$U$1+Rmoo_*COS(AK19*dr_) -> -0.1309041895 | AO19: =Rmoo_*SIN(AK19*dr_) -> 0.041438418 | AP19: 0.845 | AQ19: - | AR19: 57.60245626 | AS19: 0.6651695118 | AT19: 0.5620682375 | AU19: 0.1798695059
A20: 14 | B20: -1.266666667 | C20: -1.646666667 | F20: 0.5817483547 | G20: 0.5492072844 | H20: 0.7937280702 | I20: 0.8529385965 | J20: 0.5220112553 | K20: 0.5250278901 | L20: 0.4143349862 | M20: 0.1106929039 | N20: 0.5492072844 | O20: 0.4452435474 | P20: 0.103963737 | Q20: 2.926936013 | R20: 6.83273309 | S20: 5.255627159 | U20: =(U21+U19)/2 -> -0.2925694444 | V20: =(V21+V19)/2 -> 0.4054665463 | X20: =(X21+X19)/2 -> -0.1912962963 | Y20: =(Y21+Y19)/2 -> 0.3225379466 | AA20: 32 | AB20: -0.2743543087 | AC20: 0.503423301 | AD20: 0.8480480962 | AE20: 0.5299192642 | AF20: 0.6360360721 | AG20: 0.3974394482 | AH20: 3.5 | AI20: =AI17+0.25 -> 0 | AJ20: =AJ19 -> 50 | AL20: 0 | AM20: 0 | AN20: =$U$1 -> -1.08 | AO20: 0 | AP20: 0.835 | AQ20: - | AR20: 57.7988982 | AS20: 0.6770683413 | AT20: 0.565352065 | AU20: 0.1815373692
A21: 15 | B21: -1.25 | C21: -1.625 | F21: 0.6029184695 | G21: 0.5688889752 | H21: 0.7825 | I21: 0.8425 | J21: 0.538696343 | K21: 0.5441339187 | L21: 0.4215298884 | M21: 0.1226040303 | N21: 0.5688889752 | O21: 0.453851669 | P21: 0.1150373062 | Q21: 2.903951317 | R21: 7.564358678 | S21: 5.92638923 | T21: Point C | U21: =MIN(1,$U$1+$U$8) -> -0.5851388889 | V21: =$U$10 -> 0.8109330926 | W21: Point D | X21: =MIN(C3,$U$1+$X$8) -> -0.3825925926 | Y21: =$X$10 -> 0.6450758933 | AA21: 34 | AB21: -0.2924143061 | AC21: 0.5312332583 | AD21: 0.8290375726 | AE21: 0.5591929035 | AF21: 0.6217781794 | AG21: 0.4193946776 | AP21: 0.825 | AQ21: - | AR21: 57.99208061 | AS21: 0.6884424513 | AT21: 0.5679650223 | AU21: 0.1829859631
A22: 16 | B22: -1.233333333 | C22: -1.603333333 | F22: 0.6234758397 | G22: 0.587963342 | H22: 0.7712612613 | I22: 0.8320720721 | J22: 0.5546675282 | K22: 0.5626869453 | L22: 0.4277935774 | M22: 0.1348933679 | N22: 0.587963342 | O22: 0.4615233595 | P22: 0.1264399825 | Q22: 2.880259303 | R22: 8.318498903 | S22: 6.629872048 | AA22: 36 | AB22: -0.3114338553 | AC22: 0.5583959897 | AD22: 0.8090169944 | AE22: 0.5877852523 | AF22: 0.6067627458 | AG22: 0.4408389392 | AH22: -3.5 | AI22: =AI19+0.25 -> 0.25 | AJ22: =AJ19+10 -> 60 | AK22: =AK19+0.5 -> 3 | AL22: =COS(AK22) -> -0.9899924966 | AM22: =SIN(AK22) -> 0.1411200081 | AN22: =$U$1+Rmoo_*COS(AK22*dr_) -> -0.131301942 | AO22: =Rmoo_*SIN(AK22*dr_) -> 0.04971915843 | AP22: 0.815 | AQ22: - | AR22: 58.1819221 | AS22: 0.6993362631 | AT22: 0.5699590544 | AU22: 0.1842295184
A23: 17 | B23: -1.216666667 | C23: -1.581666667 | F23: 0.6434810813 | G23: 0.6064873303 | H23: 0.7600114155 | I23: 0.8216552511 | J23: 0.569984779 | K23: 0.5807416759 | L23: 0.4331949387 | M23: 0.1475467372 | N23: 0.6064873303 | O23: 0.4683309867 | P23: 0.1381563435 | Q23: 2.855889573 | R23: 9.09421151 | S23: 7.365507077 | AA23: 38 | AB23: -0.3313897841 | AC23: 0.5848784016 | AD23: 0.7880107536 | AE23: 0.6156614753 | AF23: 0.5910080652 | AG23: 0.4617461065 | AH23: 3.5 | AI23: =AI20+0.25 -> 0.25 | AJ23: =AJ22 -> 60 | AL23: 0 | AM23: 0 | AN23: =$U$1 -> -1.08 | AO23: 0 | AP23: 0.805 | AQ23: - | AR23: 58.36833623 | AS23: 0.7097880881 | AT23: 0.5713794109 | AU23: 0.1852803643
A24: 18 | B24: -1.2 | C24: -1.56 | F24: 0.6629860824 | G24: 0.6245095208 | H24: 0.74875 | I24: 0.81125 | J24: 0.584699442 | K24: 0.5983449393 | L24: 0.4377937072 | M24: 0.1605512321 | N24: 0.6245095208 | O24: 0.4743374223 | P24: 0.1501720984 | Q24: 2.830869323 | R24: 9.890630799 | S24: 8.132092743 | AA24: 40 | AB24: -0.352257779 | AC24: 0.6106482292 | AD24: 0.7660444431 | AE24: 0.6427876097 | AF24: 0.5745333323 | AG24: 0.4820907073 | AP24: 0.795 | AQ24: - | AR24: 58.55123117 | AS24: 0.7198312352 | AT24: 0.572265832 | AU24: 0.1861492723
A25: 19 | B25: -1.183333333 | C25: -1.538333333 | F25: 0.6820356916 | G25: 0.6420717337 | H25: 0.7374765258 | I25: 0.8008568075 | J25: 0.5988558874 | K25: 0.6155372117 | L25: 0.4416421593 | M25: 0.1738950524 | N25: 0.6420717337 | O25: 0.4795978141 | P25: 0.1624739196 | Q25: 2.805223682 | R25: 10.70695692 | S25: 8.92881329 | AA25: 42 | AB25: -0.3740124158 | AC25: 0.635674076 | AD25: 0.7431448255 | AE25: 0.6691306064 | AF25: 0.5573586191 | AG25: 0.5018479548 | AH25: -3.5 | AI25: =AI22+0.25 -> 0.5 | AJ25: =AJ22+10 -> 70 | AK25: =AK22+0.5 -> 3.5 | AL25: =COS(AK25) -> -0.9364566873 | AM25: =SIN(AK25) -> -0.3507832277 | AN25: =$U$1+Rmoo_*COS(AK25*dr_) -> -0.1317719415 | AO25: =Rmoo_*SIN(AK25*dr_) -> 0.05799611256 | AP25: 0.785 | AQ25: - | AR25: 58.73050939 | AS25: 0.7294948729 | AT25: 0.5726534752 | AU25: 0.1868457239
A26: 20 | B26: -1.166666667 | C26: -1.516666667 | F26: 0.7006690108 | G26: 0.6592102559 | H26: 0.7261904762 | I26: 0.7904761905 | J26: 0.6124927692 | K26: 0.6323537822 | L26: 0.4447864157 | M26: 0.1875673665 | N26: 0.6592102559 | O26: 0.4841609509 | P26: 0.1750493051 | Q26: 2.778975982 | R26: 11.54244715 | S26: 9.755185298 | AA26: 44 | AB26: -0.3966271897 | AC26: 0.6599254519 | AD26: 0.7193398003 | AE26: 0.6946583705 | AF26: 0.5395048503 | AG26: 0.5209937778 | AH26: 3.5 | AI26: =AI23+0.25 -> 0.5 | AJ26: =AJ25 -> 70 | AL26: 0 | AM26: 0 | AN26: =$U$1 -> -1.08 | AO26: 0 | AP26: 0.775 | AQ26: - | AR26: 58.90606729 | AS26: 0.7388047107 | AT26: 0.5725736508 | AU26: 0.1873781222
A27: 21 | B27: -1.15 | C27: -1.495 | F27: 0.7189204001 | G27: 0.6759567943 | H27: 0.7148913043 | I27: 0.7801086957 | J27: 0.6256440066 | K27: 0.6488256611 | L27: 0.4472674599 | M27: 0.2015582012 | N27: 0.6759567943 | O27: 0.4880703299 | P27: 0.1878864644 | Q27: 2.752147988 | R27: 12.39640872 | S27: 10.61007406 | AA27: 46 | AB27: -0.4200745481 | AC27: 0.6833728103 | AD27: 0.6946583705 | AE27: 0.7193398003 | AF27: 0.5209937778 | AG27: 0.5395048503 | AP27: 0.765 | AQ27: - | AR27: 59.07779483 | AS27: 0.7477835427 | AT27: 0.5720544102 | AU27: 0.1877539615
A28: 22 | B28: -1.133333333 | C28: -1.473333333 | F28: 0.7368202704 | G28: 0.6923392259 | H28: 0.7035784314 | I28: 0.769754902 | J28: 0.6383395577 | K28: 0.6649802941 | L28: 0.4491219447 | M28: 0.2158583494 | N28: 0.6923392259 | O28: 0.4913650036 | P28: 0.2009742223 | Q28: 2.724760082 | R28: 13.26819284 | S28: 11.49272732 | T28: Point C' | U28: =U21 -> -0.5851388889 | V28: =-$U$10 -> -0.8109330926 | W28: Point D' | X28: =X21 -> -0.3825925926 | Y28: =-$X$10 -> -0.6450758933 | AA28: 48 | AB28: -0.444325924 | AC28: 0.7059875842 | AD28: 0.6691306064 | AE28: 0.7431448255 | AF28: 0.5018479548 | AG28: 0.5573586191 | AH28: -3.5 | AI28: =AI25+0.25 -> 0.75 | AJ28: =AJ25+10 -> 80 | AK28: =AK25+0.5 -> 4 | AL28: =COS(AK28) -> -0.6536436209 | AM28: =SIN(AK28) -> -0.7568024953 | AN28: =$U$1+Rmoo_*COS(AK28*dr_) -> -0.1323141523 | AO28: =Rmoo_*SIN(AK28*dr_) -> 0.06626865006 | AP28: 0.755 | AQ28: - | AR28: 59.24557512 | AS28: 0.756451686 | AT28: 0.5711210229 | AU28: 0.1879799637
A29: 23 | B29: -1.116666667 | C29: -1.451666667 | F29: 0.7543957151 | G29: 0.7083821952 | H29: 0.6922512438 | I29: 0.7594154229 | J29: 0.6506060371 | K29: 0.6808421329 | L29: 0.4503828384 | M29: 0.2304592945 | N29: 0.7083821952 | O29: 0.4940802588 | P29: 0.2143019365 | Q29: 2.696831423 | R29: 14.15718968 | S29: 12.4027152 | T29: sector A C' C | V29: =Rmoo_^2*pi_*(2*U6)/(2*pi_) -> 0.9231526682 | AA29: 50 | AB29: -0.4693517708 | AC29: 0.727742221 | AD29: 0.6427876097 | AE29: 0.7660444431 | AF29: 0.4820907073 | AG29: 0.5745333323 | AH29: 3.5 | AI29: =AI26+0.25 -> 0.75 | AJ29: =AJ28 -> 80 | AL29: 0 | AM29: 0 | AN29: =$U$1 -> -1.08 | AO29: 0 | AP29: 0.745 | AQ29: - | AR29: 59.40928391 | AS29: 0.7648273386 | AT29: 0.5697963673 | AU29: 0.1880621898
A30: 24 | B30: -1.1 | C30: -1.43 | F30: 0.7716710206 | G30: 0.7241075952 | H30: 0.6809090909 | I30: 0.7490909091 | J30: 0.6624672142 | K30: 0.6964330961 | L30: 0.4510799486 | M30: 0.2453531475 | N30: 0.7241075952 | O30: 0.4962481677 | P30: 0.2278594275 | Q30: 2.668380079 | R30: 15.06282409 | S30: 13.33895171 | T30: triangle A C' C | V30: =U8*U10 -> 0.4012992513 | AA30: 52 | AB30: -0.4951215984 | AC30: 0.7486102159 | AD30: 0.6156614753 | AE30: 0.7880107536 | AF30: 0.4617461065 | AG30: 0.5910080652 | AP30: 0.735 | AQ30: - | AR30: 59.56878919 | AS30: 0.7729268733 | AT30: 0.5681012519 | AU30: 0.1880061317
A31: 25 | B31: -1.083333333 | C31: -1.408333333 | F31: 0.7886680822 | G31: 0.7395349577 | H31: 0.6695512821 | I31: 0.7387820513 | J31: 0.6739444196 | K31: 0.7117729442 | L31: 0.4512403502 | M31: 0.260532594 | N31: 0.7395349577 | O31: 0.4978980408 | P31: 0.2416369169 | Q31: 2.639423143 | R31: 15.98455199 | S31: 14.30072822 | T31: segment C' F C | V31: =V29-V30 -> 0.5218534169 | AA31: 54 | AB31: -0.5216040103 | AC31: 0.7685661447 | AD31: 0.5877852523 | AE31: 0.8090169944 | AF31: 0.4408389392 | AG31: 0.6067627458 | AH31: -3.5 | AI31: =AI28+0.25 -> 1 | AJ31: =AJ28+10 -> 90 | AK31: =AK28+0.5 -> 4.5 | AL31: =COS(AK31) -> -0.2107957994 | AM31: =SIN(AK31) -> -0.9775301177 | AN31: =$U$1+Rmoo_*COS(AK31*dr_) -> -0.132928533 | AO31: =Rmoo_*SIN(AK31*dr_) -> 0.07453614094 | AP31: 0.725 | AQ31: - | AR31: 59.72395055 | AS31: 0.7807650812 | AT31: 0.5660546839 | AU31: 0.1878167886
A32: 26 | B32: -1.066666667 | C32: -1.386666667 | F32: 0.8054067464 | G32: 0.7546817735 | H32: 0.6581770833 | I32: 0.7284895833 | J32: 0.6850568786 | K32: 0.7268795886 | L32: 0.4508887383 | M32: 0.2759908503 | N32: 0.7546817735 | O32: 0.4990568001 | P32: 0.2556249734 | Q32: 2.60997683 | R32: 16.92185723 | S32: 15.28764715 | T32: sector B C C' | V32: =1^2*pi_*(2*U7)/(2*pi_) -> 0.9457450091 | AA32: 56 | AB32: -0.5487667417 | AC32: 0.7875856939 | AD32: 0.5591929035 | AE32: 0.8290375726 | AF32: 0.4193946776 | AG32: 0.6217781794 | AH32: 3.5 | AI32: =AI29+0.25 -> 1 | AJ32: =AJ31 -> 90 | AL32: 0 | AM32: 0 | AN32: =$U$1 -> -1.08 | AO32: 0 | AP32: 0.715 | AQ32: - | AR32: 59.87461867 | AS32: 0.7883553749 | AT32: 0.5636740931 | AU32: 0.1874987299
A33: 27 | B33: -1.05 | C33: -1.365 | F33: 0.8219050952 | G33: 0.7695637566 | H33: 0.6467857143 | I33: 0.7182142857 | J33: 0.6958219886 | K33: 0.7417693485 | L33: 0.4500477219 | M33: 0.2917216266 | N33: 0.7695637566 | O33: 0.4997492925 | P33: 0.2698144641 | Q33: 2.580056563 | R33: 17.87424891 | S33: 16.29866114 | T33: triangle B C C' | V33: =COS(U7)*U10 -> 0.4745084888 | AA33: 58 | AB33: -0.576576699 | AC33: 0.8056456913 | AD33: 0.5299192642 | AE33: 0.8480480962 | AF33: 0.3974394482 | AG33: 0.6360360721 | AP33: 0.705 | AQ33: - | AR33: 60.02063467 | AS33: 0.7957099601 | AT33: 0.5609755218 | AU33: 0.1870561492
A34: 28 | B34: -1.033333333 | C34: -1.343333333 | F34: 0.838179685 | G34: 0.7841950636 | H34: 0.6353763441 | I34: 0.7079569892 | J34: 0.7062555496 | K34: 0.7564571657 | L34: 0.4487380691 | M34: 0.3077190966 | N34: 0.7841950636 | O34: 0.4999985526 | P34: 0.2841965111 | Q34: 2.549677046 | R34: 18.84125897 | S34: 17.33309201 | T34: segment C G C' | V34: =V32-V33 -> 0.4712365204 | AA34: 60 | AB34: -0.605 | AC34: 0.8227241336 | AD34: 0.5 | AE34: 0.8660254038 | AF34: 0.375 | AG34: 0.6495190528 | AH34: -3.5 | AI34: =AI31+0.25 -> 1.25 | AJ34: =AJ31+10 -> 100 | AK34: =AK31+0.5 -> 5 | AL34: =COS(AK34) -> 0.2836621855 | AM34: =SIN(AK34) -> -0.9589242747 | AN34: =$U$1+Rmoo_*COS(AK34*dr_) -> -0.1336150368 | AO34: =Rmoo_*SIN(AK34*dr_) -> 0.08279795561 | AP34: 0.695 | AQ34: - | AR34: 60.16182939 | AS34: 0.8028399795 | AT34: 0.5579737857 | AU34: 0.1864929095
A35: 29 | B35: -1.016666667 | C35: -1.321666667 | F35: 0.8542457469 | G35: 0.7985884775 | H35: 0.6239480874 | I35: 0.6977185792 | J35: 0.7163719594 | K35: 0.7709567866 | L35: 0.4469789139 | M35: 0.3239778727 | N35: 0.7985884775 | O35: 0.4998260257 | P35: 0.2987624518 | Q35: 2.518852329 | R35: 19.82244018 | S35: 18.39055862 | T35: Sun free | V35: =IF(OR(U4=1,U5=1),IF(U4=1,0,1^2*pi_-Rmoo_^2*pi_),IF(Rmoo_>=1,1^2*pi_-V31-V34,1^2*pi_-V31-V34)) -> 2.148502716 | AA35: 62 | AB35: -0.6340020154 | AC35: 0.8388002132 | AD35: 0.4694715628 | AE35: 0.8829475929 | AF35: 0.3521036721 | AG35: 0.6622106946 | AH35: 3.5 | AI35: =AI32+0.25 -> 1.25 | AJ35: =AJ34 -> 100 | AL35: 0 | AM35: 0 | AN35: =$U$1 -> -1.08 | AO35: 0 | AP35: 0.685 | AQ35: - | AR35: 60.29802266 | AS35: 0.8097556366 | AT35: 0.5546826111 | AU35: 0.1858125814
A36: 30 | B36: -1 | C36: -1.3 | F36: 0.8701173588 | G36: 0.8127555614 | H36: 0.6125 | I36: 0.6875 | J36: 0.7261843774 | K36: 0.7852809163 | L36: 0.4447879312 | M36: 0.3404929851 | N36: 0.8127555614 | O36: 0.4992517595 | P36: 0.3135038019 | Q36: 2.487595867 | R36: 20.81736428 | S36: 19.47004669 | T36: Sun obsc. % | V36: =100-V35/pi_*100 -> 31.61103449 | AA36: 64 | AB36: =$U$1+Rmoo_*COS(AA36*dr_) -> -0.6635474106 | AC36: =Rmoo_*SIN(AA36*dr_) -> 0.853854344 | AD36: 0.4383711468 | AE36: 0.8987940463 | AF36: =AD36*$C$3 -> 0.3287783601 | AG36: 0.6740955347 | AP36: 0.675 | AQ36: =IF(AND(Xmoon_+Rmoo_>=AP36,Xmoon_-Rmoo_<=-AP36),1,"-") -> - | AR36: =rd_*(IFERROR(ACOS((Xmoon_^2+AP36^2-Rmoo_^2)/(2*ABS(Xmoon_)*AP36)),0)) -> 60.42902244 | AS36: 0.8164663008 | AT36: 0.5511147531 | AU36: 0.1850184766
A37: 31 | B37: -0.9833333333 | C37: -1.278333333 | F37: 0.8858075915 | G37: 0.8267067889 | H37: 0.6010310734 | I37: 0.6773022599 | J37: 0.7357048652 | K37: 0.7994413514 | L37: 0.4421814849 | M37: 0.3572598665 | N37: 0.8267067889 | O37: 0.4982945678 | P37: 0.328412221 | Q37: 2.455920566 | R37: 21.82562041 | S37: 20.57089923 | T37: pt on curve | U37: =U1 -> -1.08 | V37: =V36 -> 31.61103449 | AA37: 66 | AB37: -0.6936001891 | AC37: 0.8678681848 | AD37: 0.4067366431 | AE37: 0.9135454576 | AF37: 0.3050524823 | AG37: 0.6851590932 | AK37: =AK34+0.5 -> 5.5 | AL37: =COS(AK37) -> 0.7086697743 | AM37: =SIN(AK37) -> -0.7055403256 | AN37: =$U$1+Rmoo_*COS(AK37*dr_) -> -0.1343736116 | AO37: =Rmoo_*SIN(AK37*dr_) -> 0.09105346489 | AP37: 0.665 | AQ37: - | AR37: 60.55462396 | AS37: 0.8229805979 | AT37: 0.5472820976 | AU37: 0.1841136757
A38: 32 | B38: -0.9666666667 | C38: =(1+Rmoo_)*B38*2*60/$A$3 -> -1.256666667 | D38: =IF(Rmoo_>=1,IF((ABS(C38)<=(Rmoo_-1)),1,""),"") ->  | E38: =IF(Rmoo_<1,IF(ABS(C38)+Rmoo_<1,1,""),"") ->  | F38: =IF(Rmoo_>=1,IFERROR(ACOS((Rmoo_^2+C38^2-1^2)/(2*Rmoo_*ABS(C38))),0), IFERROR(ACOS((Rmoo_^2+C38^2-1^2)/(2*Rmoo_*ABS(C38))),0)) -> 0.9013286367 | G38: =IFERROR(ACOS((C38^2+1^2-Rmoo_^2)/(2*ABS(C38)*1)),0) -> 0.8404516539 | H38: =Rmoo_*COS(F38) -> 0.5895402299 | I38: 0.6671264368 | J38: 0.7449445062 | K38: =Rmoo_^2*pi_*(2*F38)/(2*pi_) -> 0.8134490946 | L38: 0.4391747554 | M38: 0.3742743392 | N38: 0.8404516539 | O38: 0.496972174 | P38: 0.3434794799 | Q38: =IF(OR(D38=1,E38=1),IF(D38=1,0,1^2*pi_-Rmoo_^2*pi_),IF(Rmoo_>=1,1^2*pi_-M38-P38,1^2*pi_-M38-P38)) -> 2.423838835 | R38: 22.84681365 | S38: =Eclipse_Dimming_2(C38,Rmoo_,2000,$D$3,$E$3) -> 21.69273825 | T38: Ecl. dimming | V38: =1-AU3/AT3 -> 0.6846743861 | AA38: 68 | AB38: -0.7241237363 | AC38: 0.8808246618 | AD38: 0.3746065934 | AE38: 0.9271838546 | AF38: 0.2809549451 | AG38: 0.6953878909 | AL38: 0 | AM38: 0 | AN38: =$U$1 -> -1.08 | AO38: 0 | AP38: 0.655 | AQ38: - | AR38: 60.67460867 | AS38: 0.8293064887 | AT38: 0.5431957501 | AU38: 0.1831010532
A39: 33 | B39: -0.95 | C39: -1.235 | F39: 0.9166919166 | G39: 0.8539987641 | H39: 0.5780263158 | I39: 0.6569736842 | J39: 0.7539135085 | K39: 0.8273144548 | L39: 0.4357818477 | M39: 0.391532607 | N39: 0.8539987641 | O39: 0.4953013352 | P39: 0.3586974288 | Q39: 2.391362618 | R39: 23.88056373 | S39: 22.83458016 | T39: Ecl.dimming % | V39: =100-V38*100 -> 31.53256139 | AA39: 70 | AB39: -0.7550808638 | AC39: 0.8927079897 | AD39: 0.3420201433 | AE39: 0.9396926208 | AF39: 0.2565151075 | AG39: 0.7047694656 | AP39: 0.645 | AQ39: - | AR39: 60.78874319 | AS39: 0.835451337 | AT39: 0.5388661123 | AU39: 0.1819832984
A40: 34 | B40: -0.9333333333 | C40: -1.213333333 | F40: 0.9319081819 | G40: 0.8673559195 | H40: 0.5664880952 | I40: 0.6468452381 | J40: 0.7626212939 | K40: 0.8410471342 | L40: 0.4320158842 | M40: 0.40903125 | N40: 0.8673559195 | O40: 0.4932979524 | P40: 0.374057967 | Q40: 2.358503437 | R40: 24.92650395 | S40: 23.99578207 | T40: pt on curve | U40: =U1 -> -1.08 | V40: =V39 -> 31.53256139 | AA40: 72 | AB40: -0.7864338553 | AC40: 0.9035036905 | AD40: 0.3090169944 | AE40: 0.9510565163 | AF40: 0.2317627458 | AG40: 0.7132923872 | AK40: =AK37+0.5 -> 6 | AL40: =COS(AK40) -> 0.9601702867 | AM40: =SIN(AK40) -> -0.2794154982 | AN40: =$U$1+Rmoo_*COS(AK40*dr_) -> -0.1352041994 | AO40: =Rmoo_*SIN(AK40*dr_) -> 0.0993020401 | AP40: 0.635 | AQ40: - | AR40: 60.89677809 | AS40: 0.8414219686 | AT40: 0.5343029501 | AU40: 0.1807629343
A41: 35 | B41: -0.9166666667 | C41: -1.191666667 | F41: 0.9469875974 | G41: 0.8805301801 | H41: 0.5549242424 | I41: 0.6367424242 | J41: 0.7710765754 | K41: 0.8546563066 | L41: 0.4278890845 | M41: 0.4267672222 | N41: 0.8805301801 | O41: 0.4909771679 | P41: 0.3895530122 | Q41: 2.325272419 | R41: 25.98428009 | S41: 25.175957 | AA41: 74 | AB41: -0.818144512 | AC41: 0.9131986111 | AD41: 0.2756373558 | AE41: 0.9612616959 | AF41: 0.2067280169 | AG41: 0.720946272 | AL41: 0 | AM41: 0 | AN41: =$U$1 -> -1.08 | AO41: 0 | AP41: 0.625 | AQ41: - | AR41: 60.99844656 | AS41: 0.8472247238 | AT41: 0.5295154524 | AU41: 0.1794423335
A42: 36 | B42: -0.9 | C42: -1.17 | F42: 0.9619398191 | G42: 0.8935279222 | H42: 0.5433333333 | I42: 0.6266666667 | J42: 0.7792874238 | K42: 0.8681506867 | L42: 0.4234128336 | M42: 0.4447378532 | N42: 0.8935279222 | O42: 0.4883534522 | P42: 0.40517447 | Q42: 2.29168033 | R42: 27.05354948 | S42: 26.37415195 | AA42: 76 | AB42: -0.8501741992 | AC42: 0.92178094 | AD42: 0.2419218956 | AE42: 0.9702957263 | AF42: 0.1814414217 | AG42: 0.7277217947 | AP42: 0.615 | AQ42: - | AR42: 61.09346296 | AS42: 0.8528655026 | AT42: 0.5245122841 | AU42: 0.1780237322
A43: 37 | B43: -0.8833333333 | C43: -1.148333333 | F43: 0.9767740638 | G43: 0.906354886 | H43: 0.5317138365 | I43: 0.6166194969 | J43: 0.7872613264 | K43: 0.8815385926 | L43: 0.4185977402 | M43: 0.4629408524 | N43: 0.906354886 | O43: 0.485440683 | P43: 0.420914203 | Q43: 2.257737598 | R43: 28.13398021 | S43: 27.58973258 | AA43: 78 | AB43: -0.8824838937 | AC43: 0.9292402207 | AD43: 0.2079116908 | AE43: 0.9781476007 | AF43: 0.1559337681 | AG43: 0.7336107006 | AK43: =AK40+0.5 -> 6.5 | AL43: =COS(AK43) -> 0.9765876257 | AM43: =SIN(AK43) -> 0.2151199881 | AN43: =$U$1+Rmoo_*COS(AK43*dr_) -> -0.1361067371 | AO43: =Rmoo_*SIN(AK43*dr_) -> 0.1075430531 | AP43: 0.605 | AQ43: - | AR43: 61.1815212 | AS43: 0.858349805 | AT43: 0.519301632 | AU43: 0.1765092434
A44: 38 | B44: -0.8666666667 | C44: -1.126666667 | F44: 0.9914991723 | G44: 0.9190162152 | H44: 0.5200641026 | I44: 0.6066025641 | J44: 0.7950052385 | K44: 0.894828003 | L44: 0.4134536859 | M44: 0.4813743171 | N44: 0.9190162152 | O44: 0.4822522161 | P44: 0.4367639991 | Q44: 2.223454337 | R44: 29.22525029 | S44: 28.82229029 | AA44: 80 | AB44: -0.9150342312 | AC44: 0.9355673654 | AD44: 0.1736481777 | AE44: 0.984807753 | AF44: 0.1302361333 | AG44: 0.7386058148 | AL44: 0 | AM44: 0 | AN44: =$U$1 -> -1.08 | AO44: 0 | AP44: 0.595 | AQ44: - | AR44: 61.26229297 | AS44: 0.8636827667 | AT44: 0.5138912462 | AU44: 0.1749008671
A45: 39 | B45: -0.85 | C45: -1.105 | F45: 1.006123668 | G45: 0.9315164895 | H45: 0.5083823529 | I45: 0.5966176471 | J45: 0.8025256278 | K45: 0.9080266102 | L45: 0.4079898669 | M45: 0.5000367432 | N45: 0.9315164895 | O45: 0.4788009517 | P45: 0.4527155378 | Q45: 2.188840373 | R45: 30.32704701 | S45: 30.07090514 | AA45: 82 | AB45: -0.9477855541 | AC45: 0.9407546653 | AD45: 0.139173101 | AE45: 0.9902680687 | AF45: 0.1043798257 | AG45: 0.7427010516 | AP45: 0.585 | AQ45: - | AR45: 61.33542574 | AS45: 0.8688691907 | AT45: 0.5082884766 | AU45: 0.1732005006
A46: 40 | B46: -0.8333333333 | C46: -1.083333333 | F46: 1.02065581 | G46: 0.9438597506 | H46: 0.4966666667 | I46: 0.5866666667 | J46: 0.8098285141 | K46: 0.9211418688 | L46: 0.4022148287 | M46: 0.5189270401 | N46: 0.9438597506 | O46: 0.4750993949 | P46: 0.4687603557 | Q46: 2.153905258 | R46: 31.43906625 | S46: 31.33494682 | AA46: 84 | AB46: -0.9806979599 | AC46: 0.9447958006 | AD46: 0.1045284633 | AE46: 0.9945218954 | AF46: 0.07839634745 | AG46: 0.7458914215 | AK46: =AK43+0.5 -> 7 | AL46: =COS(AK46) -> 0.7539022543 | AM46: =SIN(AK46) -> 0.6569865987 | AN46: =$U$1+Rmoo_*COS(AK46*dr_) -> -0.1370811559 | AO46: =Rmoo_*SIN(AK46*dr_) -> 0.1157758762 | AP46: 0.575 | AQ46: - | AR46: 61.40054054 | AS46: 0.8739135755 | AT46: 0.5025003059 | AU46: 0.1714099467
A47: 41 | B47: -0.8166666667 | C47: -1.061666667 | F47: 1.035103649 | G47: 0.956049522 | H47: 0.484914966 | I47: 0.5767517007 | J47: 0.8169195038 | K47: 0.934181043 | L47: 0.3961364934 | M47: 0.5380445495 | N47: 0.956049522 | O47: 0.4711597132 | P47: 0.4848898088 | Q47: 2.118658295 | R47: 32.56101192 | S47: 32.61397012 | AA47: 86 | AB47: -1.01373135 | AC47: 0.9476858477 | AD47: 0.06975647374 | AE47: 0.9975640503 | AF47: 0.05231735531 | AG47: 0.7481730377 | AL47: 0 | AM47: 0 | AN47: =$U$1 -> -1.08 | AO47: 0 | AP47: 0.565 | AQ47: - | AR47: 61.45722957 | AS47: 0.8788201399 | AT47: 0.4965333791 | AU47: 0.1695309215
A48: 42 | B48: -0.8 | C48: -1.04 | F48: 1.04947507 | G48: 0.9680888235 | H48: 0.473125 | I48: 0.566875 | J48: 0.8238038203 | K48: 0.9471512507 | L48: 0.3897621825 | M48: 0.5573890682 | N48: 0.9680888235 | O48: 0.4669937906 | P48: 0.5010950328 | Q48: 2.083108553 | R48: 33.69259537 | S48: 33.90709415 | AA48: 88 | AB48: -1.046845478 | AC48: 0.9494212857 | AD48: 0.0348994967 | AE48: 0.999390827 | AF48: 0.02617462253 | AG48: 0.7495431203 | AP48: 0.555 | AQ48: - | AR48: 61.50505341 | AS48: 0.883592846 | AT48: 0.4903940295 | AU48: 0.167565061
A49: 43 | B49: -0.7833333333 | C49: -1.018333333 | F49: 1.063777848 | G49: 0.97998018 | H49: 0.4612943262 | I49: 0.5570390071 | J49: 0.8304863302 | K49: 0.9600595075 | L49: 0.3830986321 | M49: 0.5769608754 | N49: 0.97998018 | O49: 0.4626132808 | P49: 0.5173668993 | Q49: 2.047264879 | R49: 34.83353494 | S49: 35.21368974 | AA49: 90 | AB49: -1.08 | AC49: 0.95 | AD49: 6.125742275e-17 | AE49: 1 | AF49: 4.594306706e-17 | AG49: 0.75 | AK49: =AK46+0.5 -> 7.5 | AL49: =COS(AK49) -> 0.3466353178 | AM49: =SIN(AK49) -> 0.9379999768 | AN49: =$U$1+Rmoo_*COS(AK49*dr_) -> -0.1381273817 | AO49: =Rmoo_*SIN(AK49*dr_) -> 0.1239998826 | AP49: 0.545 | AQ49: - | AR49: 61.543538 | AS49: 0.888235419 | AT49: 0.4840883033 | AU49: 0.1655139272
A50: 44 | B50: -0.7666666667 | C50: -0.9966666667 | F50: 1.078019689 | G50: 0.9917256253 | H50: 0.4494202899 | I50: 0.5472463768 | J50: 0.8369715665 | K50: 0.9729127696 | L50: 0.376152004 | M50: 0.5967607656 | N50: 0.9917256253 | O50: 0.4580296572 | P50: 0.533695968 | Q50: 2.01113592 | R50: 35.98355542 | S50: 36.53325255 | AA50: 92 | AB50: -1.113154522 | AC50: 0.9494212857 | AD50: -0.0348994967 | AE50: 0.999390827 | AF50: -0.02617462253 | AG50: 0.7495431203 | AL50: 0 | AM50: 0 | AN50: =$U$1 -> -1.08 | AO50: 0 | AP50: 0.535 | AQ50: - | AR50: 61.57217121 | AS50: 0.8927513653 | AT50: 0.4776219804 | AU50: 0.1633790131
A51: 45 | B51: -0.75 | C51: -0.975 | F51: 1.092208285 | G51: 1.0033267 | H51: 0.4375 | I51: 0.5375 | J51: 0.8432637488 | K51: 0.9857179773 | L51: 0.3689278901 | M51: 0.6167900872 | N51: 1.0033267 | O51: 0.453254265 | P51: 0.5500724348 | Q51: 1.974730132 | R51: 37.14238766 | S51: 37.86495466 | AA51: 94 | AB51: -1.14626865 | AC51: 0.9476858477 | AD51: -0.06975647374 | AE51: 0.9975640503 | AF51: -0.05231735531 | AG51: 0.7481730377 | AP51: 0.525 | AQ51: - | AR51: 61.59039896 | AS51: 0.8971439895 | AT51: 0.4710005945 | AU51: 0.1611617473
A52: 46 | B52: -0.7333333333 | C52: -0.9533333333 | F52: 1.106351357 | G52: 1.014784444 | H52: 0.425530303 | I52: 0.5278030303 | J52: 0.8493668002 | K52: 0.9984820994 | L52: 0.3614313119 | M52: 0.6370507875 | N52: 1.014784444 | O52: 0.448298371 | P52: 0.5664860726 | Q52: 1.938055794 | R52: 38.3097681 | S52: 39.20817616 | AA52: 96 | AB52: -1.17930204 | AC52: 0.9447958006 | AD52: -0.1045284633 | AE52: 0.9945218954 | AF52: -0.07839634745 | AG52: 0.7458914215 | AK52: =AK49+0.5 -> 8 | AL52: =COS(AK52) -> -0.1455000338 | AM52: =SIN(AK52) -> 0.9893582466 | AN52: =$U$1+Rmoo_*COS(AK52*dr_) -> -0.1392453347 | AO52: =Rmoo_*SIN(AK52*dr_) -> 0.1322144459 | AP52: 0.515 | AQ52: - | AR52: 61.59762096 | AS52: 0.9014164083 | AT52: 0.4642294503 | AU52: 0.1588634984
A53: 47 | B53: -0.7166666667 | C53: -0.9316666667 | F53: 1.120456708 | G53: 1.026099383 | H53: 0.4135077519 | I53: 0.5181589147 | J53: 0.8552843615 | K53: 1.011212179 | L53: 0.3536667136 | M53: 0.6575454653 | N53: 1.026099383 | O53: 0.4431732166 | P53: 0.5829261668 | Q53: 1.901121021 | R53: 39.4854384 | S53: 40.56230862 | AA53: 98 | AB53: -1.212214446 | AC53: 0.9407546653 | AD53: -0.139173101 | AE53: 0.9902680687 | AF53: -0.1043798257 | AG53: 0.7427010516 | AL53: 0 | AM53: 0 | AN53: =$U$1 -> -1.08 | AO53: 0 | AP53: 0.505 | AQ53: - | AR53: 61.59318578 | AS53: 0.9055715647 | AT53: 0.4573136402 | AU53: 0.1564855778
A54: 48 | B54: -0.7 | C54: -0.91 | F54: 1.13453228 | G54: 1.037271513 | H54: 0.4014285714 | I54: 0.5085714286 | J54: 0.8610198035 | K54: 1.023915382 | L54: 0.3456379497 | M54: 0.6782774326 | N54: 1.037271513 | O54: 0.4378900715 | P54: 0.5993814417 | Q54: 1.863933779 | R54: 40.66914508 | S54: 41.92657083 | AA54: 100 | AB54: -1.244965769 | AC54: 0.9355673654 | AD54: -0.1736481777 | AE54: 0.984807753 | AF54: -0.1302361333 | AG54: 0.7386058148 | AP54: 0.495 | AQ54: - | AR54: 61.57638533 | AS54: 0.9096122398 | AT54: 0.4502580587 | AU54: 0.1540292429
A55: 49 | B55: -0.6833333333 | C55: -0.8883333333 | F55: 1.148586206 | G55: 1.048300268 | H55: 0.3892886179 | I55: 0.4990447154 | J55: 0.8665762355 | K55: 1.036599051 | L55: 0.337348265 | M55: 0.6992507858 | N55: 1.048300268 | O55: 0.4324602909 | P55: 0.6158399771 | Q55: 1.826501891 | R55: 41.86063911 | S55: 43.30037361 | AA55: 102 | AB55: -1.277516106 | AC55: 0.9292402207 | AD55: -0.2079116908 | AE55: 0.9781476007 | AF55: -0.1559337681 | AG55: 0.7336107006 | AK55: =AK52+0.5 -> 8.5 | AL55: =COS(AK55) -> -0.6020119027 | AM55: =SIN(AK55) -> 0.7984871126 | AN55: =$U$1+Rmoo_*COS(AK55*dr_) -> -0.1404349298 | AO55: =Rmoo_*SIN(AK55*dr_) -> 0.1404189406 | AP55: 0.485 | AQ55: - | AR55: 61.54644864 | AS55: 0.913541064 | AT55: 0.443067416 | AU55: 0.1514956998
A56: 50 | B56: -0.6666666667 | C56: -0.8666666667 | F56: 1.162626878 | G56: 1.059184491 | H56: 0.3770833333 | I56: 0.4895833333 | J56: 0.8719565125 | K56: 1.049270757 | L56: 0.3288002683 | M56: 0.720470489 | N56: 1.059184491 | O56: 0.4268953759 | P56: 0.6322891147 | Q56: 1.78883305 | R56: 43.05967555 | S56: 44.6830774 | AA56: 104 | AB56: -1.309825801 | AC56: 0.92178094 | AD56: -0.2419218956 | AE56: 0.9702957263 | AF56: -0.1814414217 | AG56: 0.7277217947 | AL56: 0 | AM56: 0 | AN56: =$U$1 -> -1.08 | AO56: 0 | AP56: 0.475 | AQ56: - | AR56: 61.50253463 | AS56: 0.9173605268 | AT56: 0.4357462502 | AU56: 0.1488861047
A57: 51 | B57: -0.65 | C57: -0.845 | F57: 1.176663012 | G57: 1.069922389 | H57: 0.3648076923 | I57: 0.4801923077 | J57: 0.8771632389 | K57: 1.061938368 | L57: 0.319995897 | M57: 0.7419424711 | N57: 1.069922389 | O57: 0.4212070399 | P57: 0.6487153494 | Q57: 1.750934833 | R57: 44.26601326 | S57: 46.07379655 | AA57: 106 | AB57: -1.341855488 | AC57: 0.9131986111 | AD57: -0.2756373558 | AE57: 0.9612616959 | AF57: -0.2067280169 | AG57: 0.720946272 | AP57: 0.465 | AQ57: - | AR57: 61.44372406 | AS57: 0.9210729864 | AT57: 0.4282989387 | AU57: 0.1462015656
A58: 52 | B58: -0.6333333333 | C58: -0.8233333333 | F58: 1.190703725 | G58: 1.080511487 | H58: 0.3524561404 | I58: 0.470877193 | J58: 0.8821987696 | K58: 1.074610112 | L58: 0.3109363734 | M58: 0.7636737387 | N58: 1.080511487 | O58: 0.4154072803 | P58: 0.6651042063 | Q58: 1.712814709 | R58: 45.47941451 | S58: 47.47202328 | AA58: 108 | AB58: -1.373566145 | AC58: 0.9035036905 | AD58: -0.3090169944 | AE58: 0.9510565163 | AF58: -0.2317627458 | AG58: 0.7132923872 | AK58: =AK55+0.5 -> 9 | AL58: =COS(AK58) -> -0.9111302619 | AM58: =SIN(AK58) -> 0.4121184852 | AN58: =$U$1+Rmoo_*COS(AK58*dr_) -> -0.1416960764 | AO58: =Rmoo_*SIN(AK58*dr_) -> 0.1486127418 | AP58: 0.455 | AQ58: - | AR58: 61.36901016 | AS58: 0.924680678 | AT58: 0.4207297085 | AU58: 0.1434431431
A59: 53 | B59: -0.6166666667 | C59: -0.8016666667 | F59: 1.204758624 | G59: 1.090948555 | H59: 0.3400225225 | I59: 0.4616441441 | J59: 0.8870652085 | K59: 1.087294658 | L59: 0.3016221498 | M59: 0.7856725085 | N59: 1.090948555 | O59: 0.409508459 | P59: 0.6814400965 | Q59: 1.674480049 | R59: 46.69964463 | S59: 48.87709328 | AA59: 110 | AB59: -1.404919136 | AC59: 0.8927079897 | AD59: -0.3420201433 | AE59: 0.9396926208 | AF59: -0.2565151075 | AG59: 0.7047694656 | AL59: 0 | AM59: 0 | AN59: =$U$1 -> -1.08 | AO59: 0 | AP59: 0.445 | AQ59: - | AR59: 61.27728791 | AS59: 0.9281857213 | AT59: 0.413042646 | AU59: 0.1406118508
A60: 54 | B60: -0.6 | C60: -0.78 | F60: 1.218837899 | G60: 1.101229544 | H60: 0.3275 | I60: 0.4525 | J60: 0.8917644027 | K60: 1.100001204 | L60: 0.2920528419 | M60: 0.8079483622 | N60: 1.101229544 | O60: 0.4035233922 | P60: 0.697706152 | Q60: 1.635938139 | R60: 47.9264717 | S60: 50.2880234 | AA60: 112 | AB60: -1.435876264 | AC60: 0.8808246618 | AD60: -0.3746065934 | AE60: 0.9271838546 | AF60: -0.2809549451 | AG60: 0.6953878909 | AP60: 0.435 | AQ60: - | AR60: 61.16734168 | AS60: 0.9315901279 | AT60: 0.4052417056 | AU60: 0.1377086548
A61: 55 | B61: -0.5833333333 | C61: -0.7583333333 | F61: 1.232952439 | G61: 1.111349484 | H61: 0.3148809524 | I61: 0.443452381 | J61: 0.8962979336 | K61: 1.112739576 | L61: 0.282227147 | M61: 0.8305124289 | N61: 1.111349484 | O61: 0.3974654527 | P61: 0.7138840315 | Q61: 1.597196193 | R61: 49.15966615 | S61: 51.70435377 | AA61: 114 | AB61: -1.466399811 | AC61: 0.8678681848 | AD61: -0.4067366431 | AE61: 0.9135454576 | AF61: -0.3050524823 | AG61: 0.6851590932 | AK61: =AK58+0.5 -> 9.5 | AL61: =COS(AK61) -> -0.9971721562 | AM61: =SIN(AK61) -> -0.07515112046 | AN61: =$U$1+Rmoo_*COS(AK61*dr_) -> -0.1430286785 | AO61: =Rmoo_*SIN(AK61*dr_) -> 0.1567952256 | AP61: 0.425 | AQ61: - | AR61: 61.0378309 | AS61: 0.9348958075 | AT61: 0.3973307182 | AU61: 0.1347344733
A62: 56 | B62: -0.5666666667 | C62: -0.7366666667 | F62: 1.247113957 | G62: 1.12130238 | H62: 0.3021568627 | I62: 0.4345098039 | J62: 0.9006671029 | K62: 1.125520346 | L62: 0.2721427462 | M62: 0.8533776003 | N62: 1.12130238 | O62: 0.3913486863 | P62: 0.7299536941 | Q62: 1.558261359 | R62: 50.39900041 | S62: 53.12539439 | AA62: 116 | AB62: -1.496452589 | AC62: 0.853854344 | AD62: -0.4383711468 | AE62: 0.8987940463 | AF62: -0.3287783601 | AG62: 0.6740955347 | AL62: 0 | AM62: 0 | AN62: =$U$1 -> -1.08 | AO62: 0 | AP62: 0.415 | AQ62: - | AR62: 60.88727343 | AS62: 0.938104574 | AT62: 0.3893133982 | AU62: 0.1316901741
A63: 57 | B63: -0.55 | C63: -0.715 | F63: 1.261335148 | G63: 1.131081079 | H63: 0.2893181818 | I63: 0.4256818182 | J63: 0.9048729135 | K63: 1.138354971 | L63: 0.2617961861 | M63: 0.8765587851 | N63: 1.131081079 | O63: 0.3851879471 | P63: 0.7458931315 | Q63: 1.519140737 | R63: 51.64424849 | S63: 54.55006655 | AA63: 118 | AB63: -1.525997985 | AC63: 0.8388002132 | AD63: -0.4694715628 | AE63: 0.8829475929 | AF63: -0.3521036721 | AG63: 0.6622106946 | AP63: 0.405 | AQ63: - | AR63: 60.71402611 | AS63: 0.9412181511 | AT63: 0.3811933512 | AU63: 0.1285765727
A64: 58 | B64: -0.5333333333 | C64: -0.6933333333 | F64: 1.275629859 | G64: 1.140677106 | H64: 0.2763541667 | I64: 0.4169791667 | J64: 0.9089160437 | K64: 1.151255948 | L64: 0.2511827358 | M64: 0.9000732119 | N64: 1.140677106 | O64: 0.3789990545 | P64: 0.761678052 | Q64: 1.47984139 | R64: 52.89518557 | S64: 55.97794077 | AA64: 120 | AB64: -1.555 | AC64: 0.8227241336 | AD64: -0.5 | AE64: 0.8660254038 | AF64: -0.375 | AG64: 0.6495190528 | AK64: =AK61+0.5 -> 10 | AL64: =COS(AK64) -> -0.8390715291 | AM64: =SIN(AK64) -> -0.5440211109 | AN64: =$U$1+Rmoo_*COS(AK64*dr_) -> -0.1444326346 | AO64: =Rmoo_*SIN(AK64*dr_) -> 0.1649657688 | AP64: 0.395 | AQ64: - | AR64: 60.51626195 | AS64: 0.9442381769 | AT64: 0.3729740799 | AU64: 0.1253944284
A65: 59 | B65: -0.5166666667 | C65: -0.6716666667 | F65: 1.290013303 | G65: 1.150080482 | H65: 0.2632526882 | I65: 0.4084139785 | J65: 0.9127968132 | K65: 1.164237006 | L65: 0.2402962148 | M65: 0.9239407913 | N65: 1.150080482 | O65: 0.372798978 | P65: 0.777281504 | Q65: 1.440370358 | R65: 54.15158752 | S65: 57.40829375 | AA65: 122 | AB65: -1.583423301 | AC65: 0.8056456913 | AD65: -0.5299192642 | AE65: 0.8480480962 | AF65: -0.3974394482 | AG65: 0.6360360721 | AL65: 0 | AM65: 0 | AN65: =$U$1 -> -1.08 | AO65: 0 | AP65: 0.385 | AQ65: - | AR65: 60.29194323 | AS65: 0.9471662094 | AT65: 0.3646589906 | AU65: 0.1221444398
A66: 60 | B66: -0.5 | C66: -0.65 | F66: 1.30450231 | G66: 1.159279481 | H66: 0.25 | I66: 0.4 | J66: 0.916515139 | K66: 1.177313334 | L66: 0.2291287847 | M66: 0.9481845497 | N66: 1.159279481 | O66: 0.3666060556 | P66: 0.7926734251 | Q66: 1.400734679 | R66: 55.41323038 | S66: 58.83994533 | AA66: 124 | AB66: -1.611233258 | AC66: 0.7875856939 | AD66: -0.5591929035 | AE66: 0.8290375726 | AF66: -0.4193946776 | AG66: 0.6217781794 | AP66: 0.375 | AQ66: - | AR66: 60.03878964 | AS66: 0.9500037301 | AT66: 0.3562513988 | AU66: 0.1188272377
A67: 61 | B67: -0.4833333333 | C67: -0.6283333333 | F67: 1.319115624 | G67: 1.168260354 | H67: 0.2365804598 | I67: 0.3917528736 | J67: 0.9200704789 | K67: 1.190501851 | L67: 0.2176706969 | M67: 0.9728311537 | N67: 1.168260354 | O67: 0.360440254 | P67: 0.8078200997 | Q67: 1.3609414 | R67: 56.67988978 | S67: 60.27248179 | AA67: 126 | AB67: -1.63839599 | AC67: 0.7685661447 | AD67: -0.5877852523 | AE67: 0.8090169944 | AF67: -0.4408389392 | AG67: 0.6067627458 | AK67: =AK64+0.5 -> 10.5 | AL67: =COS(AK67) -> -0.475536928 | AM67: =SIN(AK67) -> -0.87969576 | AN67: =$U$1+Rmoo_*COS(AK67*dr_) -> -0.1459078378 | AO67: =Rmoo_*SIN(AK67*dr_) -> 0.1731237492 | AP67: 0.365 | AQ67: - | AR67: 59.7542403 | AS67: 0.9527521481 | AT67: 0.3477545341 | AU67: 0.1154433777
A68: 62 | B68: -0.4666666667 | C68: -0.6066666667 | F68: 1.333874273 | G68: 1.177006982 | H68: 0.2229761905 | I68: 0.3836904762 | J68: 0.923461758 | K68: 1.203821531 | L68: 0.2059099848 | M68: 0.9979115463 | N68: 1.177006982 | O68: 0.3543234817 | P68: 0.8226835006 | Q68: 1.320997607 | R68: 57.95134022 | S68: 61.70513518 | AA68: 128 | AB68: =$U$1+Rmoo_*COS(AA68*dr_) -> -1.664878402 | AC68: =Rmoo_*SIN(AA68*dr_) -> 0.7486102159 | AD68: =COS(AA68*dr_) -> -0.6156614753 | AE68: =SIN(AA68*dr_) -> 0.7880107536 | AF68: =AD68*$C$3 -> -0.4617461065 | AG68: 0.5910080652 | AL68: 0 | AM68: 0 | AN68: =$U$1 -> -1.08 | AO68: 0 | AP68: 0.355 | AQ68: =IF(AND(Xmoon_+Rmoo_>=AP68,Xmoon_-Rmoo_<=-AP68),1,"-") -> - | AR68: =rd_*(IFERROR(ACOS((Xmoon_^2+AP68^2-Rmoo_^2)/(2*ABS(Xmoon_)*AP68)),0)) -> 59.43540815 | AS68: 0.9554128043 | AT68: =AS68*AP68 -> 0.3391715455 | AU68: 0.1119933291
A69: 63 | B69: -0.45 | C69: -0.585 | F69: 1.348802008 | G69: 1.185500456 | H69: 0.2091666667 | I69: 0.3758333333 | J69: 0.926687275 | K69: 1.217293812 | L69: 0.1938320883 | M69: 1.023461724 | N69: 1.185500456 | O69: 0.3482799675 | P69: 0.837220488 | Q69: 1.280910442 | R69: 59.2273543 | S69: 63.13661189 | AA69: 130 | AB69: -1.690648229 | AC69: 0.727742221 | AD69: -0.6427876097 | AE69: 0.7660444431 | AF69: -0.4820907073 | AG69: 0.5745333323 | AP69: 0.345 | AQ69: - | AR69: 59.07902497 | AS69: =1-$D$3*(1-(SQRT(1-AP69^2))^$E$3) -> 0.9579869742 | AT69: 0.3305055061 | AU69: =AT69*AR69/180 *(AQ69<>1)+ AT69*(AQ69=1) -> 0.1084774614
A70: 64 | B70: =(A70-180*($A$3/180)/2)/60 -> -0.4333333333 | C70: =(1+Rmoo_)*B70*2*60/$A$3 -> -0.5633333333 | D70: =IF(Rmoo_>=1,IF((ABS(C70)<=(Rmoo_-1)),1,""),"") ->  | E70: =IF(Rmoo_<1,IF(ABS(C70)+Rmoo_<1,1,""),"") ->  | F70: =IF(Rmoo_>=1,IFERROR(ACOS((Rmoo_^2+C70^2-1^2)/(2*Rmoo_*ABS(C70))),0), IFERROR(ACOS((Rmoo_^2+C70^2-1^2)/(2*Rmoo_*ABS(C70))),0)) -> 1.363925853 | G70: =IFERROR(ACOS((C70^2+1^2-Rmoo_^2)/(2*ABS(C70)*1)),0) -> 1.193718546 | H70: =Rmoo_*COS(F70) -> 0.1951282051 | I70: =COS(G70) -> 0.3682051282 | J70: 0.9297445797 | K70: =Rmoo_^2*pi_*(2*F70)/(2*pi_) -> 1.230943082 | L70: 0.1814193911 | M70: 1.049523691 | N70: =1^2*pi_*(2*G70)/(2*pi_) -> 1.193718546 | O70: 0.3423367222 | P70: 0.8513818235 | Q70: =IF(OR(D70=1,E70=1),IF(D70=1,0,1^2*pi_-Rmoo_^2*pi_),IF(Rmoo_>=1,1^2*pi_-M70-P70,1^2*pi_-M70-P70)) -> 1.240687139 | R70: =100-Q70/pi_*100 -> 60.50770181 | S70: =Eclipse_Dimming_2(C70,Rmoo_,2000,$D$3,$E$3) -> 64.56649768 | AA70: =AA69+2 -> 132 | AB70: -1.715674076 | AC70: 0.7059875842 | AD70: -0.6691306064 | AE70: 0.7431448255 | AF70: -0.5018479548 | AG70: 0.5573586191 | AK70: =AK67+0.5 -> 11 | AL70: =COS(AK70) -> 0.004425697988 | AM70: =SIN(AK70) -> -0.9999902066 | AN70: =$U$1+Rmoo_*COS(AK70*dr_) -> -0.1474541757 | AO70: =Rmoo_*SIN(AK70*dr_) -> 0.1812685456 | AP70: =AP69-0.01 -> 0.335 | AQ70: - | AR70: 58.68137448 | AS70: 0.9604758715 | AT70: 0.321759417 | AU70: 0.1048960269
A71: =A70+$A$3/180 -> 65 | B71: -0.4166666667 | C71: -0.5416666667 | F71: 1.379276781 | G71: 1.201635057 | H71: 0.1808333333 | I71: 0.3608333333 | J71: =ABS(H71*TAN(F71)) -> 0.9326303156 | K71: 1.244797294 | L71: =H71*J71 -> 0.1686506487 | M71: =K71-L71 -> 1.076146646 | N71: 1.201635057 | O71: =COS(G71)*J71 -> 0.3365241055 | P71: =N71-O71 -> 0.8651109519 | Q71: 1.200335056 | R71: 61.7921485 | S71: 65.99396371 | AA71: 134 | AB71: -1.739925452 | AC71: 0.6833728103 | AD71: -0.6946583705 | AE71: 0.7193398003 | AF71: -0.5209937778 | AG71: 0.5395048503 | AL71: 0 | AM71: 0 | AN71: =$U$1 -> -1.08 | AO71: 0 | AP71: 0.325 | AQ71: - | AR71: 58.23821029 | AS71: 0.962880651 | AT71: 0.3129362116 | AU71: 0.1012491383
A72: 66 | B72: -0.4 | C72: -0.52 | F72: 1.394890559 | G72: 1.20921901 | H72: 0.16625 | I72: 0.35375 | J72: 0.9353400117 | K72: 1.258888729 | L72: 0.1555002769 | M72: 1.103388452 | N72: 1.20921901 | O72: 0.3308765291 | P72: 0.8783424811 | Q72: 1.15986172 | R72: 63.08045478 | S72: 67.41758335 | AA72: 136 | AB72: -1.76337281 | AC72: 0.6599254519 | AD72: -0.7193398003 | AE72: 0.6946583705 | AF72: -0.5395048503 | AG72: 0.5209937778 | AP72: 0.315 | AQ72: - | AR72: 57.7446546 | AS72: 0.965202411 | AT72: 0.3040387595 | AU72: 0.09753673972
A73: 67 | B73: -0.3833333333 | C73: -0.4983333333 | F73: 1.41080882 | G73: 1.216433604 | H73: 0.1513405797 | I73: 0.3469927536 | J73: 0.9378678099 | K73: 1.27325496 | L73: 0.141937458 | M73: 1.131317502 | N73: 1.216433604 | O73: 0.3254333339 | P73: 0.8910002705 | Q73: 1.119274882 | R73: 64.37237399 | S73: 68.83692051 | AA73: 138 | AB73: -1.785987584 | AC73: 0.635674076 | AD73: -0.7431448255 | AE73: 0.6691306064 | AF73: -0.5573586191 | AG73: 0.5018479548 | AK73: =AK70+0.5 -> 11.5 | AL73: =COS(AK73) -> 0.4833047588 | AM73: =SIN(AK73) -> -0.8754521747 | AN73: =$U$1+Rmoo_*COS(AK73*dr_) -> -0.1490715306 | AO73: =Rmoo_*SIN(AK73*dr_) -> 0.1893995377 | AP73: 0.305 | AQ73: - | AR73: 57.19507168 | AS73: 0.9674421963 | AT73: 0.2950698699 | AU73: 0.09375856865
A74: 68 | B74: -0.3666666667 | C74: -0.4766666667 | F74: 1.427080423 | G74: 1.2232349 | H74: 0.1360606061 | I74: 0.3406060606 | J74: 0.9402061005 | K74: 1.287940081 | L74: 0.1279250119 | M74: 1.160015069 | N74: 1.2232349 | O74: 0.3202398961 | P74: 0.9029950044 | Q74: 1.07858258 | R74: 65.66765018 | S74: 70.25106097 | AA74: 140 | AB74: -1.807742221 | AC74: 0.6106482292 | AD74: -0.7660444431 | AE74: 0.6427876097 | AF74: -0.5745333323 | AG74: 0.4820907073 | AL74: 0 | AM74: 0 | AN74: =$U$1 -> -1.08 | AO74: 0 | AP74: 0.295 | AQ74: - | AR74: 56.58290836 | AS74: 0.9696010005 | AT74: 0.2860322951 | AU74: 0.08991410636
A75: 69 | B75: -0.35 | C75: -0.455 | F75: 1.443763209 | G75: 1.229570116 | H75: 0.1203571429 | I75: 0.3346428571 | J75: 0.9423450314 | K75: 1.302996296 | L75: 0.1134179556 | M75: 1.18957834 | N75: 1.229570116 | O75: 0.3153490337 | P75: 0.9142210822 | Q75: 1.037793231 | R75: 66.96601547 | S75: 71.65841417 | AA75: 142 | AB75: -1.828610216 | AC75: 0.5848784016 | AD75: -0.7880107536 | AE75: 0.6156614753 | AF75: -0.5910080652 | AG75: 0.4617461065 | AP75: 0.285 | AQ75: - | AR75: 55.90049063 | AS75: 0.9716797678 | AT75: 0.2769287338 | AU75: 0.08600251161
A76: 70 | B76: -0.3333333333 | C76: -0.4333333333 | F76: 1.460926289 | G76: 1.235375402 | H76: 0.1041666667 | I76: 0.3291666667 | J76: 0.9442718388 | K76: 1.318485976 | L76: 0.09836164988 | M76: 1.220124326 | N76: 1.235375402 | O76: 0.3108228136 | P76: 0.9245525882 | Q76: 0.9969157391 | R76: 68.26718645 | S76: 73.05849011 | AA76: 144 | AB76: -1.848566145 | AC76: 0.5583959897 | AD76: -0.8090169944 | AE76: 0.5877852523 | AF76: -0.6067627458 | AG76: 0.4408389392 | AK76: =AK73+0.5 -> 12 | AL76: =COS(AK76) -> 0.8438539587 | AM76: =SIN(AK76) -> -0.536572918 | AN76: =$U$1+Rmoo_*COS(AK76*dr_) -> -0.1507597793 | AO76: =Rmoo_*SIN(AK76*dr_) -> 0.1975161063 | AP76: 0.275 | AQ76: - | AR76: 55.13876065 | AS76: 0.9736793957 | AT76: 0.2677618338 | AU76: 0.08202253147
A77: 71 | B77: -0.3166666667 | C77: -0.4116666667 | F77: 1.478653067 | G77: 1.240572906 | H77: 0.0874122807 | I77: 0.324254386 | J77: 0.9459699219 | K77: 1.334484393 | L77: 0.08268938835 | M77: 1.251795004 | N77: 1.240572906 | O77: 0.3067348962 | P77: 0.9338380097 | Q77: 0.9559596397 | R77: 69.57085959 | S77: 74.45024999 | AA77: 146 | AB77: -1.867585694 | AC77: 0.5312332583 | AD77: -0.8290375726 | AE77: 0.5591929035 | AF77: -0.6217781794 | AG77: 0.4193946776 | AL77: 0 | AM77: 0 | AN77: =$U$1 -> -1.08 | AO77: 0 | AP77: 0.265 | AQ77: - | AR77: 54.28693206 | AS77: 0.9756007362 | AT77: 0.2585341951 | AU77: 0.07797237935
A78: 72 | B78: -0.3 | C78: -0.39 | F78: 1.497045276 | G78: 1.24506684 | H78: 0.07 | I78: 0.32 | J78: 0.9474175426 | K78: 1.351083362 | L78: 0.06631922798 | M78: 1.284764134 | N78: 1.24506684 | O78: 0.3031736136 | P78: 0.9418932259 | Q78: 0.9149352937 | R78: 70.87670508 | S78: 75.83188776 | AA78: 148 | AB78: -1.885645691 | AC78: 0.503423301 | AD78: -0.8480480962 | AE78: 0.5299192642 | AF78: -0.6360360721 | AG78: 0.3974394482 | AP78: 0.255 | AQ78: - | AR78: 53.33203029 | AS78: 0.9774445983 | AT78: 0.2492483726 | AU78: 0.07384956531
A79: 73 | B79: -0.2833333333 | C79: -0.3683333333 | F79: 1.516228487 | G79: 1.248738128 | H79: 0.05181372549 | I79: 0.3165196078 | J79: 0.9485859676 | K79: 1.368396209 | L79: 0.04914977293 | M79: 1.319246436 | N79: 1.248738128 | O79: 0.3002460585 | P79: 0.9484920699 | Q79: 0.8738541476 | R79: 72.18435857 | S79: 77.20280548 | AA79: 150 | AB79: -1.902724134 | AC79: 0.475 | AD79: -0.8660254038 | AE79: 0.5 | AF79: -0.6495190528 | AG79: 0.375 | AK79: =AK76+0.5 -> 12.5 | AL79: =COS(AK79) -> 0.9977982792 | AM79: =SIN(AK79) -> -0.06632189735 | AN79: =$U$1+Rmoo_*COS(AK79*dr_) -> -0.1525187932 | AO79: =Rmoo_*SIN(AK79*dr_) -> 0.2056176332 | AP79: 0.245 | AQ79: - | AR79: 52.25826797 | AS79: 0.979211749 | AT79: 0.2399068785 | AU79: 0.06965065524
A80: 74 | B80: -0.2666666667 | C80: -0.3466666667 | F80: 1.536359696 | G80: 1.251437014 | H80: 0.03270833333 | I80: 0.3139583333 | J80: 0.9494367619 | K80: 1.386564626 | L80: 0.03105449409 | M80: 1.355510132 | N80: 1.251437014 | O80: 0.2980835834 | P80: 0.9533534304 | Q80: 0.8327290914 | R80: 73.49340977 | S80: 78.56177019 | AA80: 152 | AB80: -1.918800213 | AC80: 0.4459979846 | AD80: -0.8829475929 | AE80: 0.4694715628 | AF80: -0.6622106946 | AG80: 0.3521036721 | AL80: 0 | AM80: 0 | AN80: =$U$1 -> -1.08 | AO80: 0 | AP80: 0.235 | AQ80: - | AR80: 51.04617698 | AS80: 0.9809029155 | AT80: 0.2305121851 | AU80: 0.0653709211
A81: 75 | B81: -0.25 | C81: -0.325 | F81: 1.557638052 | G81: 1.252972623 | H81: 0.0125 | I81: 0.3125 | J81: 0.9499177596 | K81: 1.405768342 | L81: 0.01187397199 | M81: 1.39389437 | N81: 1.252972623 | O81: 0.2968492999 | P81: 0.956123323 | Q81: 0.7915749603 | R81: 74.80338645 | S81: 79.90666612 | AA81: 154 | AB81: -1.933854344 | AC81: 0.4164525894 | AD81: -0.8987940463 | AE81: 0.4383711468 | AF81: -0.6740955347 | AG81: 0.3287783601 | AP81: 0.225 | AQ81: - | AR81: 49.67137097 | AS81: 0.9825187859 | AT81: 0.2210667268 | AU81: 0.06100381887
A82: 76 | B82: -0.2333333333 | C82: -0.3033333333 | F82: 1.58032028 | G82: 1.253097944 | H82: -0.009047619048 | I82: 0.3123809524 | J82: 0.9499569151 | K82: 1.426239053 | L82: -0.00859484828 | M82: 1.434833901 | N82: 1.253097944 | O82: 0.2967484459 | P82: 0.9563494985 | Q82: 0.7504092538 | R82: 76.11373158 | S82: 81.23668191 | AA82: 156 | AB82: -1.947868185 | AC82: 0.3863998109 | AD82: -0.9135454576 | AE82: 0.4067366431 | AF82: -0.6851590932 | AG82: 0.3050524823 | AK82: =AK79+0.5 -> 13 | AL82: =COS(AK82) -> 0.9074467815 | AM82: =SIN(AK82) -> 0.4201670368 | AN82: =$U$1+Rmoo_*COS(AK82*dr_) -> -0.1543484385 | AO82: =Rmoo_*SIN(AK82*dr_) -> 0.2137035016 | AP82: 0.215 | AQ82: - | AR82: 48.10272481 | AS82: 0.9840600113 | AT82: 0.2115729024 | AU82: 0.0565401839
A83: 77 | B83: -0.2166666667 | C83: -0.2816666667 | F83: 1.604743467 | G83: 1.251487651 | H83: -0.03224358974 | I83: 0.3139102564 | J83: 0.9494526586 | K83: 1.448280979 | L83: -0.030613762 | M83: 1.478894741 | N83: 1.251487651 | O83: 0.2980429275 | P83: 0.9534447231 | Q83: 0.7092531892 | R83: 77.42376981 | S83: 82.55024795 | AA83: 158 | AB83: -1.960824662 | AC83: 0.3558762637 | AD83: -0.9271838546 | AE83: 0.3746065934 | AF83: -0.6953878909 | AG83: 0.2809549451 | AL83: 0 | AM83: 0 | AN83: =$U$1 -> -1.08 | AO83: 0 | AP83: 0.205 | AQ83: - | AR83: 46.29959401 | AS83: 0.9855272064 | AT83: 0.2020330773 | AU83: 0.05196694143
A84: 78 | B84: -0.2 | C84: -0.26 | F84: 1.631359659 | G84: 1.24770442 | H84: -0.0575 | I84: 0.3175 | J84: 0.9482582718 | K84: 1.472302093 | L84: -0.05452485063 | M84: 1.526826943 | N84: 1.24770442 | O84: 0.3010720013 | P84: 0.9466324185 | Q84: 0.6681332919 | R84: 78.73265679 | S84: 83.84473665 | AA84: 160 | AB84: -1.97270799 | AC84: 0.3249191362 | AD84: -0.9396926208 | AE84: 0.3420201433 | AF84: -0.7047694656 | AG84: 0.2565151075 | AP84: 0.195 | AQ84: - | AR84: 44.20736484 | AS84: 0.9869209512 | AT84: 0.1924495855 | AU84: 0.0472649391
A85: 79 | B85: -0.1833333333 | C85: -0.2383333333 | F85: 1.660790161 | G85: 1.241146086 | H85: -0.08537878788 | I85: 0.3237121212 | J85: 0.9461556228 | K85: 1.49886312 | L85: -0.08078162022 | M85: 1.57964474 | N85: 1.241146086 | O85: 0.3062820437 | P85: 0.9348640427 | Q85: 0.6270838704 | R85: 80.03930046 | S85: 85.11887143 | AA85: 162 | AB85: -1.98350369 | AC85: 0.2935661447 | AD85: -0.9510565163 | AE85: 0.3090169944 | AF85: -0.7132923872 | AG85: 0.2317627458 | AK85: =AK82+0.5 -> 13.5 | AL85: =COS(AK85) -> 0.5949206633 | AM85: =SIN(AK85) -> 0.8037844266 | AN85: =$U$1+Rmoo_*COS(AK85*dr_) -> -0.1562485756 | AO85: =Rmoo_*SIN(AK85*dr_) -> 0.2217730957 | AP85: 0.185 | AQ85: - | AR85: 41.74989817 | AS85: 0.9882417916 | AT85: 0.1828247315 | AU85: 0.04240507733
A86: 80 | B86: -0.1666666667 | C86: -0.2166666667 | F86: 1.693914145 | G86: 1.230959417 | H86: -0.1166666667 | I86: 0.3333333333 | J86: 0.9428090416 | K86: 1.528757516 | L86: -0.1099943882 | M86: 1.638751904 | N86: 1.230959417 | O86: 0.3142696805 | P86: 0.9166897368 | Q86: 0.5861510125 | R86: 81.34223379 | S86: 86.37037941 | AA86: 164 | AB86: -1.993198611 | AC86: 0.261855488 | AD86: -0.9612616959 | AE86: 0.2756373558 | AF86: -0.720946272 | AG86: 0.2067280169 | AL86: 0 | AM86: 0 | AN86: =$U$1 -> -1.08 | AO86: 0 | AP86: 0.175 | AQ86: - | AR86: 38.81566061 | AS86: 0.9894902408 | AT86: 0.1731607921 | AU86: 0.03734083633
A87: 81 | B87: -0.15 | C87: -0.195 | F87: 1.732020188 | G87: 1.2158927 | H87: -0.1525 | I87: 0.3475 | J87: 0.9376799827 | K87: 1.563148219 | L87: -0.1429961974 | M87: 1.706144417 | N87: 1.2158927 | O87: 0.325843794 | P87: 0.8900489056 | Q87: 0.5453993313 | R87: 82.63940009 | S87: 87.59555747 | AA87: 166 | AB87: -2.00178094 | AC87: 0.2298258008 | AD87: -0.9702957263 | AE87: 0.2419218956 | AF87: -0.7277217947 | AG87: 0.1814414217 | AP87: 0.165 | AQ87: - | AR87: 35.22939621 | AS87: 0.99066678 | AT87: 0.1634600187 | AU87: 0.0319922098
A88: 82 | B88: -0.1333333333 | C88: -0.1733333333 | F88: 1.777080792 | G88: 1.194028786 | H88: -0.1945833333 | I88: 0.3679166667 | J88: 0.9298587669 | K88: 1.603815415 | L88: -0.1809350184 | M88: 1.784750433 | N88: 1.194028786 | O88: 0.342110538 | P88: 0.8519182476 | Q88: 0.5049239728 | R88: 83.92777077 | S88: 88.79183745 | AA88: 168 | AB88: -2.009240221 | AC88: 0.1975161063 | AD88: -0.9781476007 | AE88: 0.2079116908 | AF88: -0.7336107006 | AG88: 0.1559337681 | AK88: =AK85+0.5 -> 14 | AL88: =COS(AK88) -> 0.1367372182 | AM88: =SIN(AK88) -> 0.9906073557 | AN88: =$U$1+Rmoo_*COS(AK88*dr_) -> -0.15821906 | AO88: =Rmoo_*SIN(AK88*dr_) -> 0.2298258008 | AP88: 0.155 | AQ88: - | AR88: 30.68442319 | AS88: 0.9917718592 | AT88: 0.1537246382 | AU88: 0.02620528807
A89: 83 | B89: -0.1166666667 | C89: -0.1516666667 | F89: 1.832287482 | G89: 1.162265047 | H89: -0.2455952381 | I89: 0.3972619048 | J89: 0.917705279 | K89: 1.653639453 | L89: -0.2253840465 | M89: 1.879023499 | N89: 1.162265047 | O89: 0.3645693471 | P89: 0.7976956998 | Q89: 0.4648734546 | R89: 85.20261836 | S89: 89.95486259 | AA89: 170 | AB89: -2.015567365 | AC89: 0.1649657688 | AD89: -0.984807753 | AE89: 0.1736481777 | AF89: -0.7386058148 | AG89: 0.1302361333 | AL89: 0 | AM89: 0 | AN89: =$U$1 -> -1.08 | AO89: 0 | AP89: 0.145 | AQ89: - | AR89: 24.53300712 | AS89: 0.9928058982 | AT89: 0.1439568552 | AU89: 0.0196205253
A90: 84 | B90: -0.1 | C90: -0.13 | F90: 1.903199707 | G90: 1.115197653 | H90: -0.31 | I90: 0.44 | J90: 0.8979977728 | K90: 1.717637735 | L90: -0.2783793096 | M90: 1.996017045 | N90: 1.115197653 | O90: 0.39511902 | P90: 0.7200786334 | Q90: 0.4254969754 | R90: 86.45601062 | S90: 91.07734952 | AA90: 172 | AB90: -2.020754665 | AC90: 0.1322144459 | AD90: -0.9902680687 | AE90: 0.139173101 | AF90: -0.7427010516 | AG90: 0.1043798257 | AP90: 0.135 | AQ90: - | AR90: 14.64591517 | AS90: 0.9937692874 | AT90: 0.1341588538 | AU90: 0.01091599551
A91: 85 | B91: -0.08333333333 | C91: -0.1083333333 | F91: 2.000571758 | G91: 1.042379579 | H91: -0.3958333333 | I91: 0.5041666667 | J91: 0.8636063757 | K91: 1.805516012 | L91: -0.3418441904 | M91: 2.147360202 | N91: 1.042379579 | O91: 0.4354015478 | P91: 0.6069780316 | Q91: 0.3872544199 | R91: 87.67330897 | S91: 92.15062526 | AA91: 174 | AB91: -2.024795801 | AC91: 0.0993020401 | AD91: -0.9945218954 | AE91: 0.1045284633 | AF91: -0.7458914215 | AG91: 0.07839634745 | AK91: =AK88+0.5 -> 14.5 | AL91: =COS(AK91) -> -0.3549242668 | AM91: =SIN(AK91) -> 0.9348950555 | AN91: =$U$1+Rmoo_*COS(AK91*dr_) -> -0.1602597416 | AO91: =Rmoo_*SIN(AK91*dr_) -> 0.2378610039 | AP91: 0.125 | AQ91: - | AR91: 0 | AS91: 0.994662388 | AT91: 0.1243327985 | AU91: 0
A92: 86 | B92: -0.06666666667 | C92: -0.08666666667 | F92: 2.148965055 | G92: 0.919983438 | H92: -0.5191666667 | I92: 0.6058333333 | J92: 0.7955915863 | K92: 1.939440962 | L92: -0.4130446319 | M92: 2.352485594 | N92: 0.919983438 | O92: 0.4819959027 | P92: 0.4379875353 | Q92: 0.3511195245 | R92: 88.82351841 | S92: 93.15728337 | AA92: 176 | AB92: -2.027685848 | AC92: 0.06626865006 | AD92: -0.9975640503 | AE92: 0.06975647374 | AF92: -0.7481730377 | AG92: 0.05231735531 | AL92: 0 | AM92: 0 | AN92: =$U$1 -> -1.08 | AO92: 0 | AP92: 0.115 | AQ92: - | AR92: 0 | AS92: 0.9954855332 | AT92: 0.1144808363 | AU92: 0
A93: 87 | B93: -0.05 | C93: -0.065 | F93: 2.426851863 | G93: 0.6721254849 | H93: -0.7175 | I93: 0.7825 | J93: 0.6226505842 | K93: 2.190233806 | L93: -0.4467517942 | M93: 2.6369856 | N93: 0.6721254849 | O93: 0.4872240821 | P93: 0.1849014028 | Q93: 0.3197056505 | R93: 89.82345308 | S93: 94.05481846 | AA93: 178 | AB93: -2.029421286 | AC93: 0.03315452187 | AD93: -0.999390827 | AE93: 0.0348994967 | AF93: -0.7495431203 | AG93: 0.02617462253 | AP93: 0.105 | AQ93: - | AR93: 0 | AS93: 0.9962390284 | AT93: 0.104605098 | AU93: 0
A94: 88 | B94: -0.03333333333 | C94: -0.04333333333 | E94: 1 | F94: 0 | G94: 0 | H94: 0.95 | I94: 1 | J94: 0 | K94: 0 | L94: 0 | M94: 0 | N94: 0 | O94: 0 | P94: 0 | Q94: 0.3063052837 | R94: 90.25 | S94: 94.65976512 | AA94: 180 | AB94: -2.03 | AC94: 1.163891032e-16 | AD94: -1 | AE94: 1.225148455e-16 | AF94: -0.75 | AG94: 9.188613412e-17 | AK94: =AK91+0.5 -> 15 | AL94: =COS(AK94) -> -0.7596879129 | AM94: =SIN(AK94) -> 0.6502878402 | AN94: =$U$1+Rmoo_*COS(AK94*dr_) -> -0.162370465 | AO94: =Rmoo_*SIN(AK94*dr_) -> 0.2458780928 | AP94: 0.095 | AQ94: - | AR94: 0 | AS94: 0.9969231518 | AT94: 0.09470769942 | AU94: 0
A95: 89 | B95: -0.01666666667 | C95: -0.02166666667 | E95: 1 | F95: 0 | G95: 0 | H95: 0.95 | I95: 1 | J95: 0 | K95: 0 | L95: 0 | M95: 0 | N95: 0 | O95: 0 | P95: 0 | Q95: 0.3063052837 | R95: 90.25 | S95: 94.90900122 | AA95: 182 | AB95: -2.029421286 | AC95: -0.03315452187 | AD95: -0.999390827 | AE95: -0.0348994967 | AF95: -0.7495431203 | AG95: -0.02617462253 | AL95: 0 | AM95: 0 | AN95: =$U$1 -> -1.08 | AO95: 0 | AP95: 0.085 | AQ95: - | AR95: 0 | AS95: 0.9975381549 | AT95: 0.08479074317 | AU95: 0
A96: 90 | B96: 0 | C96: 0 | E96: 1 | F96: 0 | G96: 0 | H96: 0.95 | I96: 1 | J96: 0 | K96: 0 | L96: 0 | M96: 0 | N96: 0 | O96: 0 | P96: 0 | Q96: 0.3063052837 | R96: 90.25 | S96: 94.98680225 | AA96: 184 | AB96: -2.027685848 | AC96: -0.06626865006 | AD96: -0.9975640503 | AE96: -0.06975647374 | AF96: -0.7481730377 | AG96: -0.05231735531 | AP96: 0.075 | AQ96: - | AR96: 0 | AS96: 0.9980842629 | AT96: 0.07485631972 | AU96: 0
A97: 91 | B97: 0.01666666667 | C97: 0.02166666667 | E97: 1 | F97: 0 | G97: 0 | H97: 0.95 | I97: 1 | J97: 0 | K97: 0 | L97: 0 | M97: 0 | N97: 0 | O97: 0 | P97: 0 | Q97: 0.3063052837 | R97: 90.25 | S97: 94.90900122 | AA97: 186 | AB97: -2.024795801 | AC97: -0.0993020401 | AD97: -0.9945218954 | AE97: -0.1045284633 | AF97: -0.7458914215 | AG97: -0.07839634745 | AK97: =AK94+0.5 -> 15.5 | AL97: =COS(AK97) -> -0.9784534628 | AM97: =SIN(AK97) -> 0.2064674819 | AN97: =$U$1+Rmoo_*COS(AK97*dr_) -> -0.1645510695 | AO97: =Rmoo_*SIN(AK97*dr_) -> 0.2538764573 | AP97: 0.065 | AQ97: - | AR97: 0 | AS97: 0.9985616751 | AT97: 0.06490650888 | AU97: 0
A98: 92 | B98: 0.03333333333 | C98: 0.04333333333 | E98: 1 | F98: 0 | G98: 0 | H98: 0.95 | I98: 1 | J98: 0 | K98: 0 | L98: 0 | M98: 0 | N98: 0 | O98: 0 | P98: 0 | Q98: 0.3063052837 | R98: 90.25 | S98: 94.65976512 | AA98: 188 | AB98: -2.020754665 | AC98: -0.1322144459 | AD98: -0.9902680687 | AE98: -0.139173101 | AF98: -0.7427010516 | AG98: -0.1043798257 | AL98: 0 | AM98: 0 | AN98: =$U$1 -> -1.08 | AO98: 0 | AP98: 0.055 | AQ98: - | AR98: 0 | AS98: 0.9989705651 | AT98: 0.05494338108 | AU98: 0
A99: 93 | B99: 0.05 | C99: 0.065 | F99: 2.426851863 | G99: 0.6721254849 | H99: -0.7175 | I99: 0.7825 | J99: 0.6226505842 | K99: 2.190233806 | L99: -0.4467517942 | M99: 2.6369856 | N99: 0.6721254849 | O99: 0.4872240821 | P99: 0.1849014028 | Q99: 0.3197056505 | R99: 89.82345308 | S99: 94.05481846 | AA99: 190 | AB99: -2.015567365 | AC99: -0.1649657688 | AD99: -0.984807753 | AE99: -0.1736481777 | AF99: -0.7386058148 | AG99: -0.1302361333 | AP99: 0.045 | AQ99: - | AR99: 0 | AS99: 0.9993110813 | AT99: 0.04496899866 | AU99: 0
A100: 94 | B100: 0.06666666667 | C100: 0.08666666667 | F100: 2.148965055 | G100: 0.919983438 | H100: -0.5191666667 | I100: 0.6058333333 | J100: 0.7955915863 | K100: 1.939440962 | L100: -0.4130446319 | M100: 2.352485594 | N100: 0.919983438 | O100: 0.4819959027 | P100: 0.4379875353 | Q100: 0.3511195245 | R100: 88.82351841 | S100: 93.15728337 | AA100: 192 | AB100: =$U$1+Rmoo_*COS(AA100*dr_) -> -2.009240221 | AC100: =Rmoo_*SIN(AA100*dr_) -> -0.1975161063 | AD100: -0.9781476007 | AE100: -0.2079116908 | AF100: =AD100*$C$3 -> -0.7336107006 | AG100: -0.1559337681 | AK100: =AK97+0.5 -> 16 | AL100: =COS(AK100) -> -0.9576594803 | AM100: =SIN(AK100) -> -0.2879033167 | AN100: =$U$1+Rmoo_*COS(AK100*dr_) -> -0.1668013889 | AO100: =Rmoo_*SIN(AK100*dr_) -> 0.261855488 | AP100: 0.035 | AQ100: =IF(AND(Xmoon_+Rmoo_>=AP100,Xmoon_-Rmoo_<=-AP100),1,"-") -> - | AR100: 0 | AS100: 0.9995833468 | AT100: 0.03498541714 | AU100: 0
A101: 95 | B101: 0.08333333333 | C101: 0.1083333333 | F101: 2.000571758 | G101: 1.042379579 | H101: -0.3958333333 | I101: 0.5041666667 | J101: 0.8636063757 | K101: 1.805516012 | L101: -0.3418441904 | M101: 2.147360202 | N101: 1.042379579 | O101: 0.4354015478 | P101: 0.6069780316 | Q101: 0.3872544199 | R101: 87.67330897 | S101: 92.15062526 | AA101: 194 | AB101: -2.00178094 | AC101: -0.2298258008 | AD101: -0.9702957263 | AE101: -0.2419218956 | AF101: -0.7277217947 | AG101: -0.1814414217 | AL101: 0 | AM101: 0 | AN101: =$U$1 -> -1.08 | AO101: 0 | AP101: 0.025 | AQ101: - | AR101: 0 | AS101: 0.9997874601 | AT101: 0.0249946865 | AU101: 0
A102: 96 | B102: 0.1 | C102: =(1+Rmoo_)*B102*2*60/$A$3 -> 0.13 | D102: =IF(Rmoo_>=1,IF((ABS(C102)<=(Rmoo_-1)),1,""),"") ->  | E102: =IF(Rmoo_<1,IF(ABS(C102)+Rmoo_<1,1,""),"") ->  | F102: =IF(Rmoo_>=1,IFERROR(ACOS((Rmoo_^2+C102^2-1^2)/(2*Rmoo_*ABS(C102))),0), IFERROR(ACOS((Rmoo_^2+C102^2-1^2)/(2*Rmoo_*ABS(C102))),0)) -> 1.903199707 | G102: =IFERROR(ACOS((C102^2+1^2-Rmoo_^2)/(2*ABS(C102)*1)),0) -> 1.115197653 | H102: =Rmoo_*COS(F102) -> -0.31 | I102: 0.44 | J102: 0.8979977728 | K102: =Rmoo_^2*pi_*(2*F102)/(2*pi_) -> 1.717637735 | L102: -0.2783793096 | M102: 1.996017045 | N102: 1.115197653 | O102: 0.39511902 | P102: 0.7200786334 | Q102: =IF(OR(D102=1,E102=1),IF(D102=1,0,1^2*pi_-Rmoo_^2*pi_),IF(Rmoo_>=1,1^2*pi_-M102-P102,1^2*pi_-M102-P102)) -> 0.4254969754 | R102: 86.45601062 | S102: =Eclipse_Dimming_2(C102,Rmoo_,2000,$D$3,$E$3) -> 91.07734952 | AA102: 196 | AB102: -1.993198611 | AC102: -0.261855488 | AD102: -0.9612616959 | AE102: -0.2756373558 | AF102: -0.720946272 | AG102: -0.2067280169 | AP102: 0.015 | AQ102: - | AR102: 0 | AS102: 0.9999234948 | AT102: 0.01499885242 | AU102: 0
A103: 97 | B103: 0.1166666667 | C103: 0.1516666667 | F103: 1.832287482 | G103: 1.162265047 | H103: -0.2455952381 | I103: 0.3972619048 | J103: 0.917705279 | K103: 1.653639453 | L103: -0.2253840465 | M103: 1.879023499 | N103: 1.162265047 | O103: 0.3645693471 | P103: 0.7976956998 | Q103: 0.4648734546 | R103: 85.20261836 | S103: 89.95486259 | AA103: 198 | AB103: -1.98350369 | AC103: -0.2935661447 | AD103: -0.9510565163 | AE103: -0.3090169944 | AF103: -0.7132923872 | AG103: -0.2317627458 | AK103: =AK100+0.5 -> 16.5 | AL103: =COS(AK103) -> -0.7023970575 | AM103: =SIN(AK103) -> -0.7117853424 | AN103: =$U$1+Rmoo_*COS(AK103*dr_) -> -0.1691212519 | AO103: =Rmoo_*SIN(AK103*dr_) -> 0.2698145775 | AP103: 0.005 | AQ103: - | AR103: 0 | AS103: 0.9999914999 | AT103: 0.0049999575 | AU103: 0
A104: 98 | B104: 0.1333333333 | C104: 0.1733333333 | F104: 1.777080792 | G104: 1.194028786 | H104: -0.1945833333 | I104: 0.3679166667 | J104: 0.9298587669 | K104: 1.603815415 | L104: -0.1809350184 | M104: 1.784750433 | N104: 1.194028786 | O104: 0.342110538 | P104: 0.8519182476 | Q104: 0.5049239728 | R104: 83.92777077 | S104: 88.79183745 | AA104: 200 | AB104: -1.97270799 | AC104: -0.3249191362 | AD104: -0.9396926208 | AE104: -0.3420201433 | AF104: -0.7047694656 | AG104: -0.2565151075 | AL104: 0 | AM104: 0 | AN104: =$U$1 -> -1.08 | AO104: 0
A105: 99 | B105: 0.15 | C105: 0.195 | F105: 1.732020188 | G105: 1.2158927 | H105: -0.1525 | I105: 0.3475 | J105: 0.9376799827 | K105: 1.563148219 | L105: -0.1429961974 | M105: 1.706144417 | N105: 1.2158927 | O105: 0.325843794 | P105: 0.8900489056 | Q105: 0.5453993313 | R105: 82.63940009 | S105: 87.59555747 | AA105: 202 | AB105: -1.960824662 | AC105: -0.3558762637 | AD105: -0.9271838546 | AE105: -0.3746065934 | AF105: -0.6953878909 | AG105: -0.2809549451
A106: 100 | B106: 0.1666666667 | C106: 0.2166666667 | F106: 1.693914145 | G106: 1.230959417 | H106: -0.1166666667 | I106: 0.3333333333 | J106: 0.9428090416 | K106: 1.528757516 | L106: -0.1099943882 | M106: 1.638751904 | N106: 1.230959417 | O106: 0.3142696805 | P106: 0.9166897368 | Q106: 0.5861510125 | R106: 81.34223379 | S106: 86.37037941 | AA106: 204 | AB106: -1.947868185 | AC106: -0.3863998109 | AD106: -0.9135454576 | AE106: -0.4067366431 | AF106: -0.6851590932 | AG106: -0.3050524823 | AK106: =AK103+0.5 -> 17 | AL106: =COS(AK106) -> -0.2751633381 | AM106: =SIN(AK106) -> -0.9613974919 | AN106: =$U$1+Rmoo_*COS(AK106*dr_) -> -0.1715104818 | AO106: =Rmoo_*SIN(AK106*dr_) -> 0.2777531195
A107: 101 | B107: 0.1833333333 | C107: 0.2383333333 | F107: 1.660790161 | G107: 1.241146086 | H107: -0.08537878788 | I107: 0.3237121212 | J107: 0.9461556228 | K107: 1.49886312 | L107: -0.08078162022 | M107: 1.57964474 | N107: 1.241146086 | O107: 0.3062820437 | P107: 0.9348640427 | Q107: 0.6270838704 | R107: 80.03930046 | S107: 85.11887143 | AA107: 206 | AB107: -1.933854344 | AC107: -0.4164525894 | AD107: -0.8987940463 | AE107: -0.4383711468 | AF107: -0.6740955347 | AG107: -0.3287783601 | AL107: 0 | AM107: 0 | AN107: =$U$1 -> -1.08 | AO107: 0
A108: 102 | B108: 0.2 | C108: 0.26 | F108: 1.631359659 | G108: 1.24770442 | H108: -0.0575 | I108: 0.3175 | J108: 0.9482582718 | K108: 1.472302093 | L108: -0.05452485063 | M108: 1.526826943 | N108: 1.24770442 | O108: 0.3010720013 | P108: 0.9466324185 | Q108: 0.6681332919 | R108: 78.73265679 | S108: 83.84473665 | AA108: 208 | AB108: -1.918800213 | AC108: -0.4459979846 | AD108: -0.8829475929 | AE108: -0.4694715628 | AF108: -0.6622106946 | AG108: -0.3521036721
A109: 103 | B109: 0.2166666667 | C109: 0.2816666667 | F109: 1.604743467 | G109: 1.251487651 | H109: -0.03224358974 | I109: 0.3139102564 | J109: 0.9494526586 | K109: 1.448280979 | L109: -0.030613762 | M109: 1.478894741 | N109: 1.251487651 | O109: 0.2980429275 | P109: 0.9534447231 | Q109: 0.7092531892 | R109: 77.42376981 | S109: 82.55024795 | AA109: 210 | AB109: -1.902724134 | AC109: -0.475 | AD109: -0.8660254038 | AE109: -0.5 | AF109: -0.6495190528 | AG109: -0.375 | AK109: =AK106+0.5 -> 17.5 | AL109: =COS(AK109) -> 0.2194399632 | AM109: =SIN(AK109) -> -0.9756260055 | AN109: =$U$1+Rmoo_*COS(AK109*dr_) -> -0.1739688968 | AO109: =Rmoo_*SIN(AK109*dr_) -> 0.2856705095
A110: 104 | B110: 0.2333333333 | C110: 0.3033333333 | F110: 1.58032028 | G110: 1.253097944 | H110: -0.009047619048 | I110: 0.3123809524 | J110: 0.9499569151 | K110: 1.426239053 | L110: -0.00859484828 | M110: 1.434833901 | N110: 1.253097944 | O110: 0.2967484459 | P110: 0.9563494985 | Q110: 0.7504092538 | R110: 76.11373158 | S110: 81.23668191 | AA110: 212 | AB110: -1.885645691 | AC110: -0.503423301 | AD110: -0.8480480962 | AE110: -0.5299192642 | AF110: -0.6360360721 | AG110: -0.3974394482 | AL110: 0 | AM110: 0 | AN110: =$U$1 -> -1.08 | AO110: 0
A111: 105 | B111: 0.25 | C111: 0.325 | F111: 1.557638052 | G111: 1.252972623 | H111: 0.0125 | I111: 0.3125 | J111: 0.9499177596 | K111: 1.405768342 | L111: 0.01187397199 | M111: 1.39389437 | N111: 1.252972623 | O111: 0.2968492999 | P111: 0.956123323 | Q111: 0.7915749603 | R111: 74.80338645 | S111: 79.90666612 | AA111: 214 | AB111: -1.867585694 | AC111: -0.5312332583 | AD111: -0.8290375726 | AE111: -0.5591929035 | AF111: -0.6217781794 | AG111: -0.4193946776
A112: 106 | B112: 0.2666666667 | C112: 0.3466666667 | F112: 1.536359696 | G112: 1.251437014 | H112: 0.03270833333 | I112: 0.3139583333 | J112: 0.9494367619 | K112: 1.386564626 | L112: 0.03105449409 | M112: 1.355510132 | N112: 1.251437014 | O112: 0.2980835834 | P112: 0.9533534304 | Q112: 0.8327290914 | R112: 73.49340977 | S112: 78.56177019 | AA112: 216 | AB112: -1.848566145 | AC112: -0.5583959897 | AD112: -0.8090169944 | AE112: -0.5877852523 | AF112: -0.6067627458 | AG112: -0.4408389392 | AK112: =AK109+0.5 -> 18 | AL112: =COS(AK112) -> 0.6603167082 | AM112: =SIN(AK112) -> -0.7509872468 | AN112: =$U$1+Rmoo_*COS(AK112*dr_) -> -0.1764963095 | AO112: =Rmoo_*SIN(AK112*dr_) -> 0.2935661447
A113: 107 | B113: 0.2833333333 | C113: 0.3683333333 | F113: 1.516228487 | G113: 1.248738128 | H113: 0.05181372549 | I113: 0.3165196078 | J113: 0.9485859676 | K113: 1.368396209 | L113: 0.04914977293 | M113: 1.319246436 | N113: 1.248738128 | O113: 0.3002460585 | P113: 0.9484920699 | Q113: 0.8738541476 | R113: 72.18435857 | S113: 77.20280548 | AA113: 218 | AB113: -1.828610216 | AC113: -0.5848784016 | AD113: -0.7880107536 | AE113: -0.6156614753 | AF113: -0.5910080652 | AG113: -0.4617461065 | AL113: 0 | AM113: 0 | AN113: =$U$1 -> -1.08 | AO113: 0
A114: 108 | B114: 0.3 | C114: 0.39 | F114: 1.497045276 | G114: 1.24506684 | H114: 0.07 | I114: 0.32 | J114: 0.9474175426 | K114: 1.351083362 | L114: 0.06631922798 | M114: 1.284764134 | N114: 1.24506684 | O114: 0.3031736136 | P114: 0.9418932259 | Q114: 0.9149352937 | R114: 70.87670508 | S114: 75.83188776 | AA114: 220 | AB114: -1.807742221 | AC114: -0.6106482292 | AD114: -0.7660444431 | AE114: -0.6427876097 | AF114: -0.5745333323 | AG114: -0.4820907073
A115: 109 | B115: 0.3166666667 | C115: 0.4116666667 | F115: 1.478653067 | G115: 1.240572906 | H115: 0.0874122807 | I115: 0.324254386 | J115: 0.9459699219 | K115: 1.334484393 | L115: 0.08268938835 | M115: 1.251795004 | N115: 1.240572906 | O115: 0.3067348962 | P115: 0.9338380097 | Q115: 0.9559596397 | R115: 69.57085959 | S115: 74.45024999 | AA115: 222 | AB115: -1.785987584 | AC115: -0.635674076 | AD115: -0.7431448255 | AE115: -0.6691306064 | AF115: -0.5573586191 | AG115: -0.5018479548 | AK115: =AK112+0.5 -> 18.5 | AL115: =COS(AK115) -> 0.9395248937 | AM115: =SIN(AK115) -> -0.3424806185 | AN115: =$U$1+Rmoo_*COS(AK115*dr_) -> -0.1790925276 | AO115: =Rmoo_*SIN(AK115*dr_) -> 0.3014394236
A116: 110 | B116: 0.3333333333 | C116: 0.4333333333 | F116: 1.460926289 | G116: 1.235375402 | H116: 0.1041666667 | I116: 0.3291666667 | J116: 0.9442718388 | K116: 1.318485976 | L116: 0.09836164988 | M116: 1.220124326 | N116: 1.235375402 | O116: 0.3108228136 | P116: 0.9245525882 | Q116: 0.9969157391 | R116: 68.26718645 | S116: 73.05849011 | AA116: 224 | AB116: -1.76337281 | AC116: -0.6599254519 | AD116: -0.7193398003 | AE116: -0.6946583705 | AF116: -0.5395048503 | AG116: -0.5209937778 | AL116: 0 | AM116: 0 | AN116: =$U$1 -> -1.08 | AO116: 0
A117: 111 | B117: 0.35 | C117: 0.455 | F117: 1.443763209 | G117: 1.229570116 | H117: 0.1203571429 | I117: 0.3346428571 | J117: 0.9423450314 | K117: 1.302996296 | L117: 0.1134179556 | M117: 1.18957834 | N117: 1.229570116 | O117: 0.3153490337 | P117: 0.9142210822 | Q117: 1.037793231 | R117: 66.96601547 | S117: 71.65841417 | AA117: 226 | AB117: -1.739925452 | AC117: -0.6833728103 | AD117: -0.6946583705 | AE117: -0.7193398003 | AF117: -0.5209937778 | AG117: -0.5395048503
A118: 112 | B118: 0.3666666667 | C118: 0.4766666667 | F118: 1.427080423 | G118: 1.2232349 | H118: 0.1360606061 | I118: 0.3406060606 | J118: 0.9402061005 | K118: 1.287940081 | L118: 0.1279250119 | M118: 1.160015069 | N118: 1.2232349 | O118: 0.3202398961 | P118: 0.9029950044 | Q118: 1.07858258 | R118: 65.66765018 | S118: 70.25106097 | AA118: 228 | AB118: -1.715674076 | AC118: -0.7059875842 | AD118: -0.6691306064 | AE118: -0.7431448255 | AF118: -0.5018479548 | AG118: -0.5573586191 | AK118: =AK115+0.5 -> 19 | AL118: =COS(AK118) -> 0.9887046182 | AM118: =SIN(AK118) -> 0.1498772097 | AN118: =$U$1+Rmoo_*COS(AK118*dr_) -> -0.1817573532 | AO118: =Rmoo_*SIN(AK118*dr_) -> 0.3092897467
A119: 113 | B119: 0.3833333333 | C119: 0.4983333333 | F119: 1.41080882 | G119: 1.216433604 | H119: 0.1513405797 | I119: 0.3469927536 | J119: 0.9378678099 | K119: 1.27325496 | L119: 0.141937458 | M119: 1.131317502 | N119: 1.216433604 | O119: 0.3254333339 | P119: 0.8910002705 | Q119: 1.119274882 | R119: 64.37237399 | S119: 68.83692051 | AA119: 230 | AB119: -1.690648229 | AC119: -0.727742221 | AD119: -0.6427876097 | AE119: -0.7660444431 | AF119: -0.4820907073 | AG119: -0.5745333323 | AL119: 0 | AM119: 0 | AN119: =$U$1 -> -1.08 | AO119: 0
A120: 114 | B120: 0.4 | C120: 0.52 | F120: 1.394890559 | G120: 1.20921901 | H120: 0.16625 | I120: 0.35375 | J120: 0.9353400117 | K120: 1.258888729 | L120: 0.1555002769 | M120: 1.103388452 | N120: 1.20921901 | O120: 0.3308765291 | P120: 0.8783424811 | Q120: 1.15986172 | R120: 63.08045478 | S120: 67.41758335 | AA120: 232 | AB120: -1.664878402 | AC120: -0.7486102159 | AD120: -0.6156614753 | AE120: -0.7880107536 | AF120: -0.4617461065 | AG120: -0.5910080652
A121: 115 | B121: 0.4166666667 | C121: 0.5416666667 | F121: 1.379276781 | G121: 1.201635057 | H121: 0.1808333333 | I121: 0.3608333333 | J121: 0.9326303156 | K121: 1.244797294 | L121: 0.1686506487 | M121: 1.076146646 | N121: 1.201635057 | O121: 0.3365241055 | P121: 0.8651109519 | Q121: 1.200335056 | R121: 61.7921485 | S121: 65.99396371 | AA121: 234 | AB121: -1.63839599 | AC121: -0.7685661447 | AD121: -0.5877852523 | AE121: -0.8090169944 | AF121: -0.4408389392 | AG121: -0.6067627458 | AK121: =AK118+0.5 -> 19.5 | AL121: =COS(AK121) -> 0.7958149698 | AM121: =SIN(AK121) -> 0.6055398697 | AN121: =$U$1+Rmoo_*COS(AK121*dr_) -> -0.1844905835 | AO121: =Rmoo_*SIN(AK121*dr_) -> 0.3171165163
A122: 116 | B122: 0.4333333333 | C122: 0.5633333333 | F122: 1.363925853 | G122: 1.193718546 | H122: 0.1951282051 | I122: 0.3682051282 | J122: 0.9297445797 | K122: 1.230943082 | L122: 0.1814193911 | M122: 1.049523691 | N122: 1.193718546 | O122: 0.3423367222 | P122: 0.8513818235 | Q122: 1.240687139 | R122: 60.50770181 | S122: 64.56649768 | AA122: 236 | AB122: -1.611233258 | AC122: -0.7875856939 | AD122: -0.5591929035 | AE122: -0.8290375726 | AF122: -0.4193946776 | AG122: -0.6217781794 | AL122: 0 | AM122: 0 | AN122: =$U$1 -> -1.08 | AO122: 0
A123: 117 | B123: 0.45 | C123: 0.585 | F123: 1.348802008 | G123: 1.185500456 | H123: 0.2091666667 | I123: 0.3758333333 | J123: 0.926687275 | K123: 1.217293812 | L123: 0.1938320883 | M123: 1.023461724 | N123: 1.185500456 | O123: 0.3482799675 | P123: 0.837220488 | Q123: 1.280910442 | R123: 59.2273543 | S123: 63.13661189 | AA123: 238 | AB123: -1.583423301 | AC123: -0.8056456913 | AD123: -0.5299192642 | AE123: -0.8480480962 | AF123: -0.3974394482 | AG123: -0.6360360721
A124: 118 | B124: 0.4666666667 | C124: 0.6066666667 | F124: 1.333874273 | G124: 1.177006982 | H124: 0.2229761905 | I124: 0.3836904762 | J124: 0.923461758 | K124: 1.203821531 | L124: 0.2059099848 | M124: 0.9979115463 | N124: 1.177006982 | O124: 0.3543234817 | P124: 0.8226835006 | Q124: 1.320997607 | R124: 57.95134022 | S124: 61.70513518 | AA124: 240 | AB124: -1.555 | AC124: -0.8227241336 | AD124: -0.5 | AE124: -0.8660254038 | AF124: -0.375 | AG124: -0.6495190528 | AK124: =AK121+0.5 -> 20 | AL124: =COS(AK124) -> 0.4080820618 | AM124: =SIN(AK124) -> 0.9129452507 | AN124: =$U$1+Rmoo_*COS(AK124*dr_) -> -0.1872920103 | AO124: =Rmoo_*SIN(AK124*dr_) -> 0.3249191362
A125: 119 | B125: 0.4833333333 | C125: 0.6283333333 | F125: 1.319115624 | G125: 1.168260354 | H125: 0.2365804598 | I125: 0.3917528736 | J125: 0.9200704789 | K125: 1.190501851 | L125: 0.2176706969 | M125: 0.9728311537 | N125: 1.168260354 | O125: 0.360440254 | P125: 0.8078200997 | Q125: 1.3609414 | R125: 56.67988978 | S125: 60.27248179 | AA125: 242 | AB125: -1.525997985 | AC125: -0.8388002132 | AD125: -0.4694715628 | AE125: -0.8829475929 | AF125: -0.3521036721 | AG125: -0.6622106946 | AL125: 0 | AM125: 0 | AN125: =$U$1 -> -1.08 | AO125: 0
A126: 120 | B126: 0.5 | C126: 0.65 | F126: 1.30450231 | G126: 1.159279481 | H126: 0.25 | I126: 0.4 | J126: 0.916515139 | K126: 1.177313334 | L126: 0.2291287847 | M126: 0.9481845497 | N126: 1.159279481 | O126: 0.3666060556 | P126: 0.7926734251 | Q126: 1.400734679 | R126: 55.41323038 | S126: 58.83994533 | AA126: 244 | AB126: -1.496452589 | AC126: -0.853854344 | AD126: -0.4383711468 | AE126: -0.8987940463 | AF126: -0.3287783601 | AG126: -0.6740955347
A127: 121 | B127: 0.5166666667 | C127: 0.6716666667 | F127: 1.290013303 | G127: 1.150080482 | H127: 0.2632526882 | I127: 0.4084139785 | J127: 0.9127968132 | K127: 1.164237006 | L127: 0.2402962148 | M127: 0.9239407913 | N127: 1.150080482 | O127: 0.372798978 | P127: 0.777281504 | Q127: 1.440370358 | R127: 54.15158752 | S127: 57.40829375 | AA127: 246 | AB127: -1.466399811 | AC127: -0.8678681848 | AD127: -0.4067366431 | AE127: -0.9135454576 | AF127: -0.3050524823 | AG127: -0.6851590932 | AK127: =AK124+0.5 -> 20.5 | AL127: =COS(AK127) -> -0.07956356728 | AM127: =SIN(AK127) -> 0.9968297943 | AN127: =$U$1+Rmoo_*COS(AK127*dr_) -> -0.1901614202 | AO127: =Rmoo_*SIN(AK127*dr_) -> 0.3326970122
A128: 122 | B128: 0.5333333333 | C128: 0.6933333333 | F128: 1.275629859 | G128: 1.140677106 | H128: 0.2763541667 | I128: 0.4169791667 | J128: 0.9089160437 | K128: 1.151255948 | L128: 0.2511827358 | M128: 0.9000732119 | N128: 1.140677106 | O128: 0.3789990545 | P128: 0.761678052 | Q128: 1.47984139 | R128: 52.89518557 | S128: 55.97794077 | AA128: 248 | AB128: -1.435876264 | AC128: -0.8808246618 | AD128: -0.3746065934 | AE128: -0.9271838546 | AF128: -0.2809549451 | AG128: -0.6953878909 | AL128: 0 | AM128: 0 | AN128: =$U$1 -> -1.08 | AO128: 0
A129: 123 | B129: 0.55 | C129: 0.715 | F129: 1.261335148 | G129: 1.131081079 | H129: 0.2893181818 | I129: 0.4256818182 | J129: 0.9048729135 | K129: 1.138354971 | L129: 0.2617961861 | M129: 0.8765587851 | N129: 1.131081079 | O129: 0.3851879471 | P129: 0.7458931315 | Q129: 1.519140737 | R129: 51.64424849 | S129: 54.55006655 | AA129: 250 | AB129: -1.404919136 | AC129: -0.8927079897 | AD129: -0.3420201433 | AE129: -0.9396926208 | AF129: -0.2565151075 | AG129: -0.7047694656
A130: 124 | B130: 0.5666666667 | C130: 0.7366666667 | F130: 1.247113957 | G130: 1.12130238 | H130: 0.3021568627 | I130: 0.4345098039 | J130: 0.9006671029 | K130: 1.125520346 | L130: 0.2721427462 | M130: 0.8533776003 | N130: 1.12130238 | O130: 0.3913486863 | P130: 0.7299536941 | Q130: 1.558261359 | R130: 50.39900041 | S130: 53.12539439 | AA130: 252 | AB130: -1.373566145 | AC130: -0.9035036905 | AD130: -0.3090169944 | AE130: -0.9510565163 | AF130: -0.2317627458 | AG130: -0.7132923872 | AK130: =AK127+0.5 -> 21 | AL130: =COS(AK130) -> -0.5477292602 | AM130: =SIN(AK130) -> 0.8366556385 | AN130: =$U$1+Rmoo_*COS(AK130*dr_) -> -0.1930985948 | AO130: =Rmoo_*SIN(AK130*dr_) -> 0.3404495521
A131: 125 | B131: 0.5833333333 | C131: 0.7583333333 | F131: 1.232952439 | G131: 1.111349484 | H131: 0.3148809524 | I131: 0.443452381 | J131: 0.8962979336 | K131: 1.112739576 | L131: 0.282227147 | M131: 0.8305124289 | N131: 1.111349484 | O131: 0.3974654527 | P131: 0.7138840315 | Q131: 1.597196193 | R131: 49.15966615 | S131: 51.70435377 | AA131: 254 | AB131: -1.341855488 | AC131: -0.9131986111 | AD131: -0.2756373558 | AE131: -0.9612616959 | AF131: -0.2067280169 | AG131: -0.720946272 | AL131: 0 | AM131: 0 | AN131: =$U$1 -> -1.08 | AO131: 0
A132: 126 | B132: 0.6 | C132: 0.78 | F132: 1.218837899 | G132: 1.101229544 | H132: 0.3275 | I132: 0.4525 | J132: 0.8917644027 | K132: 1.100001204 | L132: 0.2920528419 | M132: 0.8079483622 | N132: 1.101229544 | O132: 0.4035233922 | P132: 0.697706152 | Q132: 1.635938139 | R132: 47.9264717 | S132: 50.2880234 | AA132: 256 | AB132: =$U$1+Rmoo_*COS(AA132*dr_) -> -1.309825801 | AC132: =Rmoo_*SIN(AA132*dr_) -> -0.92178094 | AD132: =COS(AA132*dr_) -> -0.2419218956 | AE132: =SIN(AA132*dr_) -> -0.9702957263 | AF132: =AD132*$C$3 -> -0.1814414217 | AG132: -0.7277217947
A133: 127 | B133: 0.6166666667 | C133: 0.8016666667 | F133: 1.204758624 | G133: 1.090948555 | H133: 0.3400225225 | I133: 0.4616441441 | J133: 0.8870652085 | K133: 1.087294658 | L133: 0.3016221498 | M133: 0.7856725085 | N133: 1.090948555 | O133: 0.409508459 | P133: 0.6814400965 | Q133: 1.674480049 | R133: 46.69964463 | S133: 48.87709328 | AA133: 258 | AB133: -1.277516106 | AC133: -0.9292402207 | AD133: -0.2079116908 | AE133: -0.9781476007 | AF133: -0.1559337681 | AG133: -0.7336107006 | AK133: =AK130+0.5 -> 21.5 | AL133: =COS(AK133) -> -0.8817917275 | AM133: =SIN(AK133) -> 0.4716390031 | AN133: =$U$1+Rmoo_*COS(AK133*dr_) -> -0.1961033104 | AO133: =Rmoo_*SIN(AK133*dr_) -> 0.3481761654
A134: 128 | B134: =(A134-180*($A$3/180)/2)/60 -> 0.6333333333 | C134: =(1+Rmoo_)*B134*2*60/$A$3 -> 0.8233333333 | D134: =IF(Rmoo_>=1,IF((ABS(C134)<=(Rmoo_-1)),1,""),"") ->  | E134: =IF(Rmoo_<1,IF(ABS(C134)+Rmoo_<1,1,""),"") ->  | F134: =IF(Rmoo_>=1,IFERROR(ACOS((Rmoo_^2+C134^2-1^2)/(2*Rmoo_*ABS(C134))),0), IFERROR(ACOS((Rmoo_^2+C134^2-1^2)/(2*Rmoo_*ABS(C134))),0)) -> 1.190703725 | G134: =IFERROR(ACOS((C134^2+1^2-Rmoo_^2)/(2*ABS(C134)*1)),0) -> 1.080511487 | H134: =Rmoo_*COS(F134) -> 0.3524561404 | I134: =COS(G134) -> 0.470877193 | J134: 0.8821987696 | K134: =Rmoo_^2*pi_*(2*F134)/(2*pi_) -> 1.074610112 | L134: 0.3109363734 | M134: 0.7636737387 | N134: =1^2*pi_*(2*G134)/(2*pi_) -> 1.080511487 | O134: 0.4154072803 | P134: 0.6651042063 | Q134: =IF(OR(D134=1,E134=1),IF(D134=1,0,1^2*pi_-Rmoo_^2*pi_),IF(Rmoo_>=1,1^2*pi_-M134-P134,1^2*pi_-M134-P134)) -> 1.712814709 | R134: =100-Q134/pi_*100 -> 45.47941451 | S134: =Eclipse_Dimming_2(C134,Rmoo_,2000,$D$3,$E$3) -> 47.47202328 | AA134: =AA133+2 -> 260 | AB134: -1.244965769 | AC134: -0.9355673654 | AD134: -0.1736481777 | AE134: -0.984807753 | AF134: -0.1302361333 | AG134: -0.7386058148 | AL134: 0 | AM134: 0 | AN134: =$U$1 -> -1.08 | AO134: 0
A135: =A134+$A$3/180 -> 129 | B135: 0.65 | C135: 0.845 | F135: 1.176663012 | G135: 1.069922389 | H135: 0.3648076923 | I135: 0.4801923077 | J135: =ABS(H135*TAN(F135)) -> 0.8771632389 | K135: 1.061938368 | L135: =H135*J135 -> 0.319995897 | M135: =K135-L135 -> 0.7419424711 | N135: 1.069922389 | O135: =COS(G135)*J135 -> 0.4212070399 | P135: =N135-O135 -> 0.6487153494 | Q135: 1.750934833 | R135: 44.26601326 | S135: 46.07379655 | AA135: 262 | AB135: -1.212214446 | AC135: -0.9407546653 | AD135: -0.139173101 | AE135: -0.9902680687 | AF135: -0.1043798257 | AG135: -0.7427010516
A136: 130 | B136: 0.6666666667 | C136: 0.8666666667 | F136: 1.162626878 | G136: 1.059184491 | H136: 0.3770833333 | I136: 0.4895833333 | J136: 0.8719565125 | K136: 1.049270757 | L136: 0.3288002683 | M136: 0.720470489 | N136: 1.059184491 | O136: 0.4268953759 | P136: 0.6322891147 | Q136: 1.78883305 | R136: 43.05967555 | S136: 44.6830774 | AA136: 264 | AB136: -1.17930204 | AC136: -0.9447958006 | AD136: -0.1045284633 | AE136: -0.9945218954 | AF136: -0.07839634745 | AG136: -0.7458914215 | AK136: =AK133+0.5 -> 22 | AL136: =COS(AK136) -> -0.9999608264 | AM136: =SIN(AK136) -> -0.00885130929 | AN136: =$U$1+Rmoo_*COS(AK136*dr_) -> -0.1991753382 | AO136: =Rmoo_*SIN(AK136*dr_) -> 0.3558762637
A137: 131 | B137: 0.6833333333 | C137: 0.8883333333 | F137: 1.148586206 | G137: 1.048300268 | H137: 0.3892886179 | I137: 0.4990447154 | J137: 0.8665762355 | K137: 1.036599051 | L137: 0.337348265 | M137: 0.6992507858 | N137: 1.048300268 | O137: 0.4324602909 | P137: 0.6158399771 | Q137: 1.826501891 | R137: 41.86063911 | S137: 43.30037361 | AA137: 266 | AB137: -1.14626865 | AC137: -0.9476858477 | AD137: -0.06975647374 | AE137: -0.9975640503 | AF137: -0.05231735531 | AG137: -0.7481730377 | AL137: 0 | AM137: 0 | AN137: =$U$1 -> -1.08 | AO137: 0
A138: 132 | B138: 0.7 | C138: 0.91 | F138: 1.13453228 | G138: 1.037271513 | H138: 0.4014285714 | I138: 0.5085714286 | J138: 0.8610198035 | K138: 1.023915382 | L138: 0.3456379497 | M138: 0.6782774326 | N138: 1.037271513 | O138: 0.4378900715 | P138: 0.5993814417 | Q138: 1.863933779 | R138: 40.66914508 | S138: 41.92657083 | AA138: 268 | AB138: -1.113154522 | AC138: -0.9494212857 | AD138: -0.0348994967 | AE138: -0.999390827 | AF138: -0.02617462253 | AG138: -0.7495431203
A139: 133 | B139: 0.7166666667 | C139: 0.9316666667 | F139: 1.120456708 | G139: 1.026099383 | H139: 0.4135077519 | I139: 0.5181589147 | J139: 0.8552843615 | K139: 1.011212179 | L139: 0.3536667136 | M139: 0.6575454653 | N139: 1.026099383 | O139: 0.4431732166 | P139: 0.5829261668 | Q139: 1.901121021 | R139: 39.4854384 | S139: 40.56230862 | AA139: 270 | AB139: -1.08 | AC139: -0.95 | AD139: -1.837722682e-16 | AE139: -1 | AF139: -1.378292012e-16 | AG139: -0.75 | AK139: =AK136+0.5 -> 22.5 | AL139: =COS(AK139) -> -0.8733046401 | AM139: =SIN(AK139) -> -0.4871745125 | AN139: =$U$1+Rmoo_*COS(AK139*dr_) -> -0.2023144441 | AO139: =Rmoo_*SIN(AK139*dr_) -> 0.3635492607
A140: 134 | B140: 0.7333333333 | C140: 0.9533333333 | F140: 1.106351357 | G140: 1.014784444 | H140: 0.425530303 | I140: 0.5278030303 | J140: 0.8493668002 | K140: 0.9984820994 | L140: 0.3614313119 | M140: 0.6370507875 | N140: 1.014784444 | O140: 0.448298371 | P140: 0.5664860726 | Q140: 1.938055794 | R140: 38.3097681 | S140: 39.20817616 | AA140: 272 | AB140: -1.046845478 | AC140: -0.9494212857 | AD140: 0.0348994967 | AE140: -0.999390827 | AF140: 0.02617462253 | AG140: -0.7495431203 | AL140: 0 | AM140: 0 | AN140: =$U$1 -> -1.08 | AO140: 0
A141: 135 | B141: 0.75 | C141: 0.975 | F141: 1.092208285 | G141: 1.0033267 | H141: 0.4375 | I141: 0.5375 | J141: 0.8432637488 | K141: 0.9857179773 | L141: 0.3689278901 | M141: 0.6167900872 | N141: 1.0033267 | O141: 0.453254265 | P141: 0.5500724348 | Q141: 1.974730132 | R141: 37.14238766 | S141: 37.86495466 | AA141: 274 | AB141: -1.01373135 | AC141: -0.9476858477 | AD141: 0.06975647374 | AE141: -0.9975640503 | AF141: 0.05231735531 | AG141: -0.7481730377
A142: 136 | B142: 0.7666666667 | C142: 0.9966666667 | F142: 1.078019689 | G142: 0.9917256253 | H142: 0.4494202899 | I142: 0.5472463768 | J142: 0.8369715665 | K142: 0.9729127696 | L142: 0.376152004 | M142: 0.5967607656 | N142: 0.9917256253 | O142: 0.4580296572 | P142: 0.533695968 | Q142: 2.01113592 | R142: 35.98355542 | S142: 36.53325255 | AA142: 276 | AB142: -0.9806979599 | AC142: -0.9447958006 | AD142: 0.1045284633 | AE142: -0.9945218954 | AF142: 0.07839634745 | AG142: -0.7458914215 | AK142: =AK139+0.5 -> 23 | AL142: =COS(AK142) -> -0.5328330203 | AM142: =SIN(AK142) -> -0.8462204042 | AN142: =$U$1+Rmoo_*COS(AK142*dr_) -> -0.2055203892 | AO142: =Rmoo_*SIN(AK142*dr_) -> 0.3711945721
A143: 137 | B143: 0.7833333333 | C143: 1.018333333 | F143: 1.063777848 | G143: 0.97998018 | H143: 0.4612943262 | I143: 0.5570390071 | J143: 0.8304863302 | K143: 0.9600595075 | L143: 0.3830986321 | M143: 0.5769608754 | N143: 0.97998018 | O143: 0.4626132808 | P143: 0.5173668993 | Q143: 2.047264879 | R143: 34.83353494 | S143: 35.21368974 | AA143: 278 | AB143: -0.9477855541 | AC143: -0.9407546653 | AD143: 0.139173101 | AE143: -0.9902680687 | AF143: 0.1043798257 | AG143: -0.7427010516 | AL143: 0 | AM143: 0 | AN143: =$U$1 -> -1.08 | AO143: 0
A144: 138 | B144: 0.8 | C144: 1.04 | F144: 1.04947507 | G144: 0.9680888235 | H144: 0.473125 | I144: 0.566875 | J144: 0.8238038203 | K144: 0.9471512507 | L144: 0.3897621825 | M144: 0.5573890682 | N144: 0.9680888235 | O144: 0.4669937906 | P144: 0.5010950328 | Q144: 2.083108553 | R144: 33.69259537 | S144: 33.90709415 | AA144: 280 | AB144: -0.9150342312 | AC144: -0.9355673654 | AD144: 0.1736481777 | AE144: -0.984807753 | AF144: 0.1302361333 | AG144: -0.7386058148
A145: 139 | B145: 0.8166666667 | C145: 1.061666667 | F145: 1.035103649 | G145: 0.956049522 | H145: 0.484914966 | I145: 0.5767517007 | J145: 0.8169195038 | K145: 0.934181043 | L145: 0.3961364934 | M145: 0.5380445495 | N145: 0.956049522 | O145: 0.4711597132 | P145: 0.4848898088 | Q145: 2.118658295 | R145: 32.56101192 | S145: 32.61397012 | AA145: 282 | AB145: -0.8824838937 | AC145: -0.9292402207 | AD145: 0.2079116908 | AE145: -0.9781476007 | AF145: 0.1559337681 | AG145: -0.7336107006 | AK145: =AK142+0.5 -> 23.5 | AL145: =COS(AK145) -> -0.06190529399 | AM145: =SIN(AK145) -> -0.998082028 | AN145: =$U$1+Rmoo_*COS(AK145*dr_) -> -0.2087929293 | AO145: =Rmoo_*SIN(AK145*dr_) -> 0.3788116155
A146: 140 | B146: 0.8333333333 | C146: 1.083333333 | F146: 1.02065581 | G146: 0.9438597506 | H146: 0.4966666667 | I146: 0.5866666667 | J146: 0.8098285141 | K146: 0.9211418688 | L146: 0.4022148287 | M146: 0.5189270401 | N146: 0.9438597506 | O146: 0.4750993949 | P146: 0.4687603557 | Q146: 2.153905258 | R146: 31.43906625 | S146: 31.33494682 | AA146: 284 | AB146: -0.8501741992 | AC146: -0.92178094 | AD146: 0.2419218956 | AE146: -0.9702957263 | AF146: 0.1814414217 | AG146: -0.7277217947 | AL146: 0 | AM146: 0 | AN146: =$U$1 -> -1.08 | AO146: 0
A147: 141 | B147: 0.85 | C147: 1.105 | F147: 1.006123668 | G147: 0.9315164895 | H147: 0.5083823529 | I147: 0.5966176471 | J147: 0.8025256278 | K147: 0.9080266102 | L147: 0.4079898669 | M147: 0.5000367432 | N147: 0.9315164895 | O147: 0.4788009517 | P147: 0.4527155378 | Q147: 2.188840373 | R147: 30.32704701 | S147: 30.07090514 | AA147: 286 | AB147: -0.818144512 | AC147: -0.9131986111 | AD147: 0.2756373558 | AE147: -0.9612616959 | AF147: 0.2067280169 | AG147: -0.720946272
A148: 142 | B148: 0.8666666667 | C148: 1.126666667 | F148: 0.9914991723 | G148: 0.9190162152 | H148: 0.5200641026 | I148: 0.6066025641 | J148: 0.7950052385 | K148: 0.894828003 | L148: 0.4134536859 | M148: 0.4813743171 | N148: 0.9190162152 | O148: 0.4822522161 | P148: 0.4367639991 | Q148: 2.223454337 | R148: 29.22525029 | S148: 28.82229029 | AA148: 288 | AB148: -0.7864338553 | AC148: -0.9035036905 | AD148: 0.3090169944 | AE148: -0.9510565163 | AF148: 0.2317627458 | AG148: -0.7132923872 | AK148: =AK145+0.5 -> 24 | AL148: =COS(AK148) -> 0.4241790073 | AM148: =SIN(AK148) -> -0.905578362 | AN148: =$U$1+Rmoo_*COS(AK148*dr_) -> -0.2121318152 | AO148: =Rmoo_*SIN(AK148*dr_) -> 0.3863998109
A149: 143 | B149: 0.8833333333 | C149: 1.148333333 | F149: 0.9767740638 | G149: 0.906354886 | H149: 0.5317138365 | I149: 0.6166194969 | J149: 0.7872613264 | K149: 0.8815385926 | L149: 0.4185977402 | M149: 0.4629408524 | N149: 0.906354886 | O149: 0.485440683 | P149: 0.420914203 | Q149: 2.257737598 | R149: 28.13398021 | S149: 27.58973258 | AA149: 290 | AB149: -0.7550808638 | AC149: -0.8927079897 | AD149: 0.3420201433 | AE149: -0.9396926208 | AF149: 0.2565151075 | AG149: -0.7047694656 | AL149: 0 | AM149: 0 | AN149: =$U$1 -> -1.08 | AO149: 0
A150: 144 | B150: 0.9 | C150: 1.17 | F150: 0.9619398191 | G150: 0.8935279222 | H150: 0.5433333333 | I150: 0.6266666667 | J150: 0.7792874238 | K150: 0.8681506867 | L150: 0.4234128336 | M150: 0.4447378532 | N150: 0.8935279222 | O150: 0.4883534522 | P150: 0.40517447 | Q150: 2.29168033 | R150: 27.05354948 | S150: 26.37415195 | AA150: 292 | AB150: -0.7241237363 | AC150: -0.8808246618 | AD150: 0.3746065934 | AE150: -0.9271838546 | AF150: 0.2809549451 | AG150: -0.6953878909
A151: 145 | B151: 0.9166666667 | C151: 1.191666667 | F151: 0.9469875974 | G151: 0.8805301801 | H151: 0.5549242424 | I151: 0.6367424242 | J151: 0.7710765754 | K151: 0.8546563066 | L151: 0.4278890845 | M151: 0.4267672222 | N151: 0.8805301801 | O151: 0.4909771679 | P151: 0.3895530122 | Q151: 2.325272419 | R151: 25.98428009 | S151: 25.175957 | AA151: 294 | AB151: -0.6936001891 | AC151: -0.8678681848 | AD151: 0.4067366431 | AE151: -0.9135454576 | AF151: 0.3050524823 | AG151: -0.6851590932 | AK151: =AK148+0.5 -> 24.5 | AL151: =COS(AK151) -> 0.8064094939 | AM151: =SIN(AK151) -> -0.5913575299 | AN151: =$U$1+Rmoo_*COS(AK151*dr_) -> -0.2155367927 | AO151: =Rmoo_*SIN(AK151*dr_) -> 0.3939585805
A152: 146 | B152: 0.9333333333 | C152: 1.213333333 | F152: 0.9319081819 | G152: 0.8673559195 | H152: 0.5664880952 | I152: 0.6468452381 | J152: 0.7626212939 | K152: 0.8410471342 | L152: 0.4320158842 | M152: 0.40903125 | N152: 0.8673559195 | O152: 0.4932979524 | P152: 0.374057967 | Q152: 2.358503437 | R152: 24.92650395 | S152: 23.99578207 | AA152: 296 | AB152: -0.6635474106 | AC152: -0.853854344 | AD152: 0.4383711468 | AE152: -0.8987940463 | AF152: 0.3287783601 | AG152: -0.6740955347 | AL152: 0 | AM152: 0 | AN152: =$U$1 -> -1.08 | AO152: 0
A153: 147 | B153: 0.95 | C153: 1.235 | F153: 0.9166919166 | G153: 0.8539987641 | H153: 0.5780263158 | I153: 0.6569736842 | J153: 0.7539135085 | K153: 0.8273144548 | L153: 0.4357818477 | M153: 0.391532607 | N153: 0.8539987641 | O153: 0.4953013352 | P153: 0.3586974288 | Q153: 2.391362618 | R153: 23.88056373 | S153: 22.83458016 | AA153: 298 | AB153: -0.6340020154 | AC153: -0.8388002132 | AD153: 0.4694715628 | AE153: -0.8829475929 | AF153: 0.3521036721 | AG153: -0.6622106946
A154: 148 | B154: 0.9666666667 | C154: 1.256666667 | F154: 0.9013286367 | G154: 0.8404516539 | H154: 0.5895402299 | I154: 0.6671264368 | J154: 0.7449445062 | K154: 0.8134490946 | L154: 0.4391747554 | M154: 0.3742743392 | N154: 0.8404516539 | O154: 0.496972174 | P154: 0.3434794799 | Q154: 2.423838835 | R154: 22.84681365 | S154: 21.69273825 | AA154: 300 | AB154: -0.605 | AC154: -0.8227241336 | AD154: 0.5 | AE154: -0.8660254038 | AF154: 0.375 | AG154: -0.6495190528 | AK154: =AK151+0.5 -> 25 | AL154: =COS(AK154) -> 0.9912028119 | AM154: =SIN(AK154) -> -0.1323517501 | AN154: =$U$1+Rmoo_*COS(AK154*dr_) -> -0.2190076023 | AO154: =Rmoo_*SIN(AK154*dr_) -> 0.4014873487
A155: 149 | B155: 0.9833333333 | C155: 1.278333333 | F155: 0.8858075915 | G155: 0.8267067889 | H155: 0.6010310734 | I155: 0.6773022599 | J155: 0.7357048652 | K155: 0.7994413514 | L155: 0.4421814849 | M155: 0.3572598665 | N155: 0.8267067889 | O155: 0.4982945678 | P155: 0.328412221 | Q155: 2.455920566 | R155: 21.82562041 | S155: 20.57089923 | AA155: 302 | AB155: -0.576576699 | AC155: -0.8056456913 | AD155: 0.5299192642 | AE155: -0.8480480962 | AF155: 0.3974394482 | AG155: -0.6360360721 | AL155: 0 | AM155: 0 | AN155: =$U$1 -> -1.08 | AO155: 0
A156: 150 | B156: 1 | C156: 1.3 | F156: 0.8701173588 | G156: 0.8127555614 | H156: 0.6125 | I156: 0.6875 | J156: 0.7261843774 | K156: 0.7852809163 | L156: 0.4447879312 | M156: 0.3404929851 | N156: 0.8127555614 | O156: 0.4992517595 | P156: 0.3135038019 | Q156: 2.487595867 | R156: 20.81736428 | S156: 19.47004669 | AA156: 304 | AB156: -0.5487667417 | AC156: -0.7875856939 | AD156: 0.5591929035 | AE156: -0.8290375726 | AF156: 0.4193946776 | AG156: -0.6217781794
A157: 151 | B157: 1.016666667 | C157: 1.321666667 | F157: 0.8542457469 | G157: 0.7985884775 | H157: 0.6239480874 | I157: 0.6977185792 | J157: 0.7163719594 | K157: 0.7709567866 | L157: 0.4469789139 | M157: 0.3239778727 | N157: 0.7985884775 | O157: 0.4998260257 | P157: 0.2987624518 | Q157: 2.518852329 | R157: 19.82244018 | S157: 18.39055862 | AA157: 306 | AB157: -0.5216040103 | AC157: -0.7685661447 | AD157: 0.5877852523 | AE157: -0.8090169944 | AF157: 0.4408389392 | AG157: -0.6067627458 | AK157: =AK154+0.5 -> 25.5 | AL157: =COS(AK157) -> 0.9333151121 | AM157: =SIN(AK157) -> 0.359058354 | AN157: =$U$1+Rmoo_*COS(AK157*dr_) -> -0.2225439799 | AO157: =Rmoo_*SIN(AK157*dr_) -> 0.408985542
A158: 152 | B158: 1.033333333 | C158: 1.343333333 | F158: 0.838179685 | G158: 0.7841950636 | H158: 0.6353763441 | I158: 0.7079569892 | J158: 0.7062555496 | K158: 0.7564571657 | L158: 0.4487380691 | M158: 0.3077190966 | N158: 0.7841950636 | O158: 0.4999985526 | P158: 0.2841965111 | Q158: 2.549677046 | R158: 18.84125897 | S158: 17.33309201 | AA158: 308 | AB158: -0.4951215984 | AC158: -0.7486102159 | AD158: 0.6156614753 | AE158: -0.7880107536 | AF158: 0.4617461065 | AG158: -0.5910080652 | AL158: 0 | AM158: 0 | AN158: =$U$1 -> -1.08 | AO158: 0
A159: 153 | B159: 1.05 | C159: 1.365 | F159: 0.8219050952 | G159: 0.7695637566 | H159: 0.6467857143 | I159: 0.7182142857 | J159: 0.6958219886 | K159: 0.7417693485 | L159: 0.4500477219 | M159: 0.2917216266 | N159: 0.7695637566 | O159: 0.4997492925 | P159: 0.2698144641 | Q159: 2.580056563 | R159: 17.87424891 | S159: 16.29866114 | AA159: 310 | AB159: -0.4693517708 | AC159: -0.727742221 | AD159: 0.6427876097 | AE159: -0.7660444431 | AF159: 0.4820907073 | AG159: -0.5745333323
A160: 154 | B160: 1.066666667 | C160: 1.386666667 | F160: 0.8054067464 | G160: 0.7546817735 | H160: 0.6581770833 | I160: 0.7284895833 | J160: 0.6850568786 | K160: 0.7268795886 | L160: 0.4508887383 | M160: 0.2759908503 | N160: 0.7546817735 | O160: 0.4990568001 | P160: 0.2556249734 | Q160: 2.60997683 | R160: 16.92185723 | S160: 15.28764715 | AA160: 312 | AB160: -0.444325924 | AC160: -0.7059875842 | AD160: 0.6691306064 | AE160: -0.7431448255 | AF160: 0.5018479548 | AG160: -0.5573586191 | AK160: =AK157+0.5 -> 26 | AL160: =COS(AK160) -> 0.6469193223 | AM160: =SIN(AK160) -> 0.7625584505 | AN160: =$U$1+Rmoo_*COS(AK160*dr_) -> -0.226145656 | AO160: =Rmoo_*SIN(AK160*dr_) -> 0.4164525894
A161: 155 | B161: 1.083333333 | C161: 1.408333333 | F161: 0.7886680822 | G161: 0.7395349577 | H161: 0.6695512821 | I161: 0.7387820513 | J161: 0.6739444196 | K161: 0.7117729442 | L161: 0.4512403502 | M161: 0.260532594 | N161: 0.7395349577 | O161: 0.4978980408 | P161: 0.2416369169 | Q161: 2.639423143 | R161: 15.98455199 | S161: 14.30072822 | AA161: 314 | AB161: -0.4200745481 | AC161: -0.6833728103 | AD161: 0.6946583705 | AE161: -0.7193398003 | AF161: 0.5209937778 | AG161: -0.5395048503 | AL161: 0 | AM161: 0 | AN161: =$U$1 -> -1.08 | AO161: 0
A162: 156 | B162: 1.1 | C162: 1.43 | F162: 0.7716710206 | G162: 0.7241075952 | H162: 0.6809090909 | I162: 0.7490909091 | J162: 0.6624672142 | K162: 0.6964330961 | L162: 0.4510799486 | M162: 0.2453531475 | N162: 0.7241075952 | O162: 0.4962481677 | P162: 0.2278594275 | Q162: 2.668380079 | R162: 15.06282409 | S162: 13.33895171 | AA162: 316 | AB162: -0.3966271897 | AC162: -0.6599254519 | AD162: 0.7193398003 | AE162: -0.6946583705 | AF162: 0.5395048503 | AG162: -0.5209937778
A163: 157 | B163: 1.116666667 | C163: 1.451666667 | F163: 0.7543957151 | G163: 0.7083821952 | H163: 0.6922512438 | I163: 0.7594154229 | J163: 0.6506060371 | K163: 0.6808421329 | L163: 0.4503828384 | M163: 0.2304592945 | N163: 0.7083821952 | O163: 0.4940802588 | P163: 0.2143019365 | Q163: 2.696831423 | R163: 14.15718968 | S163: 12.4027152 | AA163: 318 | AB163: -0.3740124158 | AC163: -0.635674076 | AD163: 0.7431448255 | AE163: -0.6691306064 | AF163: 0.5573586191 | AG163: -0.5018479548 | AK163: =AK160+0.5 -> 26.5 | AL163: =COS(AK163) -> 0.2021351204 | AM163: =SIN(AK163) -> 0.9793576431 | AN163: =$U$1+Rmoo_*COS(AK163*dr_) -> -0.2298123565 | AO163: =Rmoo_*SIN(AK163*dr_) -> 0.4238879225
A164: 158 | B164: 1.133333333 | C164: 1.473333333 | F164: 0.7368202704 | G164: 0.6923392259 | H164: 0.7035784314 | I164: 0.769754902 | J164: 0.6383395577 | K164: 0.6649802941 | L164: 0.4491219447 | M164: 0.2158583494 | N164: 0.6923392259 | O164: 0.4913650036 | P164: 0.2009742223 | Q164: 2.724760082 | R164: 13.26819284 | S164: 11.49272732 | AA164: 320 | AB164: =$U$1+Rmoo_*COS(AA164*dr_) -> -0.352257779 | AC164: =Rmoo_*SIN(AA164*dr_) -> -0.6106482292 | AD164: 0.7660444431 | AE164: -0.6427876097 | AF164: =AD164*$C$3 -> 0.5745333323 | AG164: -0.4820907073 | AL164: 0 | AM164: 0 | AN164: =$U$1 -> -1.08 | AO164: 0
A165: 159 | B165: 1.15 | C165: 1.495 | F165: 0.7189204001 | G165: 0.6759567943 | H165: 0.7148913043 | I165: 0.7801086957 | J165: 0.6256440066 | K165: 0.6488256611 | L165: 0.4472674599 | M165: 0.2015582012 | N165: 0.6759567943 | O165: 0.4880703299 | P165: 0.1878864644 | Q165: 2.752147988 | R165: 12.39640872 | S165: 10.61007406 | AA165: 322 | AB165: -0.3313897841 | AC165: -0.5848784016 | AD165: 0.7880107536 | AE165: -0.6156614753 | AF165: 0.5910080652 | AG165: -0.4617461065
A166: 160 | B166: 1.166666667 | C166: =(1+Rmoo_)*B166*2*60/$A$3 -> 1.516666667 | D166: =IF(Rmoo_>=1,IF((ABS(C166)<=(Rmoo_-1)),1,""),"") ->  | E166: =IF(Rmoo_<1,IF(ABS(C166)+Rmoo_<1,1,""),"") ->  | F166: =IF(Rmoo_>=1,IFERROR(ACOS((Rmoo_^2+C166^2-1^2)/(2*Rmoo_*ABS(C166))),0), IFERROR(ACOS((Rmoo_^2+C166^2-1^2)/(2*Rmoo_*ABS(C166))),0)) -> 0.7006690108 | G166: =IFERROR(ACOS((C166^2+1^2-Rmoo_^2)/(2*ABS(C166)*1)),0) -> 0.6592102559 | H166: =Rmoo_*COS(F166) -> 0.7261904762 | I166: 0.7904761905 | J166: 0.6124927692 | K166: =Rmoo_^2*pi_*(2*F166)/(2*pi_) -> 0.6323537822 | L166: 0.4447864157 | M166: 0.1875673665 | N166: 0.6592102559 | O166: 0.4841609509 | P166: 0.1750493051 | Q166: =IF(OR(D166=1,E166=1),IF(D166=1,0,1^2*pi_-Rmoo_^2*pi_),IF(Rmoo_>=1,1^2*pi_-M166-P166,1^2*pi_-M166-P166)) -> 2.778975982 | R166: 11.54244715 | S166: =Eclipse_Dimming_2(C166,Rmoo_,2000,$D$3,$E$3) -> 9.755185298 | AA166: 324 | AB166: -0.3114338553 | AC166: -0.5583959897 | AD166: 0.8090169944 | AE166: -0.5877852523 | AF166: 0.6067627458 | AG166: -0.4408389392 | AK166: =AK163+0.5 -> 27 | AL166: =COS(AK166) -> -0.2921388087 | AM166: =SIN(AK166) -> 0.9563759284 | AN166: =$U$1+Rmoo_*COS(AK166*dr_) -> -0.233543802 | AO166: =Rmoo_*SIN(AK166*dr_) -> 0.4312909748
A167: 161 | B167: 1.183333333 | C167: 1.538333333 | F167: 0.6820356916 | G167: 0.6420717337 | H167: 0.7374765258 | I167: 0.8008568075 | J167: 0.5988558874 | K167: 0.6155372117 | L167: 0.4416421593 | M167: 0.1738950524 | N167: 0.6420717337 | O167: 0.4795978141 | P167: 0.1624739196 | Q167: 2.805223682 | R167: 10.70695692 | S167: 8.92881329 | AA167: 326 | AB167: -0.2924143061 | AC167: -0.5312332583 | AD167: 0.8290375726 | AE167: -0.5591929035 | AF167: 0.6217781794 | AG167: -0.4193946776 | AL167: 0 | AM167: 0 | AN167: =$U$1 -> -1.08 | AO167: 0
A168: 162 | B168: 1.2 | C168: 1.56 | F168: 0.6629860824 | G168: 0.6245095208 | H168: 0.74875 | I168: 0.81125 | J168: 0.584699442 | K168: 0.5983449393 | L168: 0.4377937072 | M168: 0.1605512321 | N168: 0.6245095208 | O168: 0.4743374223 | P168: 0.1501720984 | Q168: 2.830869323 | R168: 9.890630799 | S168: 8.132092743 | AA168: 328 | AB168: -0.2743543087 | AC168: -0.503423301 | AD168: 0.8480480962 | AE168: -0.5299192642 | AF168: 0.6360360721 | AG168: -0.3974394482
A169: 163 | B169: 1.216666667 | C169: 1.581666667 | F169: 0.6434810813 | G169: 0.6064873303 | H169: 0.7600114155 | I169: 0.8216552511 | J169: 0.569984779 | K169: 0.5807416759 | L169: 0.4331949387 | M169: 0.1475467372 | N169: 0.6064873303 | O169: 0.4683309867 | P169: 0.1381563435 | Q169: 2.855889573 | R169: 9.09421151 | S169: 7.365507077 | AA169: 330 | AB169: -0.2572758664 | AC169: -0.475 | AD169: 0.8660254038 | AE169: -0.5 | AF169: 0.6495190528 | AG169: -0.375 | AK169: =AK166+0.5 -> 27.5 | AL169: =COS(AK169) -> -0.7148869688 | AM169: =SIN(AK169) -> 0.6992400317 | AN169: =$U$1+Rmoo_*COS(AK169*dr_) -> -0.2373397085 | AO169: =Rmoo_*SIN(AK169*dr_) -> 0.4386611826
A170: 164 | B170: 1.233333333 | C170: 1.603333333 | F170: 0.6234758397 | G170: 0.587963342 | H170: 0.7712612613 | I170: 0.8320720721 | J170: 0.5546675282 | K170: 0.5626869453 | L170: 0.4277935774 | M170: 0.1348933679 | N170: 0.587963342 | O170: 0.4615233595 | P170: 0.1264399825 | Q170: 2.880259303 | R170: 8.318498903 | S170: 6.629872048 | AA170: 332 | AB170: -0.2411997868 | AC170: -0.4459979846 | AD170: 0.8829475929 | AE170: -0.4694715628 | AF170: 0.6622106946 | AG170: -0.3521036721 | AL170: 0 | AM170: 0 | AN170: =$U$1 -> -1.08 | AO170: 0
A171: 165 | B171: 1.25 | C171: 1.625 | F171: 0.6029184695 | G171: 0.5688889752 | H171: 0.7825 | I171: 0.8425 | J171: 0.538696343 | K171: 0.5441339187 | L171: 0.4215298884 | M171: 0.1226040303 | N171: 0.5688889752 | O171: 0.453851669 | P171: 0.1150373062 | Q171: 2.903951317 | R171: 7.564358678 | S171: 5.92638923 | AA171: 334 | AB171: -0.226145656 | AC171: -0.4164525894 | AD171: 0.8987940463 | AE171: -0.4383711468 | AF171: 0.6740955347 | AG171: -0.3287783601
A172: 166 | B172: 1.266666667 | C172: 1.646666667 | F172: 0.5817483547 | G172: 0.5492072844 | H172: 0.7937280702 | I172: 0.8529385965 | J172: 0.5220112553 | K172: 0.5250278901 | L172: 0.4143349862 | M172: 0.1106929039 | N172: 0.5492072844 | O172: 0.4452435474 | P172: 0.103963737 | Q172: 2.926936013 | R172: 6.83273309 | S172: 5.255627159 | AA172: 336 | AB172: -0.2121318152 | AC172: -0.3863998109 | AD172: 0.9135454576 | AE172: -0.4067366431 | AF172: 0.6851590932 | AG172: -0.3050524823 | AK172: =AK169+0.5 -> 28 | AL172: =COS(AK172) -> -0.9626058663 | AM172: =SIN(AK172) -> 0.2709057883 | AN172: =$U$1+Rmoo_*COS(AK172*dr_) -> -0.2411997868 | AO172: =Rmoo_*SIN(AK172*dr_) -> 0.4459979846
A173: 167 | B173: 1.283333333 | C173: 1.668333333 | F173: 0.5598939087 | G173: 0.5288508271 | H173: 0.8049458874 | I173: 0.8633874459 | J173: 0.5045414931 | K173: 0.5053042526 | L173: 0.4061285999 | M173: 0.09917565268 | N173: 0.5288508271 | O173: 0.4356147911 | P173: 0.09323603602 | Q173: 2.949180965 | R173: 6.124654273 | S173: 4.618497912 | AA173: 338 | AB173: -0.1991753382 | AC173: -0.3558762637 | AD173: 0.9271838546 | AE173: -0.3746065934 | AF173: 0.6953878909 | AG173: -0.2809549451 | AL173: 0 | AM173: 0 | AN173: =$U$1 -> -1.08 | AO173: 0
A174: 168 | B174: 1.3 | C174: 1.69 | F174: 0.5372695368 | G174: 0.5077387755 | H174: 0.8161538462 | I174: 0.8738461538 | J174: 0.4862025292 | K174: 0.4848857569 | L174: 0.3968160642 | M174: 0.08806969273 | N174: 0.5077387755 | O174: 0.4248662101 | P174: 0.08287256532 | Q174: 2.970650396 | R174: 5.44126107 | S174: 4.016303946 | AA174: 340 | AB174: -0.1872920103 | AC174: -0.3249191362 | AD174: 0.9396926208 | AE174: -0.3420201433 | AF174: 0.7047694656 | AG174: -0.2565151075
A175: 169 | B175: 1.316666667 | C175: 1.711666667 | F175: 0.5137714284 | G175: 0.4857729139 | H175: 0.8273523207 | I175: 0.884314346 | J175: 0.4668919977 | K175: 0.4636787142 | L175: 0.3862841778 | M175: 0.07739453639 | N175: 0.4857729139 | O175: 0.4128792916 | P175: 0.0728936223 | Q175: 2.991304495 | R175: 4.783820669 | S175: 3.449752102 | AA175: 342 | AB175: -0.1764963095 | AC175: -0.2935661447 | AD175: 0.9510565163 | AE175: -0.3090169944 | AF175: 0.7132923872 | AG175: -0.2317627458 | AK175: =AK172+0.5 -> 28.5 | AL175: =COS(AK175) -> -0.9746452757 | AM175: =SIN(AK175) -> -0.2237556402 | AN175: =$U$1+Rmoo_*COS(AK175*dr_) -> -0.245123743 | AO175: =Rmoo_*SIN(AK175*dr_) -> 0.4533008222
A176: 170 | B176: 1.333333333 | C176: 1.733333333 | F176: 0.4892715783 | G176: 0.4628319512 | H176: 0.8385416667 | I176: 0.8947916667 | J176: 0.4464839003 | K176: 0.4415675994 | L176: 0.3743953539 | M176: 0.0671722455 | N176: 0.4628319512 | O176: 0.3995100733 | P176: 0.06332187792 | Q176: 3.01109853 | R176: 4.153756957 | S176: 2.919911688 | AA176: 344 | AB176: -0.1668013889 | AC176: -0.261855488 | AD176: 0.9612616959 | AE176: -0.2756373558 | AF176: 0.720946272 | AG176: -0.2067280169 | AL176: 0 | AM176: 0 | AN176: =$U$1 -> -1.08 | AO176: 0
A177: 171 | B177: 1.35 | C177: 1.755 | F177: 0.4636090276 | G177: 0.4387631888 | H177: 0.8497222222 | I177: 0.9052777778 | J177: 0.4248201326 | K177: 0.4184071474 | L177: 0.3609791071 | M177: 0.05742804033 | N177: 0.4387631888 | O177: 0.3845802256 | P177: 0.05418296323 | Q177: 3.02998165 | R177: 3.552688584 | S177: 2.428256405 | AA177: 346 | AB177: -0.15821906 | AC177: -0.2298258008 | AD177: 0.9702957263 | AE177: -0.2419218956 | AF177: 0.7277217947 | AG177: -0.1814414217
A178: 172 | B178: 1.366666667 | C178: 1.776666667 | F178: 0.4365765624 | G178: 0.4133698665 | H178: 0.8608943089 | I178: 0.9157723577 | J178: 0.4016976336 | K178: 0.3940103476 | L178: 0.3458192067 | M178: 0.04819114093 | N178: 0.4133698665 | O178: 0.367863589 | P178: 0.04550627752 | Q178: 3.047895235 | R178: 2.98248146 | S178: 1.975736996 | AA178: 348 | AB178: -0.1507597793 | AC178: -0.1975161063 | AD178: 0.9781476007 | AE178: -0.2079116908 | AF178: 0.7336107006 | AG178: -0.1559337681 | AK178: =AK175+0.5 -> 29 | AL178: =COS(AK178) -> -0.7480575297 | AM178: =SIN(AK178) -> -0.6636338842 | AN178: =$U$1+Rmoo_*COS(AK178*dr_) -> -0.2491112782 | AO178: =Rmoo_*SIN(AK178*dr_) -> 0.4605691392
A179: 173 | B179: 1.383333333 | C179: 1.798333333 | F179: 0.4078996089 | G179: 0.3863910877 | H179: 0.8720582329 | I179: 0.9262751004 | J179: 0.3768480309 | K179: 0.3681293971 | L179: 0.3286334279 | M179: 0.03949596918 | N179: 0.3863910877 | O179: 0.3490649476 | P179: 0.03732614009 | Q179: 3.064770544 | R179: 2.445323686 | S179: 1.563714018 | AA179: 350 | AB179: -0.1444326346 | AC179: -0.1649657688 | AD179: 0.984807753 | AE179: -0.1736481777 | AF179: 0.7386058148 | AG179: -0.1302361333 | AL179: 0 | AM179: 0 | AN179: =$U$1 -> -1.08 | AO179: 0
A180: 174 | B180: 1.4 | C180: 1.82 | F180: 0.3772008771 | G180: 0.3574681908 | H180: 0.8832142857 | I180: 0.9367857143 | J180: 0.3499035946 | K180: 0.3404237916 | L180: 0.3090398534 | M180: 0.03138393821 | N180: 0.3574681908 | O180: 0.3277846888 | P180: 0.02968350203 | Q180: 3.080525213 | R180: 1.943836995 | S180: 1.194006861 | AA180: 352 | AB180: -0.1392453347 | AC180: -0.1322144459 | AD180: 0.9902680687 | AE180: -0.139173101 | AF180: 0.7427010516 | AG180: -0.1043798257
A181: 175 | B181: 1.416666667 | C181: 1.841666667 | F181: 0.3439368677 | G181: 0.3260843665 | H181: 0.8943627451 | I181: 0.9473039216 | J181: 0.3203361987 | K181: 0.3104030231 | L181: 0.286496762 | M181: 0.0239062611 | N181: 0.3260843665 | O181: 0.3034557372 | P181: 0.02262862932 | Q181: 3.095057763 | R181: 1.481251567 | S181: 0.8680798177 | AA181: 354 | AB181: -0.1352041994 | AC181: -0.0993020401 | AD181: 0.9945218954 | AE181: -0.1045284633 | AF181: 0.7458914215 | AG181: -0.07839634745 | AK181: =AK178+0.5 -> 29.5 | AL181: =COS(AK181) -> -0.338319211 | AM181: =SIN(AK181) -> -0.9410314083 | AN181: =$U$1+Rmoo_*COS(AK181*dr_) -> -0.2531620889 | AO181: =Rmoo_*SIN(AK181*dr_) -> 0.4678023821
A182: 176 | B182: 1.433333333 | C182: 1.863333333 | F182: 0.3072728282 | G182: 0.2914457549 | H182: 0.905503876 | I182: 0.9578294574 | J182: 0.2873373115 | K182: 0.2773137274 | L182: 0.2601850493 | M182: 0.0171286781 | N182: 0.2914457549 | O182: 0.2752201412 | P182: 0.0162256137 | Q182: 3.108238362 | R182: 1.061700083 | S182: 0.5879806974 | AA182: 356 | AB182: -0.1323141523 | AC182: -0.06626865006 | AD182: 0.9975640503 | AE182: -0.06975647374 | AF182: 0.7481730377 | AG182: -0.05231735531 | AL182: 0 | AM182: 0 | AN182: =$U$1 -> -1.08 | AO182: 0
A183: 177 | B183: 1.45 | C183: 1.885 | F183: 0.2658024059 | G183: 0.2522149061 | H183: 0.916637931 | I183: 0.968362069 | J183: 0.2495494007 | K183: 0.2398866713 | L183: 0.2287464463 | M183: 0.01114022499 | N183: 0.2522149061 | O183: 0.241654174 | P183: 0.01056073215 | Q183: 3.119891696 | R183: 0.6907629199 | S183: 0.3564952604 | AA183: 358 | AB183: -0.1305787143 | AC183: -0.03315452187 | AD183: 0.999390827 | AE183: -0.0348994967 | AF183: 0.7495431203 | AG183: -0.02617462253
A184: 178 | B184: 1.466666667 | C184: 1.906666667 | F184: 0.2167808923 | G184: 0.2057819046 | H184: 0.9277651515 | I184: 0.9789015152 | J184: 0.2043326299 | K184: 0.1956447553 | L184: 0.1895726933 | M184: 0.006072062005 | N184: 0.2057819046 | O184: 0.200021521 | P184: 0.005760383609 | Q184: 3.129760208 | R184: 0.3766384417 | S184: 0.1767457647 | AA184: 360 | AB184: -0.13 | AC184: -2.327782064e-16 | AD184: 1 | AE184: -2.45029691e-16 | AF184: 0.75 | AG184: -1.837722682e-16 | AK184: =AK181+0.5 -> 30 | AL184: =COS(AK184) -> 0.1542514499 | AM184: =SIN(AK184) -> -0.9880316241 | AN184: =$U$1+Rmoo_*COS(AK184*dr_) -> -0.2572758664 | AO184: =Rmoo_*SIN(AK184*dr_) -> 0.475
A185: 179 | B185: 1.483333333 | C185: 1.928333333 | F185: 0.1531148267 | G185: 0.1454032038 | H185: 0.9388857678 | I185: 0.9894475655 | J185: 0.1448913905 | K185: 0.1381861311 | L185: 0.1360364644 | M185: 0.002149666722 | N185: 0.1454032038 | O185: 0.1433624336 | P185: 0.002040770206 | Q185: 3.137402217 | R185: 0.1333857502 | S185: 0.05387712316 | AL185: 0 | AM185: 0 | AN185: =$U$1 -> -1.08 | AO185: 0
A186: 180 | B186: 1.5 | C186: 1.95 | F186: 0 | G186: 0 | H186: 0.95 | I186: 1 | J186: 0 | K186: 0 | L186: 0 | M186: 0 | N186: 0 | O186: 0 | P186: 0 | Q186: 3.141592654 | R186: 0 | S186: 0
AK187: =AK184+0.5 -> 30.5 | AL187: =COS(AK187) -> 0.6090559761 | AM187: =SIN(AK187) -> -0.7931272395 | AN187: =$U$1+Rmoo_*COS(AK187*dr_) -> -0.2614522976 | AO187: =Rmoo_*SIN(AK187*dr_) -> 0.4821614448
AL188: 0 | AM188: 0 | AN188: =$U$1 -> -1.08 | AO188: 0
AK190: =AK187+0.5 -> 31 | AL190: =COS(AK190) -> 0.9147423578 | AM190: =SIN(AK190) -> -0.4040376453 | AN190: =$U$1+Rmoo_*COS(AK190*dr_) -> -0.2656910643 | AO190: =Rmoo_*SIN(AK190*dr_) -> 0.4892861712
AL191: 0 | AM191: 0 | AN191: =$U$1 -> -1.08 | AO191: 0
AK193: =AK190+0.5 -> 31.5 | AL193: =COS(AK193) -> 0.9964679076 | AM193: =SIN(AK193) -> 0.08397445569 | AN193: =$U$1+Rmoo_*COS(AK193*dr_) -> -0.2699918439 | AO193: =Rmoo_*SIN(AK193*dr_) -> 0.4963736365
AL194: 0 | AM194: 0 | AN194: =$U$1 -> -1.08 | AO194: 0
AK196: =AK193+0.5 -> 32 | AL196: =COS(AK196) -> 0.8342233605 | AM196: =SIN(AK196) -> 0.5514266812 | AN196: =$U$1+Rmoo_*COS(AK196*dr_) -> -0.2743543087 | AO196: =Rmoo_*SIN(AK196*dr_) -> 0.503423301
AL197: 0 | AM197: 0 | AN197: =$U$1 -> -1.08 | AO197: 0
AK199: =AK196+0.5 -> 32.5 | AL199: =COS(AK199) -> 0.4677318402 | AM199: =SIN(AK199) -> 0.8838704235 | AN199: =$U$1+Rmoo_*COS(AK199*dr_) -> -0.2787781265 | AO199: =Rmoo_*SIN(AK199*dr_) -> 0.5104346279
AL200: 0 | AM200: 0 | AN200: =$U$1 -> -1.08 | AO200: 0
AK202: =AK199+0.5 -> 33 | AL202: =COS(AK202) -> -0.01327674722 | AM202: =SIN(AK202) -> 0.9999118601 | AN202: =$U$1+Rmoo_*COS(AK202*dr_) -> -0.2832629605 | AO202: =Rmoo_*SIN(AK202*dr_) -> 0.5174070833
AL203: 0 | AM203: 0 | AN203: =$U$1 -> -1.08 | AO203: 0
AK205: =AK202+0.5 -> 33.5 | AL205: =COS(AK205) -> -0.4910347239 | AM205: =SIN(AK205) -> 0.8711400002 | AN205: =$U$1+Rmoo_*COS(AK205*dr_) -> -0.287808469 | AO205: =Rmoo_*SIN(AK205*dr_) -> 0.524340136
AL206: 0 | AM206: 0 | AN206: =$U$1 -> -1.08 | AO206: 0
... 1304 more rows

Sheet Solver
A1: Apparent diameter of the Moon (solar radii) | J1: 1.0306
A2: Assumed time from C1 to C2 | J2: 88
A3: number of annuli (>1000 for higher accuracy) | J3: 5000
A4: Parameter for formula ED : b | J4: 2
A5: Parameter for formula ED2: a | J5: 0.85
A6: Parameter for formula ED2: b | J6: 0.8
I7: lsq fit | J7: =SUM(H11,L11,P11) -> 1.071180099e-08
F8: Eclipse obscuration method | J8: Eclipse_dimming method | N8: Eclipse_dimming_2 method
F9: "Two disks geometry" only | J9: Limb darkening formula | N9: Limb darkening formula
J10: (1+b*(1-r2)) / (1+b) | N10: 1 - a(1 - ((1-r2)b)
A11: Body | B11: Dist | C11: 1/r2 | D11: dimmed | E11: M.Zeiler | F11: Xmoon | G11: Obscur. | H11: =SUM(H13:H19) -> 3.014256186e-09 | I11: time to C2 | J11: Xmoon | K11: ED | L11: =SUM(L13:L19) -> 3.86276384e-09 | M11: time to C2 | N11: Xmoon | O11: ED2 | P11: =SUM(P13:P19) -> 3.834780961e-09 | Q11: time to C2
A12: Earth | B12: 1.012 | C12: 1 | D12: =100*(1-C12) -> 0 | F12: =1+$J$1 -> 2.0306 | G12: =Eclipse_Dimming(F12,$J$1,$J$3, 0) -> 0 | H12: =(D12-G12)^2 -> 0 | I12: =T2HHMMSSs((F12-$J$1+1)/2*$J$2/60,0) -> 1:28:00 | J12: =1+$J$1 -> 2.0306 | K12: =Eclipse_Dimming(J12,$J$1,$J$3,$J$4) -> 0 | L12: =(D12-K12)^2 -> 0 | M12: =T2HHMMSSs((J12-$J$1+1)/2*$J$2/60,0) -> 1:28:00 | N12: =1+$J$1 -> 2.0306 | O12: =Eclipse_Dimming_2(N12,$J$1,$J$3,$J$5,$J$6) -> 0 | P12: =(D12-O12)^2 -> 0 | Q12: =T2HHMMSSs((N12-$J$1+1)/2*$J$2/60,0) -> 1:28:00
A13: Mars | B13: 1.655 | C13: =($B$12/B13)^2 -> 0.3739082338 | D13: =100*(1-C13) -> 62.60917662 | E13: =T2HHMMSSs(28/60+40/3600,0) -> 0:28:40 | F13: 0.6363511561 | G13: 62.6092013 | H13: =(D13-G13)^2 -> 6.089943967e-10 | I13: =T2HHMMSSs((F13-$J$1+1)/2*$J$2/60,0) -> 0:26:39 | J13: 0.6870056418 | K13: 62.60920125 | L13: 6.062471667e-10 | M13: =T2HHMMSSs((J13-$J$1+1)/2*$J$2/60,0) -> 0:28:53 | N13: 0.6939614824 | O13: 62.60916734 | P13: 8.62065918e-11 | Q13: =T2HHMMSSs((N13-$J$1+1)/2*$J$2/60,0) -> 0:29:11
A14: Ceres | B14: 2.653 | C14: =($B$12/B14)^2 -> 0.145507884 | D14: =100*(1-C14) -> 85.4492116 | E14: =T2HHMMSSs(8/60+56/3600,0) -> 0:08:56 | F14: 0.2722669649 | G14: 85.44922398 | H14: =(D14-G14)^2 -> 1.531762547e-10 | I14: =T2HHMMSSs((F14-$J$1+1)/2*$J$2/60,0) -> 0:10:38 | J14: 0.3320625834 | K14: 85.44923095 | L14: 3.74173005e-10 | M14: =T2HHMMSSs((J14-$J$1+1)/2*$J$2/60,0) -> 0:13:16 | N14: 0.3432358285 | O14: 85.44925118 | P14: 1.566549745e-09 | Q14: =T2HHMMSSs((N14-$J$1+1)/2*$J$2/60,0) -> 0:13:45
A15: Jupiter | B15: 5.448 | C15: 0.034505381 | D15: =100*(1-C15) -> 96.5494619 | E15: =T2HHMMSSs(2/60+52/3600,0) -> 0:02:52 | F15: 0.09659131594 | G15: 96.54949887 | H15: 1.366724232e-09 | I15: 0:02:54 | J15: 0.1272756774 | K15: 96.54948631 | L15: 5.95702534e-10 | M15: 0:04:15 | N15: 0.1369345391 | O15: 96.54949153 | P15: 8.779049168e-10 | Q15: 0:04:41
A16: Saturn | B16: 10.061 | C16: 0.01011762846 | D16: 98.98823715 | E16: =T2HHMMSSs(59/3600,0) -> 0:00:59 | F16: 0.05495967648 | G16: 98.98821659 | H16: 4.228272087e-10 | I16: 0:01:04 | J16: 0.06878985528 | K16: 98.98827186 | L16: 1.204677031e-09 | M16: 0:01:41 | N16: 0.07505111728 | O16: 98.98825566 | P16: 3.423918101e-10 | Q16: 0:01:57
A17: Uranus | B17: 19.917 | C17: 0.002581744011 | D17: 99.7418256 | E17: =T2HHMMSSs(22/3600,0) -> 0:00:22 | F17: 0.03944647465 | G17: 99.74182273 | H17: 8.234504553e-12 | I17: 0:00:23 | J17: 0.04495330013 | K17: 99.74184177 | L17: 2.613447547e-10 | M17: 0:00:38 | N17: 0.04831188828 | O17: 99.74183453 | P17: 7.971426134e-11 | Q17: 0:00:47
A18: Neptune | B18: 29.947 | C18: 0.001141969171 | D18: 99.88580308 | E18: =T2HHMMSSs(12.5/3600,1) -> 0:00:12.5 | F18: 0.03557181011 | G18: 99.88581754 | H18: 2.090861711e-10 | I18: =T2HHMMSSs((F18-$J$1+1)/2*$J$2/60,1) -> 0:00:13.1 | J18: 0.03878187779 | K18: 99.88583053 | L18: 7.533753096e-10 | M18: =T2HHMMSSs((J18-$J$1+1)/2*$J$2/60,1) -> 0:00:21.6 | N18: 0.04102860696 | O18: 99.88582009 | P18: 2.892588505e-10 | Q18: =T2HHMMSSs((N18-$J$1+1)/2*$J$2/60,1) -> 0:00:27.5
A19: Pluto | B19: 33.391 | C19: 0.0009185486725 | D19: =100*(1-C19) -> 99.90814513 | E19: =T2HHMMSSs(7.7/3600,1) -> 0:00:07.7 | F19: 0.03488427334 | G19: =Eclipse_Dimming(F19,$J$1,$J$3, 0) -> 99.90816079 | H19: =(D19-G19)^2 -> 2.452134185e-10 | I19: =T2HHMMSSs((F19-$J$1+1)/2*$J$2/60,1) -> 0:00:11.3 | J19: 0.03766304217 | K19: =Eclipse_Dimming(J19,$J$1,$J$3,$J$4) -> 99.90815333 | L19: =(D19-K19)^2 -> 6.724403913e-11 | M19: =T2HHMMSSs((J19-$J$1+1)/2*$J$2/60,1) -> 0:00:18.6 | N19: 0.03967328919 | O19: =Eclipse_Dimming_2(N19,$J$1,$J$3,$J$5,$J$6) -> 99.90816948 | P19: =(D19-O19)^2 -> 5.927547851e-10 | Q19: =T2HHMMSSs((N19-$J$1+1)/2*$J$2/60,1) -> 0:00:24.0
A20: "far away" | B20: 99999 | C20: 0 | D20: 100 | F20: 0.030601 | G20: 100 | H20: 0 | I20: =T2HHMMSSs((F20-$J$1+1)/2*$J$2/60,1) -> 0:00:00.0 | J20: 0.030601 | K20: 100 | L20: 0 | M20: =T2HHMMSSs((J20-$J$1+1)/2*$J$2/60,1) -> 0:00:00.0 | N20: 0.030601 | O20: 100 | P20: 0 | Q20: =T2HHMMSSs((N20-$J$1+1)/2*$J$2/60,1) -> 0:00:00.0
